{"text_format":"1","workbook":"xlsx","n_sheets":9,"sheets":["Directory","Equipment_Inventory_List","Mainenance log","Charts","Annual Cost","Filter LIst","Service Interval","Equipment Category","Type of Service List"],"not_rendered":{"charts":3,"images":1,"macros":1,"external_links":0,"defined_names":14,"comments":0,"pivot_tables":3},"unopened":[],"bounds":{"document_bytes":16777216,"sheet_cells":100000,"rows_first":2000,"rows_last":500,"rows_between":2000,"halvings":0,"cell_chars":16384,"cell_head_chars":4096},"cells_cut":0,"cells_raw":0,"read":"part_too_large","date_system":"1900"}

{"sheet":"Directory","index":0,"n_rows":15,"n_cols":13,"rows_kept":15,"cut":false,"hidden":false,"merged":[[12,1,12,3],[13,1,13,3],[14,1,14,3],[7,1,7,3],[8,1,8,3],[9,1,9,3],[10,1,10,3],[11,1,11,3]]}
[]
[]
[]
[]
[]
[null,"Directory",null,null,null,null,null,"User Notes",null,null,null,null,"Enabled"]
[null,null,null,null,null,null,null,null,null,null,null,null,"Disabled"]
[null,"•  Equipment Inventory List",null,null,null,null,null,"Value",null,"Requires user input for best cost estimation."]
[null,"•  Maintenance Log"]
[null,"•  Cost Charts",null,null,null,null,null,null,null,"Indicates values are currently not included in cost estimation."]
[null,"•  Annual Cost"]
[null,"•  Filter List",null,null,null,null,null,null,null,"Indicates a drop down menu."]
[null,"•  Service Interval"]
[null,"•  Equipment Category"]
[null,"•  Type of Service List"]

{"sheet":"Equipment_Inventory_List","index":1,"n_rows":102,"n_cols":15,"rows_kept":102,"cut":false,"hidden":false,"merged":[]}
[]
["#","Name of Equipment","Manufacturer","Model","Color","Serial Number","Production Year","Date of Purchase","Purchase Price","Equipment Category","Equipment Type","Intial Hours","Last Recorded Hours","Last Service Date","Location"]
[1,"Example Baler","Vermeer",605,"Yellow",null,null,null,null,"HARVESTING, FORAGE","Large round baler",null,{"$f":"IF(OR(ISBLANK(B3),MAX(IF(MainName=Equipment_Inventory_List!B3,Hours))=0),\"\",MAX(IF(MainName=Equipment_Inventory_List!B3,Hours)))","v":""},{"$f":"IF(OR(ISBLANK(B3),MAX(IF(MainName=Equipment_Inventory_List!B5,JJdate))=0),\"\",MAX(IF(MainName=Equipment_Inventory_List!B5,JJdate)))","v":""}]
[2,"Example disc cutter","New Holland",462,"Red",null,null,null,null,"HARVESTING, FORAGE","Mower (rotary)",null,{"$f":"IF(OR(ISBLANK(B4),MAX(IF(MainName=Equipment_Inventory_List!B4,Hours))=0),\"\",MAX(IF(MainName=Equipment_Inventory_List!B4,Hours)))","v":""},{"$f":"IF(OR(ISBLANK(B4),MAX(IF(MainName=Equipment_Inventory_List!B6,JJdate))=0),\"\",MAX(IF(MainName=Equipment_Inventory_List!B6,JJdate)))","v":"2023-01-01"}]
[3,"Example haybine","New Holland",467,"Red",null,null,null,null,"HARVESTING, FORAGE","Mower-conditioner",null,{"$f":"IF(OR(ISBLANK(B5),MAX(IF(MainName=Equipment_Inventory_List!B5,Hours))=0),\"\",MAX(IF(MainName=Equipment_Inventory_List!B5,Hours)))","v":""},{"$f":"IF(OR(ISBLANK(B5),MAX(IF(MainName=Equipment_Inventory_List!B7,JJdate))=0),\"\",MAX(IF(MainName=Equipment_Inventory_List!B7,JJdate)))","v":""}]
[4,"Example discbine","New Holland",1411,"Red",null,null,null,null,"HARVESTING, FORAGE","Mower-conditioner (rotary)",null,{"$f":"IF(OR(ISBLANK(B6),MAX(IF(MainName=Equipment_Inventory_List!B6,Hours))=0),\"\",MAX(IF(MainName=Equipment_Inventory_List!B6,Hours)))","v":""},{"$f":"IF(OR(ISBLANK(B6),MAX(IF(MainName=Equipment_Inventory_List!B8,JJdate))=0),\"\",MAX(IF(MainName=Equipment_Inventory_List!B8,JJdate)))","v":""}]
[5,"Example square baler","Case",200,null,null,null,null,null,"HARVESTING, FORAGE","Rectangular baler",null,{"$f":"IF(OR(ISBLANK(B7),MAX(IF(MainName=Equipment_Inventory_List!B7,Hours))=0),\"\",MAX(IF(MainName=Equipment_Inventory_List!B7,Hours)))","v":""},{"$f":"IF(OR(ISBLANK(B7),MAX(IF(MainName=Equipment_Inventory_List!B9,JJdate))=0),\"\",MAX(IF(MainName=Equipment_Inventory_List!B9,JJdate)))","v":""}]
[6,"Example Bar Rake","John Deere",null,"Green",null,null,null,null,"HARVESTING, FORAGE","Side delivery rake",null,{"$f":"IF(OR(ISBLANK(B8),MAX(IF(MainName=Equipment_Inventory_List!B8,Hours))=0),\"\",MAX(IF(MainName=Equipment_Inventory_List!B8,Hours)))","v":""},{"$f":"IF(OR(ISBLANK(B8),MAX(IF(MainName=Equipment_Inventory_List!B10,JJdate))=0),\"\",MAX(IF(MainName=Equipment_Inventory_List!B10,JJdate)))","v":"2023-02-04"}]
[7,"Example V Rake",null,null,"green",null,null,null,null,"HARVESTING, FORAGE","V-rake-10 wheel",null,{"$f":"IF(OR(ISBLANK(B9),MAX(IF(MainName=Equipment_Inventory_List!B9,Hours))=0),\"\",MAX(IF(MainName=Equipment_Inventory_List!B9,Hours)))","v":""},{"$f":"IF(OR(ISBLANK(B9),MAX(IF(MainName=Equipment_Inventory_List!B11,JJdate))=0),\"\",MAX(IF(MainName=Equipment_Inventory_List!B11,JJdate)))","v":""}]
[8,"Example Small Spreader",null,null,null,null,null,null,null,"Manure Management","Ground Drive",null,{"$f":"IF(OR(ISBLANK(B10),MAX(IF(MainName=Equipment_Inventory_List!B10,Hours))=0),\"\",MAX(IF(MainName=Equipment_Inventory_List!B10,Hours)))","v":8},{"$f":"IF(OR(ISBLANK(B10),MAX(IF(MainName=Equipment_Inventory_List!B14,JJdate))=0),\"\",MAX(IF(MainName=Equipment_Inventory_List!B14,JJdate)))","v":"2023-02-04"}]
[9,"Example 2 bottom  plow","Massey",null,"Rust",null,null,null,null,"TILLAGE","Moldboard plow",null,{"$f":"IF(OR(ISBLANK(B11),MAX(IF(MainName=Equipment_Inventory_List!B11,Hours))=0),\"\",MAX(IF(MainName=Equipment_Inventory_List!B11,Hours)))","v":""},{"$f":"IF(OR(ISBLANK(B11),MAX(IF(MainName=Equipment_Inventory_List!B18,JJdate))=0),\"\",MAX(IF(MainName=Equipment_Inventory_List!B18,JJdate)))","v":""}]
[10,"Example heavy disc",null,null,null,null,null,null,null,"TILLAGE","Heavy-duty disk",null,{"$f":"IF(OR(ISBLANK(B12),MAX(IF(MainName=Equipment_Inventory_List!B12,Hours))=0),\"\",MAX(IF(MainName=Equipment_Inventory_List!B12,Hours)))","v":""},{"$f":"IF(OR(ISBLANK(B12),MAX(IF(MainName=Equipment_Inventory_List!B19,JJdate))=0),\"\",MAX(IF(MainName=Equipment_Inventory_List!B19,JJdate)))","v":""}]
[11,"Example light disc",null,null,null,null,null,null,null,"TILLAGE","Tandem disk harrow",null,{"$f":"IF(OR(ISBLANK(B13),MAX(IF(MainName=Equipment_Inventory_List!B13,Hours))=0),\"\",MAX(IF(MainName=Equipment_Inventory_List!B13,Hours)))","v":""},{"$f":"IF(OR(ISBLANK(B13),MAX(IF(MainName=Equipment_Inventory_List!B20,JJdate))=0),\"\",MAX(IF(MainName=Equipment_Inventory_List!B20,JJdate)))","v":""}]
[12,"Example Tractor 1","CASE",995,"White",null,1976,1975,null,"TRACTORS 20-80 hp","2WD <150hp",0,{"$f":"IF(OR(ISBLANK(B14),MAX(IF(MainName=Equipment_Inventory_List!B14,Hours))=0),\"\",MAX(IF(MainName=Equipment_Inventory_List!B14,Hours)))","v":4500},{"$f":"IF(OR(ISBLANK(B14),MAX(IF(MainName=Equipment_Inventory_List!B21,JJdate))=0),\"\",MAX(IF(MainName=Equipment_Inventory_List!B21,JJdate)))","v":""}]
[13,"Example Tractor 2","Ford",8600,"Blue",null,1976,null,null,"TRACTORS 80-149 hp","2WD <150hp",0,{"$f":"IF(OR(ISBLANK(B15),MAX(IF(MainName=Equipment_Inventory_List!B15,Hours))=0),\"\",MAX(IF(MainName=Equipment_Inventory_List!B15,Hours)))","v":6680},{"$f":"IF(OR(ISBLANK(B15),MAX(IF(MainName=Equipment_Inventory_List!B22,JJdate))=0),\"\",MAX(IF(MainName=Equipment_Inventory_List!B22,JJdate)))","v":""},"barn"]
[14,"Example Tractor 3","John Deere",3350,"Green",null,1990,null,null,"TRACTORS 80-149 hp","4WD & crawler <150 hp",3000,{"$f":"IF(OR(ISBLANK(B16),MAX(IF(MainName=Equipment_Inventory_List!B16,Hours))=0),\"\",MAX(IF(MainName=Equipment_Inventory_List!B16,Hours)))","v":5500},{"$f":"IF(OR(ISBLANK(B16),MAX(IF(MainName=Equipment_Inventory_List!B23,JJdate))=0),\"\",MAX(IF(MainName=Equipment_Inventory_List!B23,JJdate)))","v":""}]
[15,null,null,null,null,null,null,null,null,null,null,null,{"$f":"IF(OR(ISBLANK(B17),MAX(IF(MainName=Equipment_Inventory_List!B17,Hours))=0),\"\",MAX(IF(MainName=Equipment_Inventory_List!B17,Hours)))","v":""},{"$f":"IF(OR(ISBLANK(B17),MAX(IF(MainName=Equipment_Inventory_List!B12,JJdate))=0),\"\",MAX(IF(MainName=Equipment_Inventory_List!B12,JJdate)))","v":""}]
[16,null,null,null,null,null,null,null,null,null,null,null,{"$f":"IF(OR(ISBLANK(B18),MAX(IF(MainName=Equipment_Inventory_List!B18,Hours))=0),\"\",MAX(IF(MainName=Equipment_Inventory_List!B18,Hours)))","v":""},{"$f":"IF(OR(ISBLANK(B18),MAX(IF(MainName=Equipment_Inventory_List!B13,JJdate))=0),\"\",MAX(IF(MainName=Equipment_Inventory_List!B13,JJdate)))","v":""}]
[17,null,null,null,null,null,null,null,null,null,null,null,{"$f":"IF(OR(ISBLANK(B19),MAX(IF(MainName=Equipment_Inventory_List!B19,Hours))=0),\"\",MAX(IF(MainName=Equipment_Inventory_List!B19,Hours)))","v":""},{"$f":"IF(OR(ISBLANK(B19),MAX(IF(MainName=Equipment_Inventory_List!B15,JJdate))=0),\"\",MAX(IF(MainName=Equipment_Inventory_List!B15,JJdate)))","v":""}]
[18,null,null,null,null,null,null,null,null,null,null,null,{"$f":"IF(OR(ISBLANK(B20),MAX(IF(MainName=Equipment_Inventory_List!B20,Hours))=0),\"\",MAX(IF(MainName=Equipment_Inventory_List!B20,Hours)))","v":""},{"$f":"IF(OR(ISBLANK(B20),MAX(IF(MainName=Equipment_Inventory_List!B16,JJdate))=0),\"\",MAX(IF(MainName=Equipment_Inventory_List!B16,JJdate)))","v":""}]
[19,null,null,null,null,null,null,null,null,null,null,null,{"$f":"IF(OR(ISBLANK(B21),MAX(IF(MainName=Equipment_Inventory_List!B21,Hours))=0),\"\",MAX(IF(MainName=Equipment_Inventory_List!B21,Hours)))","v":""},{"$f":"IF(OR(ISBLANK(B21),MAX(IF(MainName=Equipment_Inventory_List!B17,JJdate))=0),\"\",MAX(IF(MainName=Equipment_Inventory_List!B17,JJdate)))","v":""}]
[20,null,null,null,null,null,null,null,null,null,null,null,{"$f":"IF(OR(ISBLANK(B22),MAX(IF(MainName=Equipment_Inventory_List!B22,Hours))=0),\"\",MAX(IF(MainName=Equipment_Inventory_List!B22,Hours)))","v":""},{"$f":"IF(OR(ISBLANK(B22),MAX(IF(MainName=Equipment_Inventory_List!B3,JJdate))=0),\"\",MAX(IF(MainName=Equipment_Inventory_List!B3,JJdate)))","v":""}]
[21,null,null,null,null,null,null,null,null,null,null,null,{"$f":"IF(OR(ISBLANK(B23),MAX(IF(MainName=Equipment_Inventory_List!B23,Hours))=0),\"\",MAX(IF(MainName=Equipment_Inventory_List!B23,Hours)))","v":""},{"$f":"IF(OR(ISBLANK(B23),MAX(IF(MainName=Equipment_Inventory_List!B4,JJdate))=0),\"\",MAX(IF(MainName=Equipment_Inventory_List!B4,JJdate)))","v":""}]
[22,null,null,null,null,null,null,null,null,null,null,null,{"$f":"IF(OR(ISBLANK(B24),MAX(IF(MainName=Equipment_Inventory_List!B24,Hours))=0),\"\",MAX(IF(MainName=Equipment_Inventory_List!B24,Hours)))","v":""},{"$f":"IF(OR(ISBLANK(B24),MAX(IF(MainName=Equipment_Inventory_List!B24,JJdate))=0),\"\",MAX(IF(MainName=Equipment_Inventory_List!B24,JJdate)))","v":""}]
[23,null,null,null,null,null,null,null,null,null,null,null,{"$f":"IF(OR(ISBLANK(B25),MAX(IF(MainName=Equipment_Inventory_List!B25,Hours))=0),\"\",MAX(IF(MainName=Equipment_Inventory_List!B25,Hours)))","v":""},{"$f":"IF(OR(ISBLANK(B25),MAX(IF(MainName=Equipment_Inventory_List!B25,JJdate))=0),\"\",MAX(IF(MainName=Equipment_Inventory_List!B25,JJdate)))","v":""}]
[24,null,null,null,null,null,null,null,null,null,null,null,{"$f":"IF(OR(ISBLANK(B26),MAX(IF(MainName=Equipment_Inventory_List!B26,Hours))=0),\"\",MAX(IF(MainName=Equipment_Inventory_List!B26,Hours)))","v":""},{"$f":"IF(OR(ISBLANK(B26),MAX(IF(MainName=Equipment_Inventory_List!B26,JJdate))=0),\"\",MAX(IF(MainName=Equipment_Inventory_List!B26,JJdate)))","v":""}]
[25,null,null,null,null,null,null,null,null,null,null,null,{"$f":"IF(OR(ISBLANK(B27),MAX(IF(MainName=Equipment_Inventory_List!B27,Hours))=0),\"\",MAX(IF(MainName=Equipment_Inventory_List!B27,Hours)))","v":""},{"$f":"IF(OR(ISBLANK(B27),MAX(IF(MainName=Equipment_Inventory_List!B27,JJdate))=0),\"\",MAX(IF(MainName=Equipment_Inventory_List!B27,JJdate)))","v":""}]
[26,null,null,null,null,null,null,null,null,null,null,null,{"$f":"IF(OR(ISBLANK(B28),MAX(IF(MainName=Equipment_Inventory_List!B28,Hours))=0),\"\",MAX(IF(MainName=Equipment_Inventory_List!B28,Hours)))","v":""},{"$f":"IF(OR(ISBLANK(B28),MAX(IF(MainName=Equipment_Inventory_List!B28,JJdate))=0),\"\",MAX(IF(MainName=Equipment_Inventory_List!B28,JJdate)))","v":""}]
[27,null,null,null,null,null,null,null,null,null,null,null,{"$f":"IF(OR(ISBLANK(B29),MAX(IF(MainName=Equipment_Inventory_List!B29,Hours))=0),\"\",MAX(IF(MainName=Equipment_Inventory_List!B29,Hours)))","v":""},{"$f":"IF(OR(ISBLANK(B29),MAX(IF(MainName=Equipment_Inventory_List!B29,JJdate))=0),\"\",MAX(IF(MainName=Equipment_Inventory_List!B29,JJdate)))","v":""}]
[28,null,null,null,null,null,null,null,null,null,null,null,{"$f":"IF(OR(ISBLANK(B30),MAX(IF(MainName=Equipment_Inventory_List!B30,Hours))=0),\"\",MAX(IF(MainName=Equipment_Inventory_List!B30,Hours)))","v":""},{"$f":"IF(OR(ISBLANK(B30),MAX(IF(MainName=Equipment_Inventory_List!B30,JJdate))=0),\"\",MAX(IF(MainName=Equipment_Inventory_List!B30,JJdate)))","v":""}]
[29,null,null,null,null,null,null,null,null,null,null,null,{"$f":"IF(OR(ISBLANK(B31),MAX(IF(MainName=Equipment_Inventory_List!B31,Hours))=0),\"\",MAX(IF(MainName=Equipment_Inventory_List!B31,Hours)))","v":""},{"$f":"IF(OR(ISBLANK(B31),MAX(IF(MainName=Equipment_Inventory_List!B31,JJdate))=0),\"\",MAX(IF(MainName=Equipment_Inventory_List!B31,JJdate)))","v":""}]
[30,null,null,null,null,null,null,null,null,null,null,null,{"$f":"IF(OR(ISBLANK(B32),MAX(IF(MainName=Equipment_Inventory_List!B32,Hours))=0),\"\",MAX(IF(MainName=Equipment_Inventory_List!B32,Hours)))","v":""},{"$f":"IF(OR(ISBLANK(B32),MAX(IF(MainName=Equipment_Inventory_List!B32,JJdate))=0),\"\",MAX(IF(MainName=Equipment_Inventory_List!B32,JJdate)))","v":""}]
[31,null,null,null,null,null,null,null,null,null,null,null,{"$f":"IF(OR(ISBLANK(B33),MAX(IF(MainName=Equipment_Inventory_List!B33,Hours))=0),\"\",MAX(IF(MainName=Equipment_Inventory_List!B33,Hours)))","v":""},{"$f":"IF(OR(ISBLANK(B33),MAX(IF(MainName=Equipment_Inventory_List!B33,JJdate))=0),\"\",MAX(IF(MainName=Equipment_Inventory_List!B33,JJdate)))","v":""}]
[32,null,null,null,null,null,null,null,null,null,null,null,{"$f":"IF(OR(ISBLANK(B34),MAX(IF(MainName=Equipment_Inventory_List!B34,Hours))=0),\"\",MAX(IF(MainName=Equipment_Inventory_List!B34,Hours)))","v":""},{"$f":"IF(OR(ISBLANK(B34),MAX(IF(MainName=Equipment_Inventory_List!B34,JJdate))=0),\"\",MAX(IF(MainName=Equipment_Inventory_List!B34,JJdate)))","v":""}]
[33,null,null,null,null,null,null,null,null,null,null,null,{"$f":"IF(OR(ISBLANK(B35),MAX(IF(MainName=Equipment_Inventory_List!B35,Hours))=0),\"\",MAX(IF(MainName=Equipment_Inventory_List!B35,Hours)))","v":""},{"$f":"IF(OR(ISBLANK(B35),MAX(IF(MainName=Equipment_Inventory_List!B35,JJdate))=0),\"\",MAX(IF(MainName=Equipment_Inventory_List!B35,JJdate)))","v":""}]
[34,null,null,null,null,null,null,null,null,null,null,null,{"$f":"IF(OR(ISBLANK(B36),MAX(IF(MainName=Equipment_Inventory_List!B36,Hours))=0),\"\",MAX(IF(MainName=Equipment_Inventory_List!B36,Hours)))","v":""},{"$f":"IF(OR(ISBLANK(B36),MAX(IF(MainName=Equipment_Inventory_List!B36,JJdate))=0),\"\",MAX(IF(MainName=Equipment_Inventory_List!B36,JJdate)))","v":""}]
[35,null,null,null,null,null,null,null,null,null,null,null,{"$f":"IF(OR(ISBLANK(B37),MAX(IF(MainName=Equipment_Inventory_List!B37,Hours))=0),\"\",MAX(IF(MainName=Equipment_Inventory_List!B37,Hours)))","v":""},{"$f":"IF(OR(ISBLANK(B37),MAX(IF(MainName=Equipment_Inventory_List!B37,JJdate))=0),\"\",MAX(IF(MainName=Equipment_Inventory_List!B37,JJdate)))","v":""}]
[36,null,null,null,null,null,null,null,null,null,null,null,{"$f":"IF(OR(ISBLANK(B38),MAX(IF(MainName=Equipment_Inventory_List!B38,Hours))=0),\"\",MAX(IF(MainName=Equipment_Inventory_List!B38,Hours)))","v":""},{"$f":"IF(OR(ISBLANK(B38),MAX(IF(MainName=Equipment_Inventory_List!B38,JJdate))=0),\"\",MAX(IF(MainName=Equipment_Inventory_List!B38,JJdate)))","v":""}]
[37,null,null,null,null,null,null,null,null,null,null,null,{"$f":"IF(OR(ISBLANK(B39),MAX(IF(MainName=Equipment_Inventory_List!B39,Hours))=0),\"\",MAX(IF(MainName=Equipment_Inventory_List!B39,Hours)))","v":""},{"$f":"IF(OR(ISBLANK(B39),MAX(IF(MainName=Equipment_Inventory_List!B39,JJdate))=0),\"\",MAX(IF(MainName=Equipment_Inventory_List!B39,JJdate)))","v":""}]
[38,null,null,null,null,null,null,null,null,null,null,null,{"$f":"IF(OR(ISBLANK(B40),MAX(IF(MainName=Equipment_Inventory_List!B40,Hours))=0),\"\",MAX(IF(MainName=Equipment_Inventory_List!B40,Hours)))","v":""},{"$f":"IF(OR(ISBLANK(B40),MAX(IF(MainName=Equipment_Inventory_List!B40,JJdate))=0),\"\",MAX(IF(MainName=Equipment_Inventory_List!B40,JJdate)))","v":""}]
[39,null,null,null,null,null,null,null,null,null,null,null,{"$f":"IF(OR(ISBLANK(B41),MAX(IF(MainName=Equipment_Inventory_List!B41,Hours))=0),\"\",MAX(IF(MainName=Equipment_Inventory_List!B41,Hours)))","v":""},{"$f":"IF(OR(ISBLANK(B41),MAX(IF(MainName=Equipment_Inventory_List!B41,JJdate))=0),\"\",MAX(IF(MainName=Equipment_Inventory_List!B41,JJdate)))","v":""}]
[40,null,null,null,null,null,null,null,null,null,null,null,{"$f":"IF(OR(ISBLANK(B42),MAX(IF(MainName=Equipment_Inventory_List!B42,Hours))=0),\"\",MAX(IF(MainName=Equipment_Inventory_List!B42,Hours)))","v":""},{"$f":"IF(OR(ISBLANK(B42),MAX(IF(MainName=Equipment_Inventory_List!B42,JJdate))=0),\"\",MAX(IF(MainName=Equipment_Inventory_List!B42,JJdate)))","v":""}]
[41,null,null,null,null,null,null,null,null,null,null,null,{"$f":"IF(OR(ISBLANK(B43),MAX(IF(MainName=Equipment_Inventory_List!B43,Hours))=0),\"\",MAX(IF(MainName=Equipment_Inventory_List!B43,Hours)))","v":""},{"$f":"IF(OR(ISBLANK(B43),MAX(IF(MainName=Equipment_Inventory_List!B43,JJdate))=0),\"\",MAX(IF(MainName=Equipment_Inventory_List!B43,JJdate)))","v":""}]
[42,null,null,null,null,null,null,null,null,null,null,null,{"$f":"IF(OR(ISBLANK(B44),MAX(IF(MainName=Equipment_Inventory_List!B44,Hours))=0),\"\",MAX(IF(MainName=Equipment_Inventory_List!B44,Hours)))","v":""},{"$f":"IF(OR(ISBLANK(B44),MAX(IF(MainName=Equipment_Inventory_List!B44,JJdate))=0),\"\",MAX(IF(MainName=Equipment_Inventory_List!B44,JJdate)))","v":""}]
[43,null,null,null,null,null,null,null,null,null,null,null,{"$f":"IF(OR(ISBLANK(B45),MAX(IF(MainName=Equipment_Inventory_List!B45,Hours))=0),\"\",MAX(IF(MainName=Equipment_Inventory_List!B45,Hours)))","v":""},{"$f":"IF(OR(ISBLANK(B45),MAX(IF(MainName=Equipment_Inventory_List!B45,JJdate))=0),\"\",MAX(IF(MainName=Equipment_Inventory_List!B45,JJdate)))","v":""}]
[44,null,null,null,null,null,null,null,null,null,null,null,{"$f":"IF(OR(ISBLANK(B46),MAX(IF(MainName=Equipment_Inventory_List!B46,Hours))=0),\"\",MAX(IF(MainName=Equipment_Inventory_List!B46,Hours)))","v":""},{"$f":"IF(OR(ISBLANK(B46),MAX(IF(MainName=Equipment_Inventory_List!B46,JJdate))=0),\"\",MAX(IF(MainName=Equipment_Inventory_List!B46,JJdate)))","v":""}]
[45,null,null,null,null,null,null,null,null,null,null,null,{"$f":"IF(OR(ISBLANK(B47),MAX(IF(MainName=Equipment_Inventory_List!B47,Hours))=0),\"\",MAX(IF(MainName=Equipment_Inventory_List!B47,Hours)))","v":""},{"$f":"IF(OR(ISBLANK(B47),MAX(IF(MainName=Equipment_Inventory_List!B47,JJdate))=0),\"\",MAX(IF(MainName=Equipment_Inventory_List!B47,JJdate)))","v":""}]
[46,null,null,null,null,null,null,null,null,null,null,null,{"$f":"IF(OR(ISBLANK(B48),MAX(IF(MainName=Equipment_Inventory_List!B48,Hours))=0),\"\",MAX(IF(MainName=Equipment_Inventory_List!B48,Hours)))","v":""},{"$f":"IF(OR(ISBLANK(B48),MAX(IF(MainName=Equipment_Inventory_List!B48,JJdate))=0),\"\",MAX(IF(MainName=Equipment_Inventory_List!B48,JJdate)))","v":""}]
[47,null,null,null,null,null,null,null,null,null,null,null,{"$f":"IF(OR(ISBLANK(B49),MAX(IF(MainName=Equipment_Inventory_List!B49,Hours))=0),\"\",MAX(IF(MainName=Equipment_Inventory_List!B49,Hours)))","v":""},{"$f":"IF(OR(ISBLANK(B49),MAX(IF(MainName=Equipment_Inventory_List!B49,JJdate))=0),\"\",MAX(IF(MainName=Equipment_Inventory_List!B49,JJdate)))","v":""}]
[48,null,null,null,null,null,null,null,null,null,null,null,{"$f":"IF(OR(ISBLANK(B50),MAX(IF(MainName=Equipment_Inventory_List!B50,Hours))=0),\"\",MAX(IF(MainName=Equipment_Inventory_List!B50,Hours)))","v":""},{"$f":"IF(OR(ISBLANK(B50),MAX(IF(MainName=Equipment_Inventory_List!B50,JJdate))=0),\"\",MAX(IF(MainName=Equipment_Inventory_List!B50,JJdate)))","v":""}]
[49,null,null,null,null,null,null,null,null,null,null,null,{"$f":"IF(OR(ISBLANK(B51),MAX(IF(MainName=Equipment_Inventory_List!B51,Hours))=0),\"\",MAX(IF(MainName=Equipment_Inventory_List!B51,Hours)))","v":""},{"$f":"IF(OR(ISBLANK(B51),MAX(IF(MainName=Equipment_Inventory_List!B51,JJdate))=0),\"\",MAX(IF(MainName=Equipment_Inventory_List!B51,JJdate)))","v":""}]
[50,null,null,null,null,null,null,null,null,null,null,null,{"$f":"IF(OR(ISBLANK(B52),MAX(IF(MainName=Equipment_Inventory_List!B52,Hours))=0),\"\",MAX(IF(MainName=Equipment_Inventory_List!B52,Hours)))","v":""},{"$f":"IF(OR(ISBLANK(B52),MAX(IF(MainName=Equipment_Inventory_List!B52,JJdate))=0),\"\",MAX(IF(MainName=Equipment_Inventory_List!B52,JJdate)))","v":""}]
[51,null,null,null,null,null,null,null,null,null,null,null,{"$f":"IF(OR(ISBLANK(B53),MAX(IF(MainName=Equipment_Inventory_List!B53,Hours))=0),\"\",MAX(IF(MainName=Equipment_Inventory_List!B53,Hours)))","v":""},{"$f":"IF(OR(ISBLANK(B53),MAX(IF(MainName=Equipment_Inventory_List!B53,JJdate))=0),\"\",MAX(IF(MainName=Equipment_Inventory_List!B53,JJdate)))","v":""}]
[52,null,null,null,null,null,null,null,null,null,null,null,{"$f":"IF(OR(ISBLANK(B54),MAX(IF(MainName=Equipment_Inventory_List!B54,Hours))=0),\"\",MAX(IF(MainName=Equipment_Inventory_List!B54,Hours)))","v":""},{"$f":"IF(OR(ISBLANK(B54),MAX(IF(MainName=Equipment_Inventory_List!B54,JJdate))=0),\"\",MAX(IF(MainName=Equipment_Inventory_List!B54,JJdate)))","v":""}]
[53,null,null,null,null,null,null,null,null,null,null,null,{"$f":"IF(OR(ISBLANK(B55),MAX(IF(MainName=Equipment_Inventory_List!B55,Hours))=0),\"\",MAX(IF(MainName=Equipment_Inventory_List!B55,Hours)))","v":""},{"$f":"IF(OR(ISBLANK(B55),MAX(IF(MainName=Equipment_Inventory_List!B55,JJdate))=0),\"\",MAX(IF(MainName=Equipment_Inventory_List!B55,JJdate)))","v":""}]
[54,null,null,null,null,null,null,null,null,null,null,null,{"$f":"IF(OR(ISBLANK(B56),MAX(IF(MainName=Equipment_Inventory_List!B56,Hours))=0),\"\",MAX(IF(MainName=Equipment_Inventory_List!B56,Hours)))","v":""},{"$f":"IF(OR(ISBLANK(B56),MAX(IF(MainName=Equipment_Inventory_List!B56,JJdate))=0),\"\",MAX(IF(MainName=Equipment_Inventory_List!B56,JJdate)))","v":""}]
[55,null,null,null,null,null,null,null,null,null,null,null,{"$f":"IF(OR(ISBLANK(B57),MAX(IF(MainName=Equipment_Inventory_List!B57,Hours))=0),\"\",MAX(IF(MainName=Equipment_Inventory_List!B57,Hours)))","v":""},{"$f":"IF(OR(ISBLANK(B57),MAX(IF(MainName=Equipment_Inventory_List!B57,JJdate))=0),\"\",MAX(IF(MainName=Equipment_Inventory_List!B57,JJdate)))","v":""}]
[56,null,null,null,null,null,null,null,null,null,null,null,{"$f":"IF(OR(ISBLANK(B58),MAX(IF(MainName=Equipment_Inventory_List!B58,Hours))=0),\"\",MAX(IF(MainName=Equipment_Inventory_List!B58,Hours)))","v":""},{"$f":"IF(OR(ISBLANK(B58),MAX(IF(MainName=Equipment_Inventory_List!B58,JJdate))=0),\"\",MAX(IF(MainName=Equipment_Inventory_List!B58,JJdate)))","v":""}]
[57,null,null,null,null,null,null,null,null,null,null,null,{"$f":"IF(OR(ISBLANK(B59),MAX(IF(MainName=Equipment_Inventory_List!B59,Hours))=0),\"\",MAX(IF(MainName=Equipment_Inventory_List!B59,Hours)))","v":""},{"$f":"IF(OR(ISBLANK(B59),MAX(IF(MainName=Equipment_Inventory_List!B59,JJdate))=0),\"\",MAX(IF(MainName=Equipment_Inventory_List!B59,JJdate)))","v":""}]
[58,null,null,null,null,null,null,null,null,null,null,null,{"$f":"IF(OR(ISBLANK(B60),MAX(IF(MainName=Equipment_Inventory_List!B60,Hours))=0),\"\",MAX(IF(MainName=Equipment_Inventory_List!B60,Hours)))","v":""},{"$f":"IF(OR(ISBLANK(B60),MAX(IF(MainName=Equipment_Inventory_List!B60,JJdate))=0),\"\",MAX(IF(MainName=Equipment_Inventory_List!B60,JJdate)))","v":""}]
[59,null,null,null,null,null,null,null,null,null,null,null,{"$f":"IF(OR(ISBLANK(B61),MAX(IF(MainName=Equipment_Inventory_List!B61,Hours))=0),\"\",MAX(IF(MainName=Equipment_Inventory_List!B61,Hours)))","v":""},{"$f":"IF(OR(ISBLANK(B61),MAX(IF(MainName=Equipment_Inventory_List!B61,JJdate))=0),\"\",MAX(IF(MainName=Equipment_Inventory_List!B61,JJdate)))","v":""}]
[60,null,null,null,null,null,null,null,null,null,null,null,{"$f":"IF(OR(ISBLANK(B62),MAX(IF(MainName=Equipment_Inventory_List!B62,Hours))=0),\"\",MAX(IF(MainName=Equipment_Inventory_List!B62,Hours)))","v":""},{"$f":"IF(OR(ISBLANK(B62),MAX(IF(MainName=Equipment_Inventory_List!B62,JJdate))=0),\"\",MAX(IF(MainName=Equipment_Inventory_List!B62,JJdate)))","v":""}]
[61,null,null,null,null,null,null,null,null,null,null,null,{"$f":"IF(OR(ISBLANK(B63),MAX(IF(MainName=Equipment_Inventory_List!B63,Hours))=0),\"\",MAX(IF(MainName=Equipment_Inventory_List!B63,Hours)))","v":""},{"$f":"IF(OR(ISBLANK(B63),MAX(IF(MainName=Equipment_Inventory_List!B63,JJdate))=0),\"\",MAX(IF(MainName=Equipment_Inventory_List!B63,JJdate)))","v":""}]
[62,null,null,null,null,null,null,null,null,null,null,null,{"$f":"IF(OR(ISBLANK(B64),MAX(IF(MainName=Equipment_Inventory_List!B64,Hours))=0),\"\",MAX(IF(MainName=Equipment_Inventory_List!B64,Hours)))","v":""},{"$f":"IF(OR(ISBLANK(B64),MAX(IF(MainName=Equipment_Inventory_List!B64,JJdate))=0),\"\",MAX(IF(MainName=Equipment_Inventory_List!B64,JJdate)))","v":""}]
[63,null,null,null,null,null,null,null,null,null,null,null,{"$f":"IF(OR(ISBLANK(B65),MAX(IF(MainName=Equipment_Inventory_List!B65,Hours))=0),\"\",MAX(IF(MainName=Equipment_Inventory_List!B65,Hours)))","v":""},{"$f":"IF(OR(ISBLANK(B65),MAX(IF(MainName=Equipment_Inventory_List!B65,JJdate))=0),\"\",MAX(IF(MainName=Equipment_Inventory_List!B65,JJdate)))","v":""}]
[64,null,null,null,null,null,null,null,null,null,null,null,{"$f":"IF(OR(ISBLANK(B66),MAX(IF(MainName=Equipment_Inventory_List!B66,Hours))=0),\"\",MAX(IF(MainName=Equipment_Inventory_List!B66,Hours)))","v":""},{"$f":"IF(OR(ISBLANK(B66),MAX(IF(MainName=Equipment_Inventory_List!B66,JJdate))=0),\"\",MAX(IF(MainName=Equipment_Inventory_List!B66,JJdate)))","v":""}]
[65,null,null,null,null,null,null,null,null,null,null,null,{"$f":"IF(OR(ISBLANK(B67),MAX(IF(MainName=Equipment_Inventory_List!B67,Hours))=0),\"\",MAX(IF(MainName=Equipment_Inventory_List!B67,Hours)))","v":""},{"$f":"IF(OR(ISBLANK(B67),MAX(IF(MainName=Equipment_Inventory_List!B67,JJdate))=0),\"\",MAX(IF(MainName=Equipment_Inventory_List!B67,JJdate)))","v":""}]
[66,null,null,null,null,null,null,null,null,null,null,null,{"$f":"IF(OR(ISBLANK(B68),MAX(IF(MainName=Equipment_Inventory_List!B68,Hours))=0),\"\",MAX(IF(MainName=Equipment_Inventory_List!B68,Hours)))","v":""},{"$f":"IF(OR(ISBLANK(B68),MAX(IF(MainName=Equipment_Inventory_List!B68,JJdate))=0),\"\",MAX(IF(MainName=Equipment_Inventory_List!B68,JJdate)))","v":""}]
[67,null,null,null,null,null,null,null,null,null,null,null,{"$f":"IF(OR(ISBLANK(B69),MAX(IF(MainName=Equipment_Inventory_List!B69,Hours))=0),\"\",MAX(IF(MainName=Equipment_Inventory_List!B69,Hours)))","v":""},{"$f":"IF(OR(ISBLANK(B69),MAX(IF(MainName=Equipment_Inventory_List!B69,JJdate))=0),\"\",MAX(IF(MainName=Equipment_Inventory_List!B69,JJdate)))","v":""}]
[68,null,null,null,null,null,null,null,null,null,null,null,{"$f":"IF(OR(ISBLANK(B70),MAX(IF(MainName=Equipment_Inventory_List!B70,Hours))=0),\"\",MAX(IF(MainName=Equipment_Inventory_List!B70,Hours)))","v":""},{"$f":"IF(OR(ISBLANK(B70),MAX(IF(MainName=Equipment_Inventory_List!B70,JJdate))=0),\"\",MAX(IF(MainName=Equipment_Inventory_List!B70,JJdate)))","v":""}]
[69,null,null,null,null,null,null,null,null,null,null,null,{"$f":"IF(OR(ISBLANK(B71),MAX(IF(MainName=Equipment_Inventory_List!B71,Hours))=0),\"\",MAX(IF(MainName=Equipment_Inventory_List!B71,Hours)))","v":""},{"$f":"IF(OR(ISBLANK(B71),MAX(IF(MainName=Equipment_Inventory_List!B71,JJdate))=0),\"\",MAX(IF(MainName=Equipment_Inventory_List!B71,JJdate)))","v":""}]
[70,null,null,null,null,null,null,null,null,null,null,null,{"$f":"IF(OR(ISBLANK(B72),MAX(IF(MainName=Equipment_Inventory_List!B72,Hours))=0),\"\",MAX(IF(MainName=Equipment_Inventory_List!B72,Hours)))","v":""},{"$f":"IF(OR(ISBLANK(B72),MAX(IF(MainName=Equipment_Inventory_List!B72,JJdate))=0),\"\",MAX(IF(MainName=Equipment_Inventory_List!B72,JJdate)))","v":""}]
[71,null,null,null,null,null,null,null,null,null,null,null,{"$f":"IF(OR(ISBLANK(B73),MAX(IF(MainName=Equipment_Inventory_List!B73,Hours))=0),\"\",MAX(IF(MainName=Equipment_Inventory_List!B73,Hours)))","v":""},{"$f":"IF(OR(ISBLANK(B73),MAX(IF(MainName=Equipment_Inventory_List!B73,JJdate))=0),\"\",MAX(IF(MainName=Equipment_Inventory_List!B73,JJdate)))","v":""}]
[72,null,null,null,null,null,null,null,null,null,null,null,{"$f":"IF(OR(ISBLANK(B74),MAX(IF(MainName=Equipment_Inventory_List!B74,Hours))=0),\"\",MAX(IF(MainName=Equipment_Inventory_List!B74,Hours)))","v":""},{"$f":"IF(OR(ISBLANK(B74),MAX(IF(MainName=Equipment_Inventory_List!B74,JJdate))=0),\"\",MAX(IF(MainName=Equipment_Inventory_List!B74,JJdate)))","v":""}]
[73,null,null,null,null,null,null,null,null,null,null,null,{"$f":"IF(OR(ISBLANK(B75),MAX(IF(MainName=Equipment_Inventory_List!B75,Hours))=0),\"\",MAX(IF(MainName=Equipment_Inventory_List!B75,Hours)))","v":""},{"$f":"IF(OR(ISBLANK(B75),MAX(IF(MainName=Equipment_Inventory_List!B75,JJdate))=0),\"\",MAX(IF(MainName=Equipment_Inventory_List!B75,JJdate)))","v":""}]
[74,null,null,null,null,null,null,null,null,null,null,null,{"$f":"IF(OR(ISBLANK(B76),MAX(IF(MainName=Equipment_Inventory_List!B76,Hours))=0),\"\",MAX(IF(MainName=Equipment_Inventory_List!B76,Hours)))","v":""},{"$f":"IF(OR(ISBLANK(B76),MAX(IF(MainName=Equipment_Inventory_List!B76,JJdate))=0),\"\",MAX(IF(MainName=Equipment_Inventory_List!B76,JJdate)))","v":""}]
[75,null,null,null,null,null,null,null,null,null,null,null,{"$f":"IF(OR(ISBLANK(B77),MAX(IF(MainName=Equipment_Inventory_List!B77,Hours))=0),\"\",MAX(IF(MainName=Equipment_Inventory_List!B77,Hours)))","v":""},{"$f":"IF(OR(ISBLANK(B77),MAX(IF(MainName=Equipment_Inventory_List!B77,JJdate))=0),\"\",MAX(IF(MainName=Equipment_Inventory_List!B77,JJdate)))","v":""}]
[76,null,null,null,null,null,null,null,null,null,null,null,{"$f":"IF(OR(ISBLANK(B78),MAX(IF(MainName=Equipment_Inventory_List!B78,Hours))=0),\"\",MAX(IF(MainName=Equipment_Inventory_List!B78,Hours)))","v":""},{"$f":"IF(OR(ISBLANK(B78),MAX(IF(MainName=Equipment_Inventory_List!B78,JJdate))=0),\"\",MAX(IF(MainName=Equipment_Inventory_List!B78,JJdate)))","v":""}]
[77,null,null,null,null,null,null,null,null,null,null,null,{"$f":"IF(OR(ISBLANK(B79),MAX(IF(MainName=Equipment_Inventory_List!B79,Hours))=0),\"\",MAX(IF(MainName=Equipment_Inventory_List!B79,Hours)))","v":""},{"$f":"IF(OR(ISBLANK(B79),MAX(IF(MainName=Equipment_Inventory_List!B79,JJdate))=0),\"\",MAX(IF(MainName=Equipment_Inventory_List!B79,JJdate)))","v":""}]
[78,null,null,null,null,null,null,null,null,null,null,null,{"$f":"IF(OR(ISBLANK(B80),MAX(IF(MainName=Equipment_Inventory_List!B80,Hours))=0),\"\",MAX(IF(MainName=Equipment_Inventory_List!B80,Hours)))","v":""},{"$f":"IF(OR(ISBLANK(B80),MAX(IF(MainName=Equipment_Inventory_List!B80,JJdate))=0),\"\",MAX(IF(MainName=Equipment_Inventory_List!B80,JJdate)))","v":""}]
[79,null,null,null,null,null,null,null,null,null,null,null,{"$f":"IF(OR(ISBLANK(B81),MAX(IF(MainName=Equipment_Inventory_List!B81,Hours))=0),\"\",MAX(IF(MainName=Equipment_Inventory_List!B81,Hours)))","v":""},{"$f":"IF(OR(ISBLANK(B81),MAX(IF(MainName=Equipment_Inventory_List!B81,JJdate))=0),\"\",MAX(IF(MainName=Equipment_Inventory_List!B81,JJdate)))","v":""}]
[80,null,null,null,null,null,null,null,null,null,null,null,{"$f":"IF(OR(ISBLANK(B82),MAX(IF(MainName=Equipment_Inventory_List!B82,Hours))=0),\"\",MAX(IF(MainName=Equipment_Inventory_List!B82,Hours)))","v":""},{"$f":"IF(OR(ISBLANK(B82),MAX(IF(MainName=Equipment_Inventory_List!B82,JJdate))=0),\"\",MAX(IF(MainName=Equipment_Inventory_List!B82,JJdate)))","v":""}]
[81,null,null,null,null,null,null,null,null,null,null,null,{"$f":"IF(OR(ISBLANK(B83),MAX(IF(MainName=Equipment_Inventory_List!B83,Hours))=0),\"\",MAX(IF(MainName=Equipment_Inventory_List!B83,Hours)))","v":""},{"$f":"IF(OR(ISBLANK(B83),MAX(IF(MainName=Equipment_Inventory_List!B83,JJdate))=0),\"\",MAX(IF(MainName=Equipment_Inventory_List!B83,JJdate)))","v":""}]
[82,null,null,null,null,null,null,null,null,null,null,null,{"$f":"IF(OR(ISBLANK(B84),MAX(IF(MainName=Equipment_Inventory_List!B84,Hours))=0),\"\",MAX(IF(MainName=Equipment_Inventory_List!B84,Hours)))","v":""},{"$f":"IF(OR(ISBLANK(B84),MAX(IF(MainName=Equipment_Inventory_List!B84,JJdate))=0),\"\",MAX(IF(MainName=Equipment_Inventory_List!B84,JJdate)))","v":""}]
[83,null,null,null,null,null,null,null,null,null,null,null,{"$f":"IF(OR(ISBLANK(B85),MAX(IF(MainName=Equipment_Inventory_List!B85,Hours))=0),\"\",MAX(IF(MainName=Equipment_Inventory_List!B85,Hours)))","v":""},{"$f":"IF(OR(ISBLANK(B85),MAX(IF(MainName=Equipment_Inventory_List!B85,JJdate))=0),\"\",MAX(IF(MainName=Equipment_Inventory_List!B85,JJdate)))","v":""}]
[84,null,null,null,null,null,null,null,null,null,null,null,{"$f":"IF(OR(ISBLANK(B86),MAX(IF(MainName=Equipment_Inventory_List!B86,Hours))=0),\"\",MAX(IF(MainName=Equipment_Inventory_List!B86,Hours)))","v":""},{"$f":"IF(OR(ISBLANK(B86),MAX(IF(MainName=Equipment_Inventory_List!B86,JJdate))=0),\"\",MAX(IF(MainName=Equipment_Inventory_List!B86,JJdate)))","v":""}]
[85,null,null,null,null,null,null,null,null,null,null,null,{"$f":"IF(OR(ISBLANK(B87),MAX(IF(MainName=Equipment_Inventory_List!B87,Hours))=0),\"\",MAX(IF(MainName=Equipment_Inventory_List!B87,Hours)))","v":""},{"$f":"IF(OR(ISBLANK(B87),MAX(IF(MainName=Equipment_Inventory_List!B87,JJdate))=0),\"\",MAX(IF(MainName=Equipment_Inventory_List!B87,JJdate)))","v":""}]
[86,null,null,null,null,null,null,null,null,null,null,null,{"$f":"IF(OR(ISBLANK(B88),MAX(IF(MainName=Equipment_Inventory_List!B88,Hours))=0),\"\",MAX(IF(MainName=Equipment_Inventory_List!B88,Hours)))","v":""},{"$f":"IF(OR(ISBLANK(B88),MAX(IF(MainName=Equipment_Inventory_List!B88,JJdate))=0),\"\",MAX(IF(MainName=Equipment_Inventory_List!B88,JJdate)))","v":""}]
[87,null,null,null,null,null,null,null,null,null,null,null,{"$f":"IF(OR(ISBLANK(B89),MAX(IF(MainName=Equipment_Inventory_List!B89,Hours))=0),\"\",MAX(IF(MainName=Equipment_Inventory_List!B89,Hours)))","v":""},{"$f":"IF(OR(ISBLANK(B89),MAX(IF(MainName=Equipment_Inventory_List!B89,JJdate))=0),\"\",MAX(IF(MainName=Equipment_Inventory_List!B89,JJdate)))","v":""}]
[88,null,null,null,null,null,null,null,null,null,null,null,{"$f":"IF(OR(ISBLANK(B90),MAX(IF(MainName=Equipment_Inventory_List!B90,Hours))=0),\"\",MAX(IF(MainName=Equipment_Inventory_List!B90,Hours)))","v":""},{"$f":"IF(OR(ISBLANK(B90),MAX(IF(MainName=Equipment_Inventory_List!B90,JJdate))=0),\"\",MAX(IF(MainName=Equipment_Inventory_List!B90,JJdate)))","v":""}]
[89,null,null,null,null,null,null,null,null,null,null,null,{"$f":"IF(OR(ISBLANK(B91),MAX(IF(MainName=Equipment_Inventory_List!B91,Hours))=0),\"\",MAX(IF(MainName=Equipment_Inventory_List!B91,Hours)))","v":""},{"$f":"IF(OR(ISBLANK(B91),MAX(IF(MainName=Equipment_Inventory_List!B91,JJdate))=0),\"\",MAX(IF(MainName=Equipment_Inventory_List!B91,JJdate)))","v":""}]
[90,null,null,null,null,null,null,null,null,null,null,null,{"$f":"IF(OR(ISBLANK(B92),MAX(IF(MainName=Equipment_Inventory_List!B92,Hours))=0),\"\",MAX(IF(MainName=Equipment_Inventory_List!B92,Hours)))","v":""},{"$f":"IF(OR(ISBLANK(B92),MAX(IF(MainName=Equipment_Inventory_List!B92,JJdate))=0),\"\",MAX(IF(MainName=Equipment_Inventory_List!B92,JJdate)))","v":""}]
[91,null,null,null,null,null,null,null,null,null,null,null,{"$f":"IF(OR(ISBLANK(B93),MAX(IF(MainName=Equipment_Inventory_List!B93,Hours))=0),\"\",MAX(IF(MainName=Equipment_Inventory_List!B93,Hours)))","v":""},{"$f":"IF(OR(ISBLANK(B93),MAX(IF(MainName=Equipment_Inventory_List!B93,JJdate))=0),\"\",MAX(IF(MainName=Equipment_Inventory_List!B93,JJdate)))","v":""}]
[92,null,null,null,null,null,null,null,null,null,null,null,{"$f":"IF(OR(ISBLANK(B94),MAX(IF(MainName=Equipment_Inventory_List!B94,Hours))=0),\"\",MAX(IF(MainName=Equipment_Inventory_List!B94,Hours)))","v":""},{"$f":"IF(OR(ISBLANK(B94),MAX(IF(MainName=Equipment_Inventory_List!B94,JJdate))=0),\"\",MAX(IF(MainName=Equipment_Inventory_List!B94,JJdate)))","v":""}]
[93,null,null,null,null,null,null,null,null,null,null,null,{"$f":"IF(OR(ISBLANK(B95),MAX(IF(MainName=Equipment_Inventory_List!B95,Hours))=0),\"\",MAX(IF(MainName=Equipment_Inventory_List!B95,Hours)))","v":""},{"$f":"IF(OR(ISBLANK(B95),MAX(IF(MainName=Equipment_Inventory_List!B95,JJdate))=0),\"\",MAX(IF(MainName=Equipment_Inventory_List!B95,JJdate)))","v":""}]
[94,null,null,null,null,null,null,null,null,null,null,null,{"$f":"IF(OR(ISBLANK(B96),MAX(IF(MainName=Equipment_Inventory_List!B96,Hours))=0),\"\",MAX(IF(MainName=Equipment_Inventory_List!B96,Hours)))","v":""},{"$f":"IF(OR(ISBLANK(B96),MAX(IF(MainName=Equipment_Inventory_List!B96,JJdate))=0),\"\",MAX(IF(MainName=Equipment_Inventory_List!B96,JJdate)))","v":""}]
[95,null,null,null,null,null,null,null,null,null,null,null,{"$f":"IF(OR(ISBLANK(B97),MAX(IF(MainName=Equipment_Inventory_List!B97,Hours))=0),\"\",MAX(IF(MainName=Equipment_Inventory_List!B97,Hours)))","v":""},{"$f":"IF(OR(ISBLANK(B97),MAX(IF(MainName=Equipment_Inventory_List!B97,JJdate))=0),\"\",MAX(IF(MainName=Equipment_Inventory_List!B97,JJdate)))","v":""}]
[96,null,null,null,null,null,null,null,null,null,null,null,{"$f":"IF(OR(ISBLANK(B98),MAX(IF(MainName=Equipment_Inventory_List!B98,Hours))=0),\"\",MAX(IF(MainName=Equipment_Inventory_List!B98,Hours)))","v":""},{"$f":"IF(OR(ISBLANK(B98),MAX(IF(MainName=Equipment_Inventory_List!B98,JJdate))=0),\"\",MAX(IF(MainName=Equipment_Inventory_List!B98,JJdate)))","v":""}]
[97,null,null,null,null,null,null,null,null,null,null,null,{"$f":"IF(OR(ISBLANK(B99),MAX(IF(MainName=Equipment_Inventory_List!B99,Hours))=0),\"\",MAX(IF(MainName=Equipment_Inventory_List!B99,Hours)))","v":""},{"$f":"IF(OR(ISBLANK(B99),MAX(IF(MainName=Equipment_Inventory_List!B99,JJdate))=0),\"\",MAX(IF(MainName=Equipment_Inventory_List!B99,JJdate)))","v":""}]
[98,null,null,null,null,null,null,null,null,null,null,null,{"$f":"IF(OR(ISBLANK(B100),MAX(IF(MainName=Equipment_Inventory_List!B100,Hours))=0),\"\",MAX(IF(MainName=Equipment_Inventory_List!B100,Hours)))","v":""},{"$f":"IF(OR(ISBLANK(B100),MAX(IF(MainName=Equipment_Inventory_List!B100,JJdate))=0),\"\",MAX(IF(MainName=Equipment_Inventory_List!B100,JJdate)))","v":""}]
[99,null,null,null,null,null,null,null,null,null,null,null,{"$f":"IF(OR(ISBLANK(B101),MAX(IF(MainName=Equipment_Inventory_List!B101,Hours))=0),\"\",MAX(IF(MainName=Equipment_Inventory_List!B101,Hours)))","v":""},{"$f":"IF(OR(ISBLANK(B101),MAX(IF(MainName=Equipment_Inventory_List!B101,JJdate))=0),\"\",MAX(IF(MainName=Equipment_Inventory_List!B101,JJdate)))","v":""}]
[100,null,null,null,null,null,null,null,null,null,null,null,{"$f":"IF(OR(ISBLANK(B102),MAX(IF(MainName=Equipment_Inventory_List!B102,Hours))=0),\"\",MAX(IF(MainName=Equipment_Inventory_List!B102,Hours)))","v":""},{"$f":"IF(OR(ISBLANK(B102),MAX(IF(MainName=Equipment_Inventory_List!B102,JJdate))=0),\"\",MAX(IF(MainName=Equipment_Inventory_List!B102,JJdate)))","v":""}]

{"sheet":"Mainenance log","index":2,"n_rows":0,"n_cols":0,"rows_kept":0,"cut":false,"hidden":false,"merged":[],"read":"part_too_large"}

{"sheet":"Charts","index":3,"n_rows":44,"n_cols":8,"rows_kept":44,"cut":false,"hidden":false,"merged":[]}
[]
[]
[]
[]
[null,null,null,"Sum of Cost","Column Labels"]
[null,null,null,"Row Labels","Basic Service","Repairs","(blank)","Grand Total"]
[null,null,null,"(blank)"]
[null,null,null,"Example Tractor 2",50,100,null,150]
[null,null,null,"Example Tractor 1",50,225,null,275]
[null,null,null,"Example Tractor 3",null,125,null,125]
[null,null,null,"Example discbine",null,400,null,400]
[null,null,null,"Example Small Spreader"]
[null,null,null,"Grand Total",100,850,null,950]
[]
[]
[]
[]
[]
[]
[]
[]
[]
[]
[]
[]
[null,null,"Row Labels","Sum of Cost"]
[null,null,"Example Tractor 2",40]
[null,null,"Example Tractor 1",50]
[null,null,"Example discbine",400]
[null,null,"Example Small Spreader"]
[null,null,"Grand Total",490]
[]
[]
[]
[]
[]
[]
[]
[null,"Service Done","Hydraulic Fluid Addition"]
[]
[null,"Row Labels","Sum of Gallons of Fluid Added"]
[null,"Example Tractor 2",2]
[null,"Example Tractor 1",1]
[null,"Grand Total",3]

{"sheet":"Annual Cost","index":4,"n_rows":5,"n_cols":8,"rows_kept":5,"cut":false,"hidden":false,"merged":[]}
[]
[]
[]
[null,"Year","Name of Equipment ","Annual Cost","Hydraulic Oil","Engine Oil","Coolant","Gear Oil"]
[null,2022,"Example Tractor 2",{"$f":"SUMIFS('Mainenance log'!I3:I1048576,'Mainenance log'!B3:B1048576,C5,'Mainenance log'!L3:L1048576,B5)","v":110},{"$f":"SUMIFS('Mainenance log'!$G$3:$G$1048576,'Mainenance log'!$B$3:$B$1048576,'Annual Cost'!$C$5,'Mainenance log'!$E$3:$E$1048576,'Type of Service List'!$B15,'Mainenance log'!$L$3:$L$1048576,'Annual Cost'!$B$5)","v":1},{"$f":"SUMIFS('Mainenance log'!$G$3:$G$1048576,'Mainenance log'!$B$3:$B$1048576,'Annual Cost'!$C$5,'Mainenance log'!$E$3:$E$1048576,'Type of Service List'!$B9,'Mainenance log'!$L$3:$L$1048576,'Annual Cost'!$B$5)+SUMIFS('Mainenance log'!$G$3:$G$1048576,'Mainenance log'!$B$3:$B$1048576,'Annual Cost'!$C$5,'Mainenance log'!$E$3:$E$1048576,'Type of Service List'!$B10,'Mainenance log'!$L$3:$L$1048576,'Annual Cost'!$B$5)","v":0},{"$f":"SUMIFS('Mainenance log'!$G$3:$G$1048576,'Mainenance log'!$B$3:$B$1048576,'Annual Cost'!$C$5,'Mainenance log'!$E$3:$E$1048576,'Type of Service List'!$B7,'Mainenance log'!$L$3:$L$1048576,'Annual Cost'!$B$5)+SUMIFS('Mainenance log'!$G$3:$G$1048576,'Mainenance log'!$B$3:$B$1048576,'Annual Cost'!$C$5,'Mainenance log'!$E$3:$E$1048576,'Type of Service List'!$B8,'Mainenance log'!$L$3:$L$1048576,'Annual Cost'!$B$5)","v":0},{"$f":"SUMIFS('Mainenance log'!$G$3:$G$1048576,'Mainenance log'!$B$3:$B$1048576,'Annual Cost'!$C$5,'Mainenance log'!$E$3:$E$1048576,'Type of Service List'!$B12,'Mainenance log'!$L$3:$L$1048576,'Annual Cost'!$B$5)","v":0}]

{"sheet":"Filter LIst","index":5,"n_rows":104,"n_cols":13,"rows_kept":104,"cut":false,"hidden":false,"merged":[]}
[]
[]
[]
[null,"Equipment Name","Engine Oil ","Hydraulic Oil","Gear Oil","Steer Fluid","Brake Fluid","Oil Filter 1","Fuel Filter","Air Filter","Hydraulic Filter","Oil Filter Cross Reference","Fuel Filter Cross Reference"]
[1,"Example Tractor 1","15W-40","iso-46","80-90","ISO-46",null,"Wix 1415"]
[2]
[3]
[4]
[5]
[6]
[7]
[8]
[9]
[10]
[11]
[12]
[13]
[14]
[15]
[16]
[17]
[18]
[19]
[20]
[21]
[22]
[23]
[24]
[25]
[26]
[27]
[28]
[29]
[30]
[31]
[32]
[33]
[34]
[35]
[36]
[37]
[38]
[39]
[40]
[41]
[42]
[43]
[44]
[45]
[46]
[47]
[48]
[49]
[50]
[51]
[52]
[53]
[54]
[55]
[56]
[57]
[58]
[59]
[60]
[61]
[62]
[63]
[64]
[65]
[66]
[67]
[68]
[69]
[70]
[71]
[72]
[73]
[74]
[75]
[76]
[77]
[78]
[79]
[80]
[81]
[82]
[83]
[84]
[85]
[86]
[87]
[88]
[89]
[90]
[91]
[92]
[93]
[94]
[95]
[96]
[97]
[98]
[99]
[100]

{"sheet":"Service Interval","index":6,"n_rows":105,"n_cols":21,"rows_kept":105,"cut":false,"hidden":false,"merged":[[3,3,3,10],[3,13,3,20],[2,11,2,20]]}
[]
[]
[null,null,null,null,null,null,null,null,null,null,null,"Flags for Service Required"]
[null,null,null,"Service Interval (Hours)",null,null,null,null,null,null,null,null,null,"Last Recorded Service Hours"]
[null,null,"Name of Equipment","Air filter","Coolant","Engine Oil Filter","Fuel Filter","Grease","Gear Oil","Hydraulic Filter","Transmission filter","Last Recorded Hours","Current  hours","Air filter","Coolant","Engine Oil Filter","Fuel Filter","Grease","Gear Oil","Hydraulic Filter","Transmission Filter"]
[null,1,"Example Tractor 2",200,600,200,600,10,null,200,null,{"$f":"IF(ISBLANK(C6),\"\",_xlfn.MAXIFS(Hours,MainName,C6))","v":6680},6800,{"$f":"IF(OR(ISBLANK(C6),ISBLANK(D6)),\"\",_xlfn.MAXIFS('Mainenance log'!$H$3:$H$1048576,'Mainenance log'!$B$3:$B$1048576,'Service Interval'!$C6,'Mainenance log'!$E$3:$E$1048576,'Type of Service List'!$B$5))","v":0},{"$f":"IF(OR(ISBLANK(C6),ISBLANK(E6)),\"\",_xlfn.MAXIFS('Mainenance log'!$H$3:$H$1048576,'Mainenance log'!$B$3:$B$1048576,'Service Interval'!$C6,'Mainenance log'!$E$3:$E$1048576,'Type of Service List'!$B$8))","v":0},{"$f":"IF(OR(ISBLANK(C6),ISBLANK(F6)),\"\",_xlfn.MAXIFS('Mainenance log'!$H$3:$H$1048576,'Mainenance log'!$B$3:$B$1048576,'Service Interval'!$C6,'Mainenance log'!$E$3:$E$1048576,'Type of Service List'!$B$10))","v":0},{"$f":"IF(OR(ISBLANK(C6),ISBLANK(G6)),\"\",_xlfn.MAXIFS('Mainenance log'!$H$3:$H$1048576,'Mainenance log'!$B$3:$B$1048576,'Service Interval'!$C6,'Mainenance log'!$E$3:$E$1048576,'Type of Service List'!$B$11))","v":0},{"$f":"IF(OR(ISBLANK(C6),ISBLANK(H6)),\"\",_xlfn.MAXIFS('Mainenance log'!$H$3:$H$1048576,'Mainenance log'!$B$3:$B$1048576,'Service Interval'!$C6,'Mainenance log'!$E$3:$E$1048576,'Type of Service List'!$B$13))","v":0},{"$f":"IF(OR(ISBLANK(C6),ISBLANK(I6)),\"\",_xlfn.MAXIFS('Mainenance log'!$H$3:$H$1048576,'Mainenance log'!$B$3:$B$1048576,'Service Interval'!$C6,'Mainenance log'!$E$3:$E$1048576,'Type of Service List'!$B$12))","v":""},{"$f":"IF(OR(ISBLANK(C6),ISBLANK(J6)),\"\",_xlfn.MAXIFS('Mainenance log'!$H$3:$H$1048576,'Mainenance log'!$B$3:$B$1048576,'Service Interval'!$C6,'Mainenance log'!$E$3:$E$1048576,'Type of Service List'!$B$14))","v":0},{"$f":"IF(OR(ISBLANK(C6),ISBLANK(K6)),\"\",_xlfn.MAXIFS('Mainenance log'!$H$3:$H$1048576,'Mainenance log'!$B$3:$B$1048576,'Service Interval'!$C6,'Mainenance log'!$E$3:$E$1048576,'Type of Service List'!$B$16))","v":""}]
[null,2,"Example Tractor 3",200,null,200,400,10,null,200,null,5500,6000,{"$f":"IF(OR(ISBLANK(C7),ISBLANK(D7)),\"\",_xlfn.MAXIFS('Mainenance log'!$H$3:$H$1048576,'Mainenance log'!$B$3:$B$1048576,'Service Interval'!$C7,'Mainenance log'!$E$3:$E$1048576,'Type of Service List'!$B$5))","v":0},{"$f":"IF(OR(ISBLANK(C7),ISBLANK(E7)),\"\",_xlfn.MAXIFS('Mainenance log'!$H$3:$H$1048576,'Mainenance log'!$B$3:$B$1048576,'Service Interval'!$C7,'Mainenance log'!$E$3:$E$1048576,'Type of Service List'!$B$8))","v":""},{"$f":"IF(OR(ISBLANK(C7),ISBLANK(F7)),\"\",_xlfn.MAXIFS('Mainenance log'!$H$3:$H$1048576,'Mainenance log'!$B$3:$B$1048576,'Service Interval'!$C7,'Mainenance log'!$E$3:$E$1048576,'Type of Service List'!$B$10))","v":0},{"$f":"IF(OR(ISBLANK(C7),ISBLANK(G7)),\"\",_xlfn.MAXIFS('Mainenance log'!$H$3:$H$1048576,'Mainenance log'!$B$3:$B$1048576,'Service Interval'!$C7,'Mainenance log'!$E$3:$E$1048576,'Type of Service List'!$B$11))","v":0},{"$f":"IF(OR(ISBLANK(C7),ISBLANK(H7)),\"\",_xlfn.MAXIFS('Mainenance log'!$H$3:$H$1048576,'Mainenance log'!$B$3:$B$1048576,'Service Interval'!$C7,'Mainenance log'!$E$3:$E$1048576,'Type of Service List'!$B$13))","v":0},{"$f":"IF(OR(ISBLANK(C7),ISBLANK(I7)),\"\",_xlfn.MAXIFS('Mainenance log'!$H$3:$H$1048576,'Mainenance log'!$B$3:$B$1048576,'Service Interval'!$C7,'Mainenance log'!$E$3:$E$1048576,'Type of Service List'!$B$12))","v":""},{"$f":"IF(OR(ISBLANK(C7),ISBLANK(J7)),\"\",_xlfn.MAXIFS('Mainenance log'!$H$3:$H$1048576,'Mainenance log'!$B$3:$B$1048576,'Service Interval'!$C7,'Mainenance log'!$E$3:$E$1048576,'Type of Service List'!$B$14))","v":0},{"$f":"IF(OR(ISBLANK(C7),ISBLANK(K7)),\"\",_xlfn.MAXIFS('Mainenance log'!$H$3:$H$1048576,'Mainenance log'!$B$3:$B$1048576,'Service Interval'!$C7,'Mainenance log'!$E$3:$E$1048576,'Type of Service List'!$B$16))","v":""}]
[null,3,"Example Tractor 1",200,600,200,400,10,20,200,400,4500,null,{"$f":"IF(OR(ISBLANK(C8),ISBLANK(D8)),\"\",_xlfn.MAXIFS('Mainenance log'!$H$3:$H$1048576,'Mainenance log'!$B$3:$B$1048576,'Service Interval'!$C8,'Mainenance log'!$E$3:$E$1048576,'Type of Service List'!$B$5))","v":0},{"$f":"IF(OR(ISBLANK(C8),ISBLANK(E8)),\"\",_xlfn.MAXIFS('Mainenance log'!$H$3:$H$1048576,'Mainenance log'!$B$3:$B$1048576,'Service Interval'!$C8,'Mainenance log'!$E$3:$E$1048576,'Type of Service List'!$B$8))","v":0},{"$f":"IF(OR(ISBLANK(C8),ISBLANK(F8)),\"\",_xlfn.MAXIFS('Mainenance log'!$H$3:$H$1048576,'Mainenance log'!$B$3:$B$1048576,'Service Interval'!$C8,'Mainenance log'!$E$3:$E$1048576,'Type of Service List'!$B$10))","v":0},{"$f":"IF(OR(ISBLANK(C8),ISBLANK(G8)),\"\",_xlfn.MAXIFS('Mainenance log'!$H$3:$H$1048576,'Mainenance log'!$B$3:$B$1048576,'Service Interval'!$C8,'Mainenance log'!$E$3:$E$1048576,'Type of Service List'!$B$11))","v":0},{"$f":"IF(OR(ISBLANK(C8),ISBLANK(H8)),\"\",_xlfn.MAXIFS('Mainenance log'!$H$3:$H$1048576,'Mainenance log'!$B$3:$B$1048576,'Service Interval'!$C8,'Mainenance log'!$E$3:$E$1048576,'Type of Service List'!$B$13))","v":0},{"$f":"IF(OR(ISBLANK(C8),ISBLANK(I8)),\"\",_xlfn.MAXIFS('Mainenance log'!$H$3:$H$1048576,'Mainenance log'!$B$3:$B$1048576,'Service Interval'!$C8,'Mainenance log'!$E$3:$E$1048576,'Type of Service List'!$B$12))","v":0},{"$f":"IF(OR(ISBLANK(C8),ISBLANK(J8)),\"\",_xlfn.MAXIFS('Mainenance log'!$H$3:$H$1048576,'Mainenance log'!$B$3:$B$1048576,'Service Interval'!$C8,'Mainenance log'!$E$3:$E$1048576,'Type of Service List'!$B$14))","v":4500},{"$f":"IF(OR(ISBLANK(C8),ISBLANK(K8)),\"\",_xlfn.MAXIFS('Mainenance log'!$H$3:$H$1048576,'Mainenance log'!$B$3:$B$1048576,'Service Interval'!$C8,'Mainenance log'!$E$3:$E$1048576,'Type of Service List'!$B$16))","v":0}]
[null,4,null,null,null,null,null,null,null,null,null,"",null,{"$f":"IF(OR(ISBLANK(C9),ISBLANK(D9)),\"\",_xlfn.MAXIFS('Mainenance log'!$H$3:$H$1048576,'Mainenance log'!$B$3:$B$1048576,'Service Interval'!$C9,'Mainenance log'!$E$3:$E$1048576,'Type of Service List'!$B$5))","v":""},{"$f":"IF(OR(ISBLANK(C9),ISBLANK(E9)),\"\",_xlfn.MAXIFS('Mainenance log'!$H$3:$H$1048576,'Mainenance log'!$B$3:$B$1048576,'Service Interval'!$C9,'Mainenance log'!$E$3:$E$1048576,'Type of Service List'!$B$8))","v":""},{"$f":"IF(OR(ISBLANK(C9),ISBLANK(F9)),\"\",_xlfn.MAXIFS('Mainenance log'!$H$3:$H$1048576,'Mainenance log'!$B$3:$B$1048576,'Service Interval'!$C9,'Mainenance log'!$E$3:$E$1048576,'Type of Service List'!$B$10))","v":""},{"$f":"IF(OR(ISBLANK(C9),ISBLANK(G9)),\"\",_xlfn.MAXIFS('Mainenance log'!$H$3:$H$1048576,'Mainenance log'!$B$3:$B$1048576,'Service Interval'!$C9,'Mainenance log'!$E$3:$E$1048576,'Type of Service List'!$B$11))","v":""},{"$f":"IF(OR(ISBLANK(C9),ISBLANK(H9)),\"\",_xlfn.MAXIFS('Mainenance log'!$H$3:$H$1048576,'Mainenance log'!$B$3:$B$1048576,'Service Interval'!$C9,'Mainenance log'!$E$3:$E$1048576,'Type of Service List'!$B$13))","v":""},{"$f":"IF(OR(ISBLANK(C9),ISBLANK(I9)),\"\",_xlfn.MAXIFS('Mainenance log'!$H$3:$H$1048576,'Mainenance log'!$B$3:$B$1048576,'Service Interval'!$C9,'Mainenance log'!$E$3:$E$1048576,'Type of Service List'!$B$12))","v":""},{"$f":"IF(OR(ISBLANK(C9),ISBLANK(J9)),\"\",_xlfn.MAXIFS('Mainenance log'!$H$3:$H$1048576,'Mainenance log'!$B$3:$B$1048576,'Service Interval'!$C9,'Mainenance log'!$E$3:$E$1048576,'Type of Service List'!$B$14))","v":""},{"$f":"IF(OR(ISBLANK(C9),ISBLANK(K9)),\"\",_xlfn.MAXIFS('Mainenance log'!$H$3:$H$1048576,'Mainenance log'!$B$3:$B$1048576,'Service Interval'!$C9,'Mainenance log'!$E$3:$E$1048576,'Type of Service List'!$B$16))","v":""}]
[null,5,null,null,null,null,null,null,null,null,null,"",null,{"$f":"IF(OR(ISBLANK(C10),ISBLANK(D10)),\"\",_xlfn.MAXIFS('Mainenance log'!$H$3:$H$1048576,'Mainenance log'!$B$3:$B$1048576,'Service Interval'!$C10,'Mainenance log'!$E$3:$E$1048576,'Type of Service List'!$B$5))","v":""},{"$f":"IF(OR(ISBLANK(C10),ISBLANK(E10)),\"\",_xlfn.MAXIFS('Mainenance log'!$H$3:$H$1048576,'Mainenance log'!$B$3:$B$1048576,'Service Interval'!$C10,'Mainenance log'!$E$3:$E$1048576,'Type of Service List'!$B$8))","v":""},{"$f":"IF(OR(ISBLANK(C10),ISBLANK(F10)),\"\",_xlfn.MAXIFS('Mainenance log'!$H$3:$H$1048576,'Mainenance log'!$B$3:$B$1048576,'Service Interval'!$C10,'Mainenance log'!$E$3:$E$1048576,'Type of Service List'!$B$10))","v":""},{"$f":"IF(OR(ISBLANK(C10),ISBLANK(G10)),\"\",_xlfn.MAXIFS('Mainenance log'!$H$3:$H$1048576,'Mainenance log'!$B$3:$B$1048576,'Service Interval'!$C10,'Mainenance log'!$E$3:$E$1048576,'Type of Service List'!$B$11))","v":""},{"$f":"IF(OR(ISBLANK(C10),ISBLANK(H10)),\"\",_xlfn.MAXIFS('Mainenance log'!$H$3:$H$1048576,'Mainenance log'!$B$3:$B$1048576,'Service Interval'!$C10,'Mainenance log'!$E$3:$E$1048576,'Type of Service List'!$B$13))","v":""},{"$f":"IF(OR(ISBLANK(C10),ISBLANK(I10)),\"\",_xlfn.MAXIFS('Mainenance log'!$H$3:$H$1048576,'Mainenance log'!$B$3:$B$1048576,'Service Interval'!$C10,'Mainenance log'!$E$3:$E$1048576,'Type of Service List'!$B$12))","v":""},{"$f":"IF(OR(ISBLANK(C10),ISBLANK(J10)),\"\",_xlfn.MAXIFS('Mainenance log'!$H$3:$H$1048576,'Mainenance log'!$B$3:$B$1048576,'Service Interval'!$C10,'Mainenance log'!$E$3:$E$1048576,'Type of Service List'!$B$14))","v":""},{"$f":"IF(OR(ISBLANK(C10),ISBLANK(K10)),\"\",_xlfn.MAXIFS('Mainenance log'!$H$3:$H$1048576,'Mainenance log'!$B$3:$B$1048576,'Service Interval'!$C10,'Mainenance log'!$E$3:$E$1048576,'Type of Service List'!$B$16))","v":""}]
[null,6,null,null,null,null,null,null,null,null,null,"",null,{"$f":"IF(OR(ISBLANK(C11),ISBLANK(D11)),\"\",_xlfn.MAXIFS('Mainenance log'!$H$3:$H$1048576,'Mainenance log'!$B$3:$B$1048576,'Service Interval'!$C11,'Mainenance log'!$E$3:$E$1048576,'Type of Service List'!$B$5))","v":""},{"$f":"IF(OR(ISBLANK(C11),ISBLANK(E11)),\"\",_xlfn.MAXIFS('Mainenance log'!$H$3:$H$1048576,'Mainenance log'!$B$3:$B$1048576,'Service Interval'!$C11,'Mainenance log'!$E$3:$E$1048576,'Type of Service List'!$B$8))","v":""},{"$f":"IF(OR(ISBLANK(C11),ISBLANK(F11)),\"\",_xlfn.MAXIFS('Mainenance log'!$H$3:$H$1048576,'Mainenance log'!$B$3:$B$1048576,'Service Interval'!$C11,'Mainenance log'!$E$3:$E$1048576,'Type of Service List'!$B$10))","v":""},{"$f":"IF(OR(ISBLANK(C11),ISBLANK(G11)),\"\",_xlfn.MAXIFS('Mainenance log'!$H$3:$H$1048576,'Mainenance log'!$B$3:$B$1048576,'Service Interval'!$C11,'Mainenance log'!$E$3:$E$1048576,'Type of Service List'!$B$11))","v":""},{"$f":"IF(OR(ISBLANK(C11),ISBLANK(H11)),\"\",_xlfn.MAXIFS('Mainenance log'!$H$3:$H$1048576,'Mainenance log'!$B$3:$B$1048576,'Service Interval'!$C11,'Mainenance log'!$E$3:$E$1048576,'Type of Service List'!$B$13))","v":""},{"$f":"IF(OR(ISBLANK(C11),ISBLANK(I11)),\"\",_xlfn.MAXIFS('Mainenance log'!$H$3:$H$1048576,'Mainenance log'!$B$3:$B$1048576,'Service Interval'!$C11,'Mainenance log'!$E$3:$E$1048576,'Type of Service List'!$B$12))","v":""},{"$f":"IF(OR(ISBLANK(C11),ISBLANK(J11)),\"\",_xlfn.MAXIFS('Mainenance log'!$H$3:$H$1048576,'Mainenance log'!$B$3:$B$1048576,'Service Interval'!$C11,'Mainenance log'!$E$3:$E$1048576,'Type of Service List'!$B$14))","v":""},{"$f":"IF(OR(ISBLANK(C11),ISBLANK(K11)),\"\",_xlfn.MAXIFS('Mainenance log'!$H$3:$H$1048576,'Mainenance log'!$B$3:$B$1048576,'Service Interval'!$C11,'Mainenance log'!$E$3:$E$1048576,'Type of Service List'!$B$16))","v":""}]
[null,7,null,null,null,null,null,null,null,null,null,"",null,{"$f":"IF(OR(ISBLANK(C12),ISBLANK(D12)),\"\",_xlfn.MAXIFS('Mainenance log'!$H$3:$H$1048576,'Mainenance log'!$B$3:$B$1048576,'Service Interval'!$C12,'Mainenance log'!$E$3:$E$1048576,'Type of Service List'!$B$5))","v":""},{"$f":"IF(OR(ISBLANK(C12),ISBLANK(E12)),\"\",_xlfn.MAXIFS('Mainenance log'!$H$3:$H$1048576,'Mainenance log'!$B$3:$B$1048576,'Service Interval'!$C12,'Mainenance log'!$E$3:$E$1048576,'Type of Service List'!$B$8))","v":""},{"$f":"IF(OR(ISBLANK(C12),ISBLANK(F12)),\"\",_xlfn.MAXIFS('Mainenance log'!$H$3:$H$1048576,'Mainenance log'!$B$3:$B$1048576,'Service Interval'!$C12,'Mainenance log'!$E$3:$E$1048576,'Type of Service List'!$B$10))","v":""},{"$f":"IF(OR(ISBLANK(C12),ISBLANK(G12)),\"\",_xlfn.MAXIFS('Mainenance log'!$H$3:$H$1048576,'Mainenance log'!$B$3:$B$1048576,'Service Interval'!$C12,'Mainenance log'!$E$3:$E$1048576,'Type of Service List'!$B$11))","v":""},{"$f":"IF(OR(ISBLANK(C12),ISBLANK(H12)),\"\",_xlfn.MAXIFS('Mainenance log'!$H$3:$H$1048576,'Mainenance log'!$B$3:$B$1048576,'Service Interval'!$C12,'Mainenance log'!$E$3:$E$1048576,'Type of Service List'!$B$13))","v":""},{"$f":"IF(OR(ISBLANK(C12),ISBLANK(I12)),\"\",_xlfn.MAXIFS('Mainenance log'!$H$3:$H$1048576,'Mainenance log'!$B$3:$B$1048576,'Service Interval'!$C12,'Mainenance log'!$E$3:$E$1048576,'Type of Service List'!$B$12))","v":""},{"$f":"IF(OR(ISBLANK(C12),ISBLANK(J12)),\"\",_xlfn.MAXIFS('Mainenance log'!$H$3:$H$1048576,'Mainenance log'!$B$3:$B$1048576,'Service Interval'!$C12,'Mainenance log'!$E$3:$E$1048576,'Type of Service List'!$B$14))","v":""},{"$f":"IF(OR(ISBLANK(C12),ISBLANK(K12)),\"\",_xlfn.MAXIFS('Mainenance log'!$H$3:$H$1048576,'Mainenance log'!$B$3:$B$1048576,'Service Interval'!$C12,'Mainenance log'!$E$3:$E$1048576,'Type of Service List'!$B$16))","v":""}]
[null,8,null,null,null,null,null,null,null,null,null,"",null,{"$f":"IF(OR(ISBLANK(C13),ISBLANK(D13)),\"\",_xlfn.MAXIFS('Mainenance log'!$H$3:$H$1048576,'Mainenance log'!$B$3:$B$1048576,'Service Interval'!$C13,'Mainenance log'!$E$3:$E$1048576,'Type of Service List'!$B$5))","v":""},{"$f":"IF(OR(ISBLANK(C13),ISBLANK(E13)),\"\",_xlfn.MAXIFS('Mainenance log'!$H$3:$H$1048576,'Mainenance log'!$B$3:$B$1048576,'Service Interval'!$C13,'Mainenance log'!$E$3:$E$1048576,'Type of Service List'!$B$8))","v":""},{"$f":"IF(OR(ISBLANK(C13),ISBLANK(F13)),\"\",_xlfn.MAXIFS('Mainenance log'!$H$3:$H$1048576,'Mainenance log'!$B$3:$B$1048576,'Service Interval'!$C13,'Mainenance log'!$E$3:$E$1048576,'Type of Service List'!$B$10))","v":""},{"$f":"IF(OR(ISBLANK(C13),ISBLANK(G13)),\"\",_xlfn.MAXIFS('Mainenance log'!$H$3:$H$1048576,'Mainenance log'!$B$3:$B$1048576,'Service Interval'!$C13,'Mainenance log'!$E$3:$E$1048576,'Type of Service List'!$B$11))","v":""},{"$f":"IF(OR(ISBLANK(C13),ISBLANK(H13)),\"\",_xlfn.MAXIFS('Mainenance log'!$H$3:$H$1048576,'Mainenance log'!$B$3:$B$1048576,'Service Interval'!$C13,'Mainenance log'!$E$3:$E$1048576,'Type of Service List'!$B$13))","v":""},{"$f":"IF(OR(ISBLANK(C13),ISBLANK(I13)),\"\",_xlfn.MAXIFS('Mainenance log'!$H$3:$H$1048576,'Mainenance log'!$B$3:$B$1048576,'Service Interval'!$C13,'Mainenance log'!$E$3:$E$1048576,'Type of Service List'!$B$12))","v":""},{"$f":"IF(OR(ISBLANK(C13),ISBLANK(J13)),\"\",_xlfn.MAXIFS('Mainenance log'!$H$3:$H$1048576,'Mainenance log'!$B$3:$B$1048576,'Service Interval'!$C13,'Mainenance log'!$E$3:$E$1048576,'Type of Service List'!$B$14))","v":""},{"$f":"IF(OR(ISBLANK(C13),ISBLANK(K13)),\"\",_xlfn.MAXIFS('Mainenance log'!$H$3:$H$1048576,'Mainenance log'!$B$3:$B$1048576,'Service Interval'!$C13,'Mainenance log'!$E$3:$E$1048576,'Type of Service List'!$B$16))","v":""}]
[null,9,null,null,null,null,null,null,null,null,null,"",null,{"$f":"IF(OR(ISBLANK(C14),ISBLANK(D14)),\"\",_xlfn.MAXIFS('Mainenance log'!$H$3:$H$1048576,'Mainenance log'!$B$3:$B$1048576,'Service Interval'!$C14,'Mainenance log'!$E$3:$E$1048576,'Type of Service List'!$B$5))","v":""},{"$f":"IF(OR(ISBLANK(C14),ISBLANK(E14)),\"\",_xlfn.MAXIFS('Mainenance log'!$H$3:$H$1048576,'Mainenance log'!$B$3:$B$1048576,'Service Interval'!$C14,'Mainenance log'!$E$3:$E$1048576,'Type of Service List'!$B$8))","v":""},{"$f":"IF(OR(ISBLANK(C14),ISBLANK(F14)),\"\",_xlfn.MAXIFS('Mainenance log'!$H$3:$H$1048576,'Mainenance log'!$B$3:$B$1048576,'Service Interval'!$C14,'Mainenance log'!$E$3:$E$1048576,'Type of Service List'!$B$10))","v":""},{"$f":"IF(OR(ISBLANK(C14),ISBLANK(G14)),\"\",_xlfn.MAXIFS('Mainenance log'!$H$3:$H$1048576,'Mainenance log'!$B$3:$B$1048576,'Service Interval'!$C14,'Mainenance log'!$E$3:$E$1048576,'Type of Service List'!$B$11))","v":""},{"$f":"IF(OR(ISBLANK(C14),ISBLANK(H14)),\"\",_xlfn.MAXIFS('Mainenance log'!$H$3:$H$1048576,'Mainenance log'!$B$3:$B$1048576,'Service Interval'!$C14,'Mainenance log'!$E$3:$E$1048576,'Type of Service List'!$B$13))","v":""},{"$f":"IF(OR(ISBLANK(C14),ISBLANK(I14)),\"\",_xlfn.MAXIFS('Mainenance log'!$H$3:$H$1048576,'Mainenance log'!$B$3:$B$1048576,'Service Interval'!$C14,'Mainenance log'!$E$3:$E$1048576,'Type of Service List'!$B$12))","v":""},{"$f":"IF(OR(ISBLANK(C14),ISBLANK(J14)),\"\",_xlfn.MAXIFS('Mainenance log'!$H$3:$H$1048576,'Mainenance log'!$B$3:$B$1048576,'Service Interval'!$C14,'Mainenance log'!$E$3:$E$1048576,'Type of Service List'!$B$14))","v":""},{"$f":"IF(OR(ISBLANK(C14),ISBLANK(K14)),\"\",_xlfn.MAXIFS('Mainenance log'!$H$3:$H$1048576,'Mainenance log'!$B$3:$B$1048576,'Service Interval'!$C14,'Mainenance log'!$E$3:$E$1048576,'Type of Service List'!$B$16))","v":""}]
[null,10,null,null,null,null,null,null,null,null,null,"",null,{"$f":"IF(OR(ISBLANK(C15),ISBLANK(D15)),\"\",_xlfn.MAXIFS('Mainenance log'!$H$3:$H$1048576,'Mainenance log'!$B$3:$B$1048576,'Service Interval'!$C15,'Mainenance log'!$E$3:$E$1048576,'Type of Service List'!$B$5))","v":""},{"$f":"IF(OR(ISBLANK(C15),ISBLANK(E15)),\"\",_xlfn.MAXIFS('Mainenance log'!$H$3:$H$1048576,'Mainenance log'!$B$3:$B$1048576,'Service Interval'!$C15,'Mainenance log'!$E$3:$E$1048576,'Type of Service List'!$B$8))","v":""},{"$f":"IF(OR(ISBLANK(C15),ISBLANK(F15)),\"\",_xlfn.MAXIFS('Mainenance log'!$H$3:$H$1048576,'Mainenance log'!$B$3:$B$1048576,'Service Interval'!$C15,'Mainenance log'!$E$3:$E$1048576,'Type of Service List'!$B$10))","v":""},{"$f":"IF(OR(ISBLANK(C15),ISBLANK(G15)),\"\",_xlfn.MAXIFS('Mainenance log'!$H$3:$H$1048576,'Mainenance log'!$B$3:$B$1048576,'Service Interval'!$C15,'Mainenance log'!$E$3:$E$1048576,'Type of Service List'!$B$11))","v":""},{"$f":"IF(OR(ISBLANK(C15),ISBLANK(H15)),\"\",_xlfn.MAXIFS('Mainenance log'!$H$3:$H$1048576,'Mainenance log'!$B$3:$B$1048576,'Service Interval'!$C15,'Mainenance log'!$E$3:$E$1048576,'Type of Service List'!$B$13))","v":""},{"$f":"IF(OR(ISBLANK(C15),ISBLANK(I15)),\"\",_xlfn.MAXIFS('Mainenance log'!$H$3:$H$1048576,'Mainenance log'!$B$3:$B$1048576,'Service Interval'!$C15,'Mainenance log'!$E$3:$E$1048576,'Type of Service List'!$B$12))","v":""},{"$f":"IF(OR(ISBLANK(C15),ISBLANK(J15)),\"\",_xlfn.MAXIFS('Mainenance log'!$H$3:$H$1048576,'Mainenance log'!$B$3:$B$1048576,'Service Interval'!$C15,'Mainenance log'!$E$3:$E$1048576,'Type of Service List'!$B$14))","v":""},{"$f":"IF(OR(ISBLANK(C15),ISBLANK(K15)),\"\",_xlfn.MAXIFS('Mainenance log'!$H$3:$H$1048576,'Mainenance log'!$B$3:$B$1048576,'Service Interval'!$C15,'Mainenance log'!$E$3:$E$1048576,'Type of Service List'!$B$16))","v":""}]
[null,11,null,null,null,null,null,null,null,null,null,"",null,{"$f":"IF(OR(ISBLANK(C16),ISBLANK(D16)),\"\",_xlfn.MAXIFS('Mainenance log'!$H$3:$H$1048576,'Mainenance log'!$B$3:$B$1048576,'Service Interval'!$C16,'Mainenance log'!$E$3:$E$1048576,'Type of Service List'!$B$5))","v":""},{"$f":"IF(OR(ISBLANK(C16),ISBLANK(E16)),\"\",_xlfn.MAXIFS('Mainenance log'!$H$3:$H$1048576,'Mainenance log'!$B$3:$B$1048576,'Service Interval'!$C16,'Mainenance log'!$E$3:$E$1048576,'Type of Service List'!$B$8))","v":""},{"$f":"IF(OR(ISBLANK(C16),ISBLANK(F16)),\"\",_xlfn.MAXIFS('Mainenance log'!$H$3:$H$1048576,'Mainenance log'!$B$3:$B$1048576,'Service Interval'!$C16,'Mainenance log'!$E$3:$E$1048576,'Type of Service List'!$B$10))","v":""},{"$f":"IF(OR(ISBLANK(C16),ISBLANK(G16)),\"\",_xlfn.MAXIFS('Mainenance log'!$H$3:$H$1048576,'Mainenance log'!$B$3:$B$1048576,'Service Interval'!$C16,'Mainenance log'!$E$3:$E$1048576,'Type of Service List'!$B$11))","v":""},{"$f":"IF(OR(ISBLANK(C16),ISBLANK(H16)),\"\",_xlfn.MAXIFS('Mainenance log'!$H$3:$H$1048576,'Mainenance log'!$B$3:$B$1048576,'Service Interval'!$C16,'Mainenance log'!$E$3:$E$1048576,'Type of Service List'!$B$13))","v":""},{"$f":"IF(OR(ISBLANK(C16),ISBLANK(I16)),\"\",_xlfn.MAXIFS('Mainenance log'!$H$3:$H$1048576,'Mainenance log'!$B$3:$B$1048576,'Service Interval'!$C16,'Mainenance log'!$E$3:$E$1048576,'Type of Service List'!$B$12))","v":""},{"$f":"IF(OR(ISBLANK(C16),ISBLANK(J16)),\"\",_xlfn.MAXIFS('Mainenance log'!$H$3:$H$1048576,'Mainenance log'!$B$3:$B$1048576,'Service Interval'!$C16,'Mainenance log'!$E$3:$E$1048576,'Type of Service List'!$B$14))","v":""},{"$f":"IF(OR(ISBLANK(C16),ISBLANK(K16)),\"\",_xlfn.MAXIFS('Mainenance log'!$H$3:$H$1048576,'Mainenance log'!$B$3:$B$1048576,'Service Interval'!$C16,'Mainenance log'!$E$3:$E$1048576,'Type of Service List'!$B$16))","v":""}]
[null,12,null,null,null,null,null,null,null,null,null,"",null,{"$f":"IF(OR(ISBLANK(C17),ISBLANK(D17)),\"\",_xlfn.MAXIFS('Mainenance log'!$H$3:$H$1048576,'Mainenance log'!$B$3:$B$1048576,'Service Interval'!$C17,'Mainenance log'!$E$3:$E$1048576,'Type of Service List'!$B$5))","v":""},{"$f":"IF(OR(ISBLANK(C17),ISBLANK(E17)),\"\",_xlfn.MAXIFS('Mainenance log'!$H$3:$H$1048576,'Mainenance log'!$B$3:$B$1048576,'Service Interval'!$C17,'Mainenance log'!$E$3:$E$1048576,'Type of Service List'!$B$8))","v":""},{"$f":"IF(OR(ISBLANK(C17),ISBLANK(F17)),\"\",_xlfn.MAXIFS('Mainenance log'!$H$3:$H$1048576,'Mainenance log'!$B$3:$B$1048576,'Service Interval'!$C17,'Mainenance log'!$E$3:$E$1048576,'Type of Service List'!$B$10))","v":""},{"$f":"IF(OR(ISBLANK(C17),ISBLANK(G17)),\"\",_xlfn.MAXIFS('Mainenance log'!$H$3:$H$1048576,'Mainenance log'!$B$3:$B$1048576,'Service Interval'!$C17,'Mainenance log'!$E$3:$E$1048576,'Type of Service List'!$B$11))","v":""},{"$f":"IF(OR(ISBLANK(C17),ISBLANK(H17)),\"\",_xlfn.MAXIFS('Mainenance log'!$H$3:$H$1048576,'Mainenance log'!$B$3:$B$1048576,'Service Interval'!$C17,'Mainenance log'!$E$3:$E$1048576,'Type of Service List'!$B$13))","v":""},{"$f":"IF(OR(ISBLANK(C17),ISBLANK(I17)),\"\",_xlfn.MAXIFS('Mainenance log'!$H$3:$H$1048576,'Mainenance log'!$B$3:$B$1048576,'Service Interval'!$C17,'Mainenance log'!$E$3:$E$1048576,'Type of Service List'!$B$12))","v":""},{"$f":"IF(OR(ISBLANK(C17),ISBLANK(J17)),\"\",_xlfn.MAXIFS('Mainenance log'!$H$3:$H$1048576,'Mainenance log'!$B$3:$B$1048576,'Service Interval'!$C17,'Mainenance log'!$E$3:$E$1048576,'Type of Service List'!$B$14))","v":""},{"$f":"IF(OR(ISBLANK(C17),ISBLANK(K17)),\"\",_xlfn.MAXIFS('Mainenance log'!$H$3:$H$1048576,'Mainenance log'!$B$3:$B$1048576,'Service Interval'!$C17,'Mainenance log'!$E$3:$E$1048576,'Type of Service List'!$B$16))","v":""}]
[null,13,null,null,null,null,null,null,null,null,null,"",null,{"$f":"IF(OR(ISBLANK(C18),ISBLANK(D18)),\"\",_xlfn.MAXIFS('Mainenance log'!$H$3:$H$1048576,'Mainenance log'!$B$3:$B$1048576,'Service Interval'!$C18,'Mainenance log'!$E$3:$E$1048576,'Type of Service List'!$B$5))","v":""},{"$f":"IF(OR(ISBLANK(C18),ISBLANK(E18)),\"\",_xlfn.MAXIFS('Mainenance log'!$H$3:$H$1048576,'Mainenance log'!$B$3:$B$1048576,'Service Interval'!$C18,'Mainenance log'!$E$3:$E$1048576,'Type of Service List'!$B$8))","v":""},{"$f":"IF(OR(ISBLANK(C18),ISBLANK(F18)),\"\",_xlfn.MAXIFS('Mainenance log'!$H$3:$H$1048576,'Mainenance log'!$B$3:$B$1048576,'Service Interval'!$C18,'Mainenance log'!$E$3:$E$1048576,'Type of Service List'!$B$10))","v":""},{"$f":"IF(OR(ISBLANK(C18),ISBLANK(G18)),\"\",_xlfn.MAXIFS('Mainenance log'!$H$3:$H$1048576,'Mainenance log'!$B$3:$B$1048576,'Service Interval'!$C18,'Mainenance log'!$E$3:$E$1048576,'Type of Service List'!$B$11))","v":""},{"$f":"IF(OR(ISBLANK(C18),ISBLANK(H18)),\"\",_xlfn.MAXIFS('Mainenance log'!$H$3:$H$1048576,'Mainenance log'!$B$3:$B$1048576,'Service Interval'!$C18,'Mainenance log'!$E$3:$E$1048576,'Type of Service List'!$B$13))","v":""},{"$f":"IF(OR(ISBLANK(C18),ISBLANK(I18)),\"\",_xlfn.MAXIFS('Mainenance log'!$H$3:$H$1048576,'Mainenance log'!$B$3:$B$1048576,'Service Interval'!$C18,'Mainenance log'!$E$3:$E$1048576,'Type of Service List'!$B$12))","v":""},{"$f":"IF(OR(ISBLANK(C18),ISBLANK(J18)),\"\",_xlfn.MAXIFS('Mainenance log'!$H$3:$H$1048576,'Mainenance log'!$B$3:$B$1048576,'Service Interval'!$C18,'Mainenance log'!$E$3:$E$1048576,'Type of Service List'!$B$14))","v":""},{"$f":"IF(OR(ISBLANK(C18),ISBLANK(K18)),\"\",_xlfn.MAXIFS('Mainenance log'!$H$3:$H$1048576,'Mainenance log'!$B$3:$B$1048576,'Service Interval'!$C18,'Mainenance log'!$E$3:$E$1048576,'Type of Service List'!$B$16))","v":""}]
[null,14,null,null,null,null,null,null,null,null,null,"",null,{"$f":"IF(OR(ISBLANK(C19),ISBLANK(D19)),\"\",_xlfn.MAXIFS('Mainenance log'!$H$3:$H$1048576,'Mainenance log'!$B$3:$B$1048576,'Service Interval'!$C19,'Mainenance log'!$E$3:$E$1048576,'Type of Service List'!$B$5))","v":""},{"$f":"IF(OR(ISBLANK(C19),ISBLANK(E19)),\"\",_xlfn.MAXIFS('Mainenance log'!$H$3:$H$1048576,'Mainenance log'!$B$3:$B$1048576,'Service Interval'!$C19,'Mainenance log'!$E$3:$E$1048576,'Type of Service List'!$B$8))","v":""},{"$f":"IF(OR(ISBLANK(C19),ISBLANK(F19)),\"\",_xlfn.MAXIFS('Mainenance log'!$H$3:$H$1048576,'Mainenance log'!$B$3:$B$1048576,'Service Interval'!$C19,'Mainenance log'!$E$3:$E$1048576,'Type of Service List'!$B$10))","v":""},{"$f":"IF(OR(ISBLANK(C19),ISBLANK(G19)),\"\",_xlfn.MAXIFS('Mainenance log'!$H$3:$H$1048576,'Mainenance log'!$B$3:$B$1048576,'Service Interval'!$C19,'Mainenance log'!$E$3:$E$1048576,'Type of Service List'!$B$11))","v":""},{"$f":"IF(OR(ISBLANK(C19),ISBLANK(H19)),\"\",_xlfn.MAXIFS('Mainenance log'!$H$3:$H$1048576,'Mainenance log'!$B$3:$B$1048576,'Service Interval'!$C19,'Mainenance log'!$E$3:$E$1048576,'Type of Service List'!$B$13))","v":""},{"$f":"IF(OR(ISBLANK(C19),ISBLANK(I19)),\"\",_xlfn.MAXIFS('Mainenance log'!$H$3:$H$1048576,'Mainenance log'!$B$3:$B$1048576,'Service Interval'!$C19,'Mainenance log'!$E$3:$E$1048576,'Type of Service List'!$B$12))","v":""},{"$f":"IF(OR(ISBLANK(C19),ISBLANK(J19)),\"\",_xlfn.MAXIFS('Mainenance log'!$H$3:$H$1048576,'Mainenance log'!$B$3:$B$1048576,'Service Interval'!$C19,'Mainenance log'!$E$3:$E$1048576,'Type of Service List'!$B$14))","v":""},{"$f":"IF(OR(ISBLANK(C19),ISBLANK(K19)),\"\",_xlfn.MAXIFS('Mainenance log'!$H$3:$H$1048576,'Mainenance log'!$B$3:$B$1048576,'Service Interval'!$C19,'Mainenance log'!$E$3:$E$1048576,'Type of Service List'!$B$16))","v":""}]
[null,15,null,null,null,null,null,null,null,null,null,"",null,{"$f":"IF(OR(ISBLANK(C20),ISBLANK(D20)),\"\",_xlfn.MAXIFS('Mainenance log'!$H$3:$H$1048576,'Mainenance log'!$B$3:$B$1048576,'Service Interval'!$C20,'Mainenance log'!$E$3:$E$1048576,'Type of Service List'!$B$5))","v":""},{"$f":"IF(OR(ISBLANK(C20),ISBLANK(E20)),\"\",_xlfn.MAXIFS('Mainenance log'!$H$3:$H$1048576,'Mainenance log'!$B$3:$B$1048576,'Service Interval'!$C20,'Mainenance log'!$E$3:$E$1048576,'Type of Service List'!$B$8))","v":""},{"$f":"IF(OR(ISBLANK(C20),ISBLANK(F20)),\"\",_xlfn.MAXIFS('Mainenance log'!$H$3:$H$1048576,'Mainenance log'!$B$3:$B$1048576,'Service Interval'!$C20,'Mainenance log'!$E$3:$E$1048576,'Type of Service List'!$B$10))","v":""},{"$f":"IF(OR(ISBLANK(C20),ISBLANK(G20)),\"\",_xlfn.MAXIFS('Mainenance log'!$H$3:$H$1048576,'Mainenance log'!$B$3:$B$1048576,'Service Interval'!$C20,'Mainenance log'!$E$3:$E$1048576,'Type of Service List'!$B$11))","v":""},{"$f":"IF(OR(ISBLANK(C20),ISBLANK(H20)),\"\",_xlfn.MAXIFS('Mainenance log'!$H$3:$H$1048576,'Mainenance log'!$B$3:$B$1048576,'Service Interval'!$C20,'Mainenance log'!$E$3:$E$1048576,'Type of Service List'!$B$13))","v":""},{"$f":"IF(OR(ISBLANK(C20),ISBLANK(I20)),\"\",_xlfn.MAXIFS('Mainenance log'!$H$3:$H$1048576,'Mainenance log'!$B$3:$B$1048576,'Service Interval'!$C20,'Mainenance log'!$E$3:$E$1048576,'Type of Service List'!$B$12))","v":""},{"$f":"IF(OR(ISBLANK(C20),ISBLANK(J20)),\"\",_xlfn.MAXIFS('Mainenance log'!$H$3:$H$1048576,'Mainenance log'!$B$3:$B$1048576,'Service Interval'!$C20,'Mainenance log'!$E$3:$E$1048576,'Type of Service List'!$B$14))","v":""},{"$f":"IF(OR(ISBLANK(C20),ISBLANK(K20)),\"\",_xlfn.MAXIFS('Mainenance log'!$H$3:$H$1048576,'Mainenance log'!$B$3:$B$1048576,'Service Interval'!$C20,'Mainenance log'!$E$3:$E$1048576,'Type of Service List'!$B$16))","v":""}]
[null,16,null,null,null,null,null,null,null,null,null,"",null,{"$f":"IF(OR(ISBLANK(C21),ISBLANK(D21)),\"\",_xlfn.MAXIFS('Mainenance log'!$H$3:$H$1048576,'Mainenance log'!$B$3:$B$1048576,'Service Interval'!$C21,'Mainenance log'!$E$3:$E$1048576,'Type of Service List'!$B$5))","v":""},{"$f":"IF(OR(ISBLANK(C21),ISBLANK(E21)),\"\",_xlfn.MAXIFS('Mainenance log'!$H$3:$H$1048576,'Mainenance log'!$B$3:$B$1048576,'Service Interval'!$C21,'Mainenance log'!$E$3:$E$1048576,'Type of Service List'!$B$8))","v":""},{"$f":"IF(OR(ISBLANK(C21),ISBLANK(F21)),\"\",_xlfn.MAXIFS('Mainenance log'!$H$3:$H$1048576,'Mainenance log'!$B$3:$B$1048576,'Service Interval'!$C21,'Mainenance log'!$E$3:$E$1048576,'Type of Service List'!$B$10))","v":""},{"$f":"IF(OR(ISBLANK(C21),ISBLANK(G21)),\"\",_xlfn.MAXIFS('Mainenance log'!$H$3:$H$1048576,'Mainenance log'!$B$3:$B$1048576,'Service Interval'!$C21,'Mainenance log'!$E$3:$E$1048576,'Type of Service List'!$B$11))","v":""},{"$f":"IF(OR(ISBLANK(C21),ISBLANK(H21)),\"\",_xlfn.MAXIFS('Mainenance log'!$H$3:$H$1048576,'Mainenance log'!$B$3:$B$1048576,'Service Interval'!$C21,'Mainenance log'!$E$3:$E$1048576,'Type of Service List'!$B$13))","v":""},{"$f":"IF(OR(ISBLANK(C21),ISBLANK(I21)),\"\",_xlfn.MAXIFS('Mainenance log'!$H$3:$H$1048576,'Mainenance log'!$B$3:$B$1048576,'Service Interval'!$C21,'Mainenance log'!$E$3:$E$1048576,'Type of Service List'!$B$12))","v":""},{"$f":"IF(OR(ISBLANK(C21),ISBLANK(J21)),\"\",_xlfn.MAXIFS('Mainenance log'!$H$3:$H$1048576,'Mainenance log'!$B$3:$B$1048576,'Service Interval'!$C21,'Mainenance log'!$E$3:$E$1048576,'Type of Service List'!$B$14))","v":""},{"$f":"IF(OR(ISBLANK(C21),ISBLANK(K21)),\"\",_xlfn.MAXIFS('Mainenance log'!$H$3:$H$1048576,'Mainenance log'!$B$3:$B$1048576,'Service Interval'!$C21,'Mainenance log'!$E$3:$E$1048576,'Type of Service List'!$B$16))","v":""}]
[null,17,null,null,null,null,null,null,null,null,null,"",null,{"$f":"IF(OR(ISBLANK(C22),ISBLANK(D22)),\"\",_xlfn.MAXIFS('Mainenance log'!$H$3:$H$1048576,'Mainenance log'!$B$3:$B$1048576,'Service Interval'!$C22,'Mainenance log'!$E$3:$E$1048576,'Type of Service List'!$B$5))","v":""},{"$f":"IF(OR(ISBLANK(C22),ISBLANK(E22)),\"\",_xlfn.MAXIFS('Mainenance log'!$H$3:$H$1048576,'Mainenance log'!$B$3:$B$1048576,'Service Interval'!$C22,'Mainenance log'!$E$3:$E$1048576,'Type of Service List'!$B$8))","v":""},{"$f":"IF(OR(ISBLANK(C22),ISBLANK(F22)),\"\",_xlfn.MAXIFS('Mainenance log'!$H$3:$H$1048576,'Mainenance log'!$B$3:$B$1048576,'Service Interval'!$C22,'Mainenance log'!$E$3:$E$1048576,'Type of Service List'!$B$10))","v":""},{"$f":"IF(OR(ISBLANK(C22),ISBLANK(G22)),\"\",_xlfn.MAXIFS('Mainenance log'!$H$3:$H$1048576,'Mainenance log'!$B$3:$B$1048576,'Service Interval'!$C22,'Mainenance log'!$E$3:$E$1048576,'Type of Service List'!$B$11))","v":""},{"$f":"IF(OR(ISBLANK(C22),ISBLANK(H22)),\"\",_xlfn.MAXIFS('Mainenance log'!$H$3:$H$1048576,'Mainenance log'!$B$3:$B$1048576,'Service Interval'!$C22,'Mainenance log'!$E$3:$E$1048576,'Type of Service List'!$B$13))","v":""},{"$f":"IF(OR(ISBLANK(C22),ISBLANK(I22)),\"\",_xlfn.MAXIFS('Mainenance log'!$H$3:$H$1048576,'Mainenance log'!$B$3:$B$1048576,'Service Interval'!$C22,'Mainenance log'!$E$3:$E$1048576,'Type of Service List'!$B$12))","v":""},{"$f":"IF(OR(ISBLANK(C22),ISBLANK(J22)),\"\",_xlfn.MAXIFS('Mainenance log'!$H$3:$H$1048576,'Mainenance log'!$B$3:$B$1048576,'Service Interval'!$C22,'Mainenance log'!$E$3:$E$1048576,'Type of Service List'!$B$14))","v":""},{"$f":"IF(OR(ISBLANK(C22),ISBLANK(K22)),\"\",_xlfn.MAXIFS('Mainenance log'!$H$3:$H$1048576,'Mainenance log'!$B$3:$B$1048576,'Service Interval'!$C22,'Mainenance log'!$E$3:$E$1048576,'Type of Service List'!$B$16))","v":""}]
[null,18,null,null,null,null,null,null,null,null,null,"",null,{"$f":"IF(OR(ISBLANK(C23),ISBLANK(D23)),\"\",_xlfn.MAXIFS('Mainenance log'!$H$3:$H$1048576,'Mainenance log'!$B$3:$B$1048576,'Service Interval'!$C23,'Mainenance log'!$E$3:$E$1048576,'Type of Service List'!$B$5))","v":""},{"$f":"IF(OR(ISBLANK(C23),ISBLANK(E23)),\"\",_xlfn.MAXIFS('Mainenance log'!$H$3:$H$1048576,'Mainenance log'!$B$3:$B$1048576,'Service Interval'!$C23,'Mainenance log'!$E$3:$E$1048576,'Type of Service List'!$B$8))","v":""},{"$f":"IF(OR(ISBLANK(C23),ISBLANK(F23)),\"\",_xlfn.MAXIFS('Mainenance log'!$H$3:$H$1048576,'Mainenance log'!$B$3:$B$1048576,'Service Interval'!$C23,'Mainenance log'!$E$3:$E$1048576,'Type of Service List'!$B$10))","v":""},{"$f":"IF(OR(ISBLANK(C23),ISBLANK(G23)),\"\",_xlfn.MAXIFS('Mainenance log'!$H$3:$H$1048576,'Mainenance log'!$B$3:$B$1048576,'Service Interval'!$C23,'Mainenance log'!$E$3:$E$1048576,'Type of Service List'!$B$11))","v":""},{"$f":"IF(OR(ISBLANK(C23),ISBLANK(H23)),\"\",_xlfn.MAXIFS('Mainenance log'!$H$3:$H$1048576,'Mainenance log'!$B$3:$B$1048576,'Service Interval'!$C23,'Mainenance log'!$E$3:$E$1048576,'Type of Service List'!$B$13))","v":""},{"$f":"IF(OR(ISBLANK(C23),ISBLANK(I23)),\"\",_xlfn.MAXIFS('Mainenance log'!$H$3:$H$1048576,'Mainenance log'!$B$3:$B$1048576,'Service Interval'!$C23,'Mainenance log'!$E$3:$E$1048576,'Type of Service List'!$B$12))","v":""},{"$f":"IF(OR(ISBLANK(C23),ISBLANK(J23)),\"\",_xlfn.MAXIFS('Mainenance log'!$H$3:$H$1048576,'Mainenance log'!$B$3:$B$1048576,'Service Interval'!$C23,'Mainenance log'!$E$3:$E$1048576,'Type of Service List'!$B$14))","v":""},{"$f":"IF(OR(ISBLANK(C23),ISBLANK(K23)),\"\",_xlfn.MAXIFS('Mainenance log'!$H$3:$H$1048576,'Mainenance log'!$B$3:$B$1048576,'Service Interval'!$C23,'Mainenance log'!$E$3:$E$1048576,'Type of Service List'!$B$16))","v":""}]
[null,19,null,null,null,null,null,null,null,null,null,"",null,{"$f":"IF(OR(ISBLANK(C24),ISBLANK(D24)),\"\",_xlfn.MAXIFS('Mainenance log'!$H$3:$H$1048576,'Mainenance log'!$B$3:$B$1048576,'Service Interval'!$C24,'Mainenance log'!$E$3:$E$1048576,'Type of Service List'!$B$5))","v":""},{"$f":"IF(OR(ISBLANK(C24),ISBLANK(E24)),\"\",_xlfn.MAXIFS('Mainenance log'!$H$3:$H$1048576,'Mainenance log'!$B$3:$B$1048576,'Service Interval'!$C24,'Mainenance log'!$E$3:$E$1048576,'Type of Service List'!$B$8))","v":""},{"$f":"IF(OR(ISBLANK(C24),ISBLANK(F24)),\"\",_xlfn.MAXIFS('Mainenance log'!$H$3:$H$1048576,'Mainenance log'!$B$3:$B$1048576,'Service Interval'!$C24,'Mainenance log'!$E$3:$E$1048576,'Type of Service List'!$B$10))","v":""},{"$f":"IF(OR(ISBLANK(C24),ISBLANK(G24)),\"\",_xlfn.MAXIFS('Mainenance log'!$H$3:$H$1048576,'Mainenance log'!$B$3:$B$1048576,'Service Interval'!$C24,'Mainenance log'!$E$3:$E$1048576,'Type of Service List'!$B$11))","v":""},{"$f":"IF(OR(ISBLANK(C24),ISBLANK(H24)),\"\",_xlfn.MAXIFS('Mainenance log'!$H$3:$H$1048576,'Mainenance log'!$B$3:$B$1048576,'Service Interval'!$C24,'Mainenance log'!$E$3:$E$1048576,'Type of Service List'!$B$13))","v":""},{"$f":"IF(OR(ISBLANK(C24),ISBLANK(I24)),\"\",_xlfn.MAXIFS('Mainenance log'!$H$3:$H$1048576,'Mainenance log'!$B$3:$B$1048576,'Service Interval'!$C24,'Mainenance log'!$E$3:$E$1048576,'Type of Service List'!$B$12))","v":""},{"$f":"IF(OR(ISBLANK(C24),ISBLANK(J24)),\"\",_xlfn.MAXIFS('Mainenance log'!$H$3:$H$1048576,'Mainenance log'!$B$3:$B$1048576,'Service Interval'!$C24,'Mainenance log'!$E$3:$E$1048576,'Type of Service List'!$B$14))","v":""},{"$f":"IF(OR(ISBLANK(C24),ISBLANK(K24)),\"\",_xlfn.MAXIFS('Mainenance log'!$H$3:$H$1048576,'Mainenance log'!$B$3:$B$1048576,'Service Interval'!$C24,'Mainenance log'!$E$3:$E$1048576,'Type of Service List'!$B$16))","v":""}]
[null,20,null,null,null,null,null,null,null,null,null,"",null,{"$f":"IF(OR(ISBLANK(C25),ISBLANK(D25)),\"\",_xlfn.MAXIFS('Mainenance log'!$H$3:$H$1048576,'Mainenance log'!$B$3:$B$1048576,'Service Interval'!$C25,'Mainenance log'!$E$3:$E$1048576,'Type of Service List'!$B$5))","v":""},{"$f":"IF(OR(ISBLANK(C25),ISBLANK(E25)),\"\",_xlfn.MAXIFS('Mainenance log'!$H$3:$H$1048576,'Mainenance log'!$B$3:$B$1048576,'Service Interval'!$C25,'Mainenance log'!$E$3:$E$1048576,'Type of Service List'!$B$8))","v":""},{"$f":"IF(OR(ISBLANK(C25),ISBLANK(F25)),\"\",_xlfn.MAXIFS('Mainenance log'!$H$3:$H$1048576,'Mainenance log'!$B$3:$B$1048576,'Service Interval'!$C25,'Mainenance log'!$E$3:$E$1048576,'Type of Service List'!$B$10))","v":""},{"$f":"IF(OR(ISBLANK(C25),ISBLANK(G25)),\"\",_xlfn.MAXIFS('Mainenance log'!$H$3:$H$1048576,'Mainenance log'!$B$3:$B$1048576,'Service Interval'!$C25,'Mainenance log'!$E$3:$E$1048576,'Type of Service List'!$B$11))","v":""},{"$f":"IF(OR(ISBLANK(C25),ISBLANK(H25)),\"\",_xlfn.MAXIFS('Mainenance log'!$H$3:$H$1048576,'Mainenance log'!$B$3:$B$1048576,'Service Interval'!$C25,'Mainenance log'!$E$3:$E$1048576,'Type of Service List'!$B$13))","v":""},{"$f":"IF(OR(ISBLANK(C25),ISBLANK(I25)),\"\",_xlfn.MAXIFS('Mainenance log'!$H$3:$H$1048576,'Mainenance log'!$B$3:$B$1048576,'Service Interval'!$C25,'Mainenance log'!$E$3:$E$1048576,'Type of Service List'!$B$12))","v":""},{"$f":"IF(OR(ISBLANK(C25),ISBLANK(J25)),\"\",_xlfn.MAXIFS('Mainenance log'!$H$3:$H$1048576,'Mainenance log'!$B$3:$B$1048576,'Service Interval'!$C25,'Mainenance log'!$E$3:$E$1048576,'Type of Service List'!$B$14))","v":""},{"$f":"IF(OR(ISBLANK(C25),ISBLANK(K25)),\"\",_xlfn.MAXIFS('Mainenance log'!$H$3:$H$1048576,'Mainenance log'!$B$3:$B$1048576,'Service Interval'!$C25,'Mainenance log'!$E$3:$E$1048576,'Type of Service List'!$B$16))","v":""}]
[null,21,null,null,null,null,null,null,null,null,null,"",null,{"$f":"IF(OR(ISBLANK(C26),ISBLANK(D26)),\"\",_xlfn.MAXIFS('Mainenance log'!$H$3:$H$1048576,'Mainenance log'!$B$3:$B$1048576,'Service Interval'!$C26,'Mainenance log'!$E$3:$E$1048576,'Type of Service List'!$B$5))","v":""},{"$f":"IF(OR(ISBLANK(C26),ISBLANK(E26)),\"\",_xlfn.MAXIFS('Mainenance log'!$H$3:$H$1048576,'Mainenance log'!$B$3:$B$1048576,'Service Interval'!$C26,'Mainenance log'!$E$3:$E$1048576,'Type of Service List'!$B$8))","v":""},{"$f":"IF(OR(ISBLANK(C26),ISBLANK(F26)),\"\",_xlfn.MAXIFS('Mainenance log'!$H$3:$H$1048576,'Mainenance log'!$B$3:$B$1048576,'Service Interval'!$C26,'Mainenance log'!$E$3:$E$1048576,'Type of Service List'!$B$10))","v":""},{"$f":"IF(OR(ISBLANK(C26),ISBLANK(G26)),\"\",_xlfn.MAXIFS('Mainenance log'!$H$3:$H$1048576,'Mainenance log'!$B$3:$B$1048576,'Service Interval'!$C26,'Mainenance log'!$E$3:$E$1048576,'Type of Service List'!$B$11))","v":""},{"$f":"IF(OR(ISBLANK(C26),ISBLANK(H26)),\"\",_xlfn.MAXIFS('Mainenance log'!$H$3:$H$1048576,'Mainenance log'!$B$3:$B$1048576,'Service Interval'!$C26,'Mainenance log'!$E$3:$E$1048576,'Type of Service List'!$B$13))","v":""},{"$f":"IF(OR(ISBLANK(C26),ISBLANK(I26)),\"\",_xlfn.MAXIFS('Mainenance log'!$H$3:$H$1048576,'Mainenance log'!$B$3:$B$1048576,'Service Interval'!$C26,'Mainenance log'!$E$3:$E$1048576,'Type of Service List'!$B$12))","v":""},{"$f":"IF(OR(ISBLANK(C26),ISBLANK(J26)),\"\",_xlfn.MAXIFS('Mainenance log'!$H$3:$H$1048576,'Mainenance log'!$B$3:$B$1048576,'Service Interval'!$C26,'Mainenance log'!$E$3:$E$1048576,'Type of Service List'!$B$14))","v":""},{"$f":"IF(OR(ISBLANK(C26),ISBLANK(K26)),\"\",_xlfn.MAXIFS('Mainenance log'!$H$3:$H$1048576,'Mainenance log'!$B$3:$B$1048576,'Service Interval'!$C26,'Mainenance log'!$E$3:$E$1048576,'Type of Service List'!$B$16))","v":""}]
[null,22,null,null,null,null,null,null,null,null,null,"",null,{"$f":"IF(OR(ISBLANK(C27),ISBLANK(D27)),\"\",_xlfn.MAXIFS('Mainenance log'!$H$3:$H$1048576,'Mainenance log'!$B$3:$B$1048576,'Service Interval'!$C27,'Mainenance log'!$E$3:$E$1048576,'Type of Service List'!$B$5))","v":""},{"$f":"IF(OR(ISBLANK(C27),ISBLANK(E27)),\"\",_xlfn.MAXIFS('Mainenance log'!$H$3:$H$1048576,'Mainenance log'!$B$3:$B$1048576,'Service Interval'!$C27,'Mainenance log'!$E$3:$E$1048576,'Type of Service List'!$B$8))","v":""},{"$f":"IF(OR(ISBLANK(C27),ISBLANK(F27)),\"\",_xlfn.MAXIFS('Mainenance log'!$H$3:$H$1048576,'Mainenance log'!$B$3:$B$1048576,'Service Interval'!$C27,'Mainenance log'!$E$3:$E$1048576,'Type of Service List'!$B$10))","v":""},{"$f":"IF(OR(ISBLANK(C27),ISBLANK(G27)),\"\",_xlfn.MAXIFS('Mainenance log'!$H$3:$H$1048576,'Mainenance log'!$B$3:$B$1048576,'Service Interval'!$C27,'Mainenance log'!$E$3:$E$1048576,'Type of Service List'!$B$11))","v":""},{"$f":"IF(OR(ISBLANK(C27),ISBLANK(H27)),\"\",_xlfn.MAXIFS('Mainenance log'!$H$3:$H$1048576,'Mainenance log'!$B$3:$B$1048576,'Service Interval'!$C27,'Mainenance log'!$E$3:$E$1048576,'Type of Service List'!$B$13))","v":""},{"$f":"IF(OR(ISBLANK(C27),ISBLANK(I27)),\"\",_xlfn.MAXIFS('Mainenance log'!$H$3:$H$1048576,'Mainenance log'!$B$3:$B$1048576,'Service Interval'!$C27,'Mainenance log'!$E$3:$E$1048576,'Type of Service List'!$B$12))","v":""},{"$f":"IF(OR(ISBLANK(C27),ISBLANK(J27)),\"\",_xlfn.MAXIFS('Mainenance log'!$H$3:$H$1048576,'Mainenance log'!$B$3:$B$1048576,'Service Interval'!$C27,'Mainenance log'!$E$3:$E$1048576,'Type of Service List'!$B$14))","v":""},{"$f":"IF(OR(ISBLANK(C27),ISBLANK(K27)),\"\",_xlfn.MAXIFS('Mainenance log'!$H$3:$H$1048576,'Mainenance log'!$B$3:$B$1048576,'Service Interval'!$C27,'Mainenance log'!$E$3:$E$1048576,'Type of Service List'!$B$16))","v":""}]
[null,23,null,null,null,null,null,null,null,null,null,"",null,{"$f":"IF(OR(ISBLANK(C28),ISBLANK(D28)),\"\",_xlfn.MAXIFS('Mainenance log'!$H$3:$H$1048576,'Mainenance log'!$B$3:$B$1048576,'Service Interval'!$C28,'Mainenance log'!$E$3:$E$1048576,'Type of Service List'!$B$5))","v":""},{"$f":"IF(OR(ISBLANK(C28),ISBLANK(E28)),\"\",_xlfn.MAXIFS('Mainenance log'!$H$3:$H$1048576,'Mainenance log'!$B$3:$B$1048576,'Service Interval'!$C28,'Mainenance log'!$E$3:$E$1048576,'Type of Service List'!$B$8))","v":""},{"$f":"IF(OR(ISBLANK(C28),ISBLANK(F28)),\"\",_xlfn.MAXIFS('Mainenance log'!$H$3:$H$1048576,'Mainenance log'!$B$3:$B$1048576,'Service Interval'!$C28,'Mainenance log'!$E$3:$E$1048576,'Type of Service List'!$B$10))","v":""},{"$f":"IF(OR(ISBLANK(C28),ISBLANK(G28)),\"\",_xlfn.MAXIFS('Mainenance log'!$H$3:$H$1048576,'Mainenance log'!$B$3:$B$1048576,'Service Interval'!$C28,'Mainenance log'!$E$3:$E$1048576,'Type of Service List'!$B$11))","v":""},{"$f":"IF(OR(ISBLANK(C28),ISBLANK(H28)),\"\",_xlfn.MAXIFS('Mainenance log'!$H$3:$H$1048576,'Mainenance log'!$B$3:$B$1048576,'Service Interval'!$C28,'Mainenance log'!$E$3:$E$1048576,'Type of Service List'!$B$13))","v":""},{"$f":"IF(OR(ISBLANK(C28),ISBLANK(I28)),\"\",_xlfn.MAXIFS('Mainenance log'!$H$3:$H$1048576,'Mainenance log'!$B$3:$B$1048576,'Service Interval'!$C28,'Mainenance log'!$E$3:$E$1048576,'Type of Service List'!$B$12))","v":""},{"$f":"IF(OR(ISBLANK(C28),ISBLANK(J28)),\"\",_xlfn.MAXIFS('Mainenance log'!$H$3:$H$1048576,'Mainenance log'!$B$3:$B$1048576,'Service Interval'!$C28,'Mainenance log'!$E$3:$E$1048576,'Type of Service List'!$B$14))","v":""},{"$f":"IF(OR(ISBLANK(C28),ISBLANK(K28)),\"\",_xlfn.MAXIFS('Mainenance log'!$H$3:$H$1048576,'Mainenance log'!$B$3:$B$1048576,'Service Interval'!$C28,'Mainenance log'!$E$3:$E$1048576,'Type of Service List'!$B$16))","v":""}]
[null,24,null,null,null,null,null,null,null,null,null,"",null,{"$f":"IF(OR(ISBLANK(C29),ISBLANK(D29)),\"\",_xlfn.MAXIFS('Mainenance log'!$H$3:$H$1048576,'Mainenance log'!$B$3:$B$1048576,'Service Interval'!$C29,'Mainenance log'!$E$3:$E$1048576,'Type of Service List'!$B$5))","v":""},{"$f":"IF(OR(ISBLANK(C29),ISBLANK(E29)),\"\",_xlfn.MAXIFS('Mainenance log'!$H$3:$H$1048576,'Mainenance log'!$B$3:$B$1048576,'Service Interval'!$C29,'Mainenance log'!$E$3:$E$1048576,'Type of Service List'!$B$8))","v":""},{"$f":"IF(OR(ISBLANK(C29),ISBLANK(F29)),\"\",_xlfn.MAXIFS('Mainenance log'!$H$3:$H$1048576,'Mainenance log'!$B$3:$B$1048576,'Service Interval'!$C29,'Mainenance log'!$E$3:$E$1048576,'Type of Service List'!$B$10))","v":""},{"$f":"IF(OR(ISBLANK(C29),ISBLANK(G29)),\"\",_xlfn.MAXIFS('Mainenance log'!$H$3:$H$1048576,'Mainenance log'!$B$3:$B$1048576,'Service Interval'!$C29,'Mainenance log'!$E$3:$E$1048576,'Type of Service List'!$B$11))","v":""},{"$f":"IF(OR(ISBLANK(C29),ISBLANK(H29)),\"\",_xlfn.MAXIFS('Mainenance log'!$H$3:$H$1048576,'Mainenance log'!$B$3:$B$1048576,'Service Interval'!$C29,'Mainenance log'!$E$3:$E$1048576,'Type of Service List'!$B$13))","v":""},{"$f":"IF(OR(ISBLANK(C29),ISBLANK(I29)),\"\",_xlfn.MAXIFS('Mainenance log'!$H$3:$H$1048576,'Mainenance log'!$B$3:$B$1048576,'Service Interval'!$C29,'Mainenance log'!$E$3:$E$1048576,'Type of Service List'!$B$12))","v":""},{"$f":"IF(OR(ISBLANK(C29),ISBLANK(J29)),\"\",_xlfn.MAXIFS('Mainenance log'!$H$3:$H$1048576,'Mainenance log'!$B$3:$B$1048576,'Service Interval'!$C29,'Mainenance log'!$E$3:$E$1048576,'Type of Service List'!$B$14))","v":""},{"$f":"IF(OR(ISBLANK(C29),ISBLANK(K29)),\"\",_xlfn.MAXIFS('Mainenance log'!$H$3:$H$1048576,'Mainenance log'!$B$3:$B$1048576,'Service Interval'!$C29,'Mainenance log'!$E$3:$E$1048576,'Type of Service List'!$B$16))","v":""}]
[null,25,null,null,null,null,null,null,null,null,null,"",null,{"$f":"IF(OR(ISBLANK(C30),ISBLANK(D30)),\"\",_xlfn.MAXIFS('Mainenance log'!$H$3:$H$1048576,'Mainenance log'!$B$3:$B$1048576,'Service Interval'!$C30,'Mainenance log'!$E$3:$E$1048576,'Type of Service List'!$B$5))","v":""},{"$f":"IF(OR(ISBLANK(C30),ISBLANK(E30)),\"\",_xlfn.MAXIFS('Mainenance log'!$H$3:$H$1048576,'Mainenance log'!$B$3:$B$1048576,'Service Interval'!$C30,'Mainenance log'!$E$3:$E$1048576,'Type of Service List'!$B$8))","v":""},{"$f":"IF(OR(ISBLANK(C30),ISBLANK(F30)),\"\",_xlfn.MAXIFS('Mainenance log'!$H$3:$H$1048576,'Mainenance log'!$B$3:$B$1048576,'Service Interval'!$C30,'Mainenance log'!$E$3:$E$1048576,'Type of Service List'!$B$10))","v":""},{"$f":"IF(OR(ISBLANK(C30),ISBLANK(G30)),\"\",_xlfn.MAXIFS('Mainenance log'!$H$3:$H$1048576,'Mainenance log'!$B$3:$B$1048576,'Service Interval'!$C30,'Mainenance log'!$E$3:$E$1048576,'Type of Service List'!$B$11))","v":""},{"$f":"IF(OR(ISBLANK(C30),ISBLANK(H30)),\"\",_xlfn.MAXIFS('Mainenance log'!$H$3:$H$1048576,'Mainenance log'!$B$3:$B$1048576,'Service Interval'!$C30,'Mainenance log'!$E$3:$E$1048576,'Type of Service List'!$B$13))","v":""},{"$f":"IF(OR(ISBLANK(C30),ISBLANK(I30)),\"\",_xlfn.MAXIFS('Mainenance log'!$H$3:$H$1048576,'Mainenance log'!$B$3:$B$1048576,'Service Interval'!$C30,'Mainenance log'!$E$3:$E$1048576,'Type of Service List'!$B$12))","v":""},{"$f":"IF(OR(ISBLANK(C30),ISBLANK(J30)),\"\",_xlfn.MAXIFS('Mainenance log'!$H$3:$H$1048576,'Mainenance log'!$B$3:$B$1048576,'Service Interval'!$C30,'Mainenance log'!$E$3:$E$1048576,'Type of Service List'!$B$14))","v":""},{"$f":"IF(OR(ISBLANK(C30),ISBLANK(K30)),\"\",_xlfn.MAXIFS('Mainenance log'!$H$3:$H$1048576,'Mainenance log'!$B$3:$B$1048576,'Service Interval'!$C30,'Mainenance log'!$E$3:$E$1048576,'Type of Service List'!$B$16))","v":""}]
[null,26,null,null,null,null,null,null,null,null,null,"",null,{"$f":"IF(OR(ISBLANK(C31),ISBLANK(D31)),\"\",_xlfn.MAXIFS('Mainenance log'!$H$3:$H$1048576,'Mainenance log'!$B$3:$B$1048576,'Service Interval'!$C31,'Mainenance log'!$E$3:$E$1048576,'Type of Service List'!$B$5))","v":""},{"$f":"IF(OR(ISBLANK(C31),ISBLANK(E31)),\"\",_xlfn.MAXIFS('Mainenance log'!$H$3:$H$1048576,'Mainenance log'!$B$3:$B$1048576,'Service Interval'!$C31,'Mainenance log'!$E$3:$E$1048576,'Type of Service List'!$B$8))","v":""},{"$f":"IF(OR(ISBLANK(C31),ISBLANK(F31)),\"\",_xlfn.MAXIFS('Mainenance log'!$H$3:$H$1048576,'Mainenance log'!$B$3:$B$1048576,'Service Interval'!$C31,'Mainenance log'!$E$3:$E$1048576,'Type of Service List'!$B$10))","v":""},{"$f":"IF(OR(ISBLANK(C31),ISBLANK(G31)),\"\",_xlfn.MAXIFS('Mainenance log'!$H$3:$H$1048576,'Mainenance log'!$B$3:$B$1048576,'Service Interval'!$C31,'Mainenance log'!$E$3:$E$1048576,'Type of Service List'!$B$11))","v":""},{"$f":"IF(OR(ISBLANK(C31),ISBLANK(H31)),\"\",_xlfn.MAXIFS('Mainenance log'!$H$3:$H$1048576,'Mainenance log'!$B$3:$B$1048576,'Service Interval'!$C31,'Mainenance log'!$E$3:$E$1048576,'Type of Service List'!$B$13))","v":""},{"$f":"IF(OR(ISBLANK(C31),ISBLANK(I31)),\"\",_xlfn.MAXIFS('Mainenance log'!$H$3:$H$1048576,'Mainenance log'!$B$3:$B$1048576,'Service Interval'!$C31,'Mainenance log'!$E$3:$E$1048576,'Type of Service List'!$B$12))","v":""},{"$f":"IF(OR(ISBLANK(C31),ISBLANK(J31)),\"\",_xlfn.MAXIFS('Mainenance log'!$H$3:$H$1048576,'Mainenance log'!$B$3:$B$1048576,'Service Interval'!$C31,'Mainenance log'!$E$3:$E$1048576,'Type of Service List'!$B$14))","v":""},{"$f":"IF(OR(ISBLANK(C31),ISBLANK(K31)),\"\",_xlfn.MAXIFS('Mainenance log'!$H$3:$H$1048576,'Mainenance log'!$B$3:$B$1048576,'Service Interval'!$C31,'Mainenance log'!$E$3:$E$1048576,'Type of Service List'!$B$16))","v":""}]
[null,27,null,null,null,null,null,null,null,null,null,"",null,{"$f":"IF(OR(ISBLANK(C32),ISBLANK(D32)),\"\",_xlfn.MAXIFS('Mainenance log'!$H$3:$H$1048576,'Mainenance log'!$B$3:$B$1048576,'Service Interval'!$C32,'Mainenance log'!$E$3:$E$1048576,'Type of Service List'!$B$5))","v":""},{"$f":"IF(OR(ISBLANK(C32),ISBLANK(E32)),\"\",_xlfn.MAXIFS('Mainenance log'!$H$3:$H$1048576,'Mainenance log'!$B$3:$B$1048576,'Service Interval'!$C32,'Mainenance log'!$E$3:$E$1048576,'Type of Service List'!$B$8))","v":""},{"$f":"IF(OR(ISBLANK(C32),ISBLANK(F32)),\"\",_xlfn.MAXIFS('Mainenance log'!$H$3:$H$1048576,'Mainenance log'!$B$3:$B$1048576,'Service Interval'!$C32,'Mainenance log'!$E$3:$E$1048576,'Type of Service List'!$B$10))","v":""},{"$f":"IF(OR(ISBLANK(C32),ISBLANK(G32)),\"\",_xlfn.MAXIFS('Mainenance log'!$H$3:$H$1048576,'Mainenance log'!$B$3:$B$1048576,'Service Interval'!$C32,'Mainenance log'!$E$3:$E$1048576,'Type of Service List'!$B$11))","v":""},{"$f":"IF(OR(ISBLANK(C32),ISBLANK(H32)),\"\",_xlfn.MAXIFS('Mainenance log'!$H$3:$H$1048576,'Mainenance log'!$B$3:$B$1048576,'Service Interval'!$C32,'Mainenance log'!$E$3:$E$1048576,'Type of Service List'!$B$13))","v":""},{"$f":"IF(OR(ISBLANK(C32),ISBLANK(I32)),\"\",_xlfn.MAXIFS('Mainenance log'!$H$3:$H$1048576,'Mainenance log'!$B$3:$B$1048576,'Service Interval'!$C32,'Mainenance log'!$E$3:$E$1048576,'Type of Service List'!$B$12))","v":""},{"$f":"IF(OR(ISBLANK(C32),ISBLANK(J32)),\"\",_xlfn.MAXIFS('Mainenance log'!$H$3:$H$1048576,'Mainenance log'!$B$3:$B$1048576,'Service Interval'!$C32,'Mainenance log'!$E$3:$E$1048576,'Type of Service List'!$B$14))","v":""},{"$f":"IF(OR(ISBLANK(C32),ISBLANK(K32)),\"\",_xlfn.MAXIFS('Mainenance log'!$H$3:$H$1048576,'Mainenance log'!$B$3:$B$1048576,'Service Interval'!$C32,'Mainenance log'!$E$3:$E$1048576,'Type of Service List'!$B$16))","v":""}]
[null,28,null,null,null,null,null,null,null,null,null,"",null,{"$f":"IF(OR(ISBLANK(C33),ISBLANK(D33)),\"\",_xlfn.MAXIFS('Mainenance log'!$H$3:$H$1048576,'Mainenance log'!$B$3:$B$1048576,'Service Interval'!$C33,'Mainenance log'!$E$3:$E$1048576,'Type of Service List'!$B$5))","v":""},{"$f":"IF(OR(ISBLANK(C33),ISBLANK(E33)),\"\",_xlfn.MAXIFS('Mainenance log'!$H$3:$H$1048576,'Mainenance log'!$B$3:$B$1048576,'Service Interval'!$C33,'Mainenance log'!$E$3:$E$1048576,'Type of Service List'!$B$8))","v":""},{"$f":"IF(OR(ISBLANK(C33),ISBLANK(F33)),\"\",_xlfn.MAXIFS('Mainenance log'!$H$3:$H$1048576,'Mainenance log'!$B$3:$B$1048576,'Service Interval'!$C33,'Mainenance log'!$E$3:$E$1048576,'Type of Service List'!$B$10))","v":""},{"$f":"IF(OR(ISBLANK(C33),ISBLANK(G33)),\"\",_xlfn.MAXIFS('Mainenance log'!$H$3:$H$1048576,'Mainenance log'!$B$3:$B$1048576,'Service Interval'!$C33,'Mainenance log'!$E$3:$E$1048576,'Type of Service List'!$B$11))","v":""},{"$f":"IF(OR(ISBLANK(C33),ISBLANK(H33)),\"\",_xlfn.MAXIFS('Mainenance log'!$H$3:$H$1048576,'Mainenance log'!$B$3:$B$1048576,'Service Interval'!$C33,'Mainenance log'!$E$3:$E$1048576,'Type of Service List'!$B$13))","v":""},{"$f":"IF(OR(ISBLANK(C33),ISBLANK(I33)),\"\",_xlfn.MAXIFS('Mainenance log'!$H$3:$H$1048576,'Mainenance log'!$B$3:$B$1048576,'Service Interval'!$C33,'Mainenance log'!$E$3:$E$1048576,'Type of Service List'!$B$12))","v":""},{"$f":"IF(OR(ISBLANK(C33),ISBLANK(J33)),\"\",_xlfn.MAXIFS('Mainenance log'!$H$3:$H$1048576,'Mainenance log'!$B$3:$B$1048576,'Service Interval'!$C33,'Mainenance log'!$E$3:$E$1048576,'Type of Service List'!$B$14))","v":""},{"$f":"IF(OR(ISBLANK(C33),ISBLANK(K33)),\"\",_xlfn.MAXIFS('Mainenance log'!$H$3:$H$1048576,'Mainenance log'!$B$3:$B$1048576,'Service Interval'!$C33,'Mainenance log'!$E$3:$E$1048576,'Type of Service List'!$B$16))","v":""}]
[null,29,null,null,null,null,null,null,null,null,null,"",null,{"$f":"IF(OR(ISBLANK(C34),ISBLANK(D34)),\"\",_xlfn.MAXIFS('Mainenance log'!$H$3:$H$1048576,'Mainenance log'!$B$3:$B$1048576,'Service Interval'!$C34,'Mainenance log'!$E$3:$E$1048576,'Type of Service List'!$B$5))","v":""},{"$f":"IF(OR(ISBLANK(C34),ISBLANK(E34)),\"\",_xlfn.MAXIFS('Mainenance log'!$H$3:$H$1048576,'Mainenance log'!$B$3:$B$1048576,'Service Interval'!$C34,'Mainenance log'!$E$3:$E$1048576,'Type of Service List'!$B$8))","v":""},{"$f":"IF(OR(ISBLANK(C34),ISBLANK(F34)),\"\",_xlfn.MAXIFS('Mainenance log'!$H$3:$H$1048576,'Mainenance log'!$B$3:$B$1048576,'Service Interval'!$C34,'Mainenance log'!$E$3:$E$1048576,'Type of Service List'!$B$10))","v":""},{"$f":"IF(OR(ISBLANK(C34),ISBLANK(G34)),\"\",_xlfn.MAXIFS('Mainenance log'!$H$3:$H$1048576,'Mainenance log'!$B$3:$B$1048576,'Service Interval'!$C34,'Mainenance log'!$E$3:$E$1048576,'Type of Service List'!$B$11))","v":""},{"$f":"IF(OR(ISBLANK(C34),ISBLANK(H34)),\"\",_xlfn.MAXIFS('Mainenance log'!$H$3:$H$1048576,'Mainenance log'!$B$3:$B$1048576,'Service Interval'!$C34,'Mainenance log'!$E$3:$E$1048576,'Type of Service List'!$B$13))","v":""},{"$f":"IF(OR(ISBLANK(C34),ISBLANK(I34)),\"\",_xlfn.MAXIFS('Mainenance log'!$H$3:$H$1048576,'Mainenance log'!$B$3:$B$1048576,'Service Interval'!$C34,'Mainenance log'!$E$3:$E$1048576,'Type of Service List'!$B$12))","v":""},{"$f":"IF(OR(ISBLANK(C34),ISBLANK(J34)),\"\",_xlfn.MAXIFS('Mainenance log'!$H$3:$H$1048576,'Mainenance log'!$B$3:$B$1048576,'Service Interval'!$C34,'Mainenance log'!$E$3:$E$1048576,'Type of Service List'!$B$14))","v":""},{"$f":"IF(OR(ISBLANK(C34),ISBLANK(K34)),\"\",_xlfn.MAXIFS('Mainenance log'!$H$3:$H$1048576,'Mainenance log'!$B$3:$B$1048576,'Service Interval'!$C34,'Mainenance log'!$E$3:$E$1048576,'Type of Service List'!$B$16))","v":""}]
[null,30,null,null,null,null,null,null,null,null,null,"",null,{"$f":"IF(OR(ISBLANK(C35),ISBLANK(D35)),\"\",_xlfn.MAXIFS('Mainenance log'!$H$3:$H$1048576,'Mainenance log'!$B$3:$B$1048576,'Service Interval'!$C35,'Mainenance log'!$E$3:$E$1048576,'Type of Service List'!$B$5))","v":""},{"$f":"IF(OR(ISBLANK(C35),ISBLANK(E35)),\"\",_xlfn.MAXIFS('Mainenance log'!$H$3:$H$1048576,'Mainenance log'!$B$3:$B$1048576,'Service Interval'!$C35,'Mainenance log'!$E$3:$E$1048576,'Type of Service List'!$B$8))","v":""},{"$f":"IF(OR(ISBLANK(C35),ISBLANK(F35)),\"\",_xlfn.MAXIFS('Mainenance log'!$H$3:$H$1048576,'Mainenance log'!$B$3:$B$1048576,'Service Interval'!$C35,'Mainenance log'!$E$3:$E$1048576,'Type of Service List'!$B$10))","v":""},{"$f":"IF(OR(ISBLANK(C35),ISBLANK(G35)),\"\",_xlfn.MAXIFS('Mainenance log'!$H$3:$H$1048576,'Mainenance log'!$B$3:$B$1048576,'Service Interval'!$C35,'Mainenance log'!$E$3:$E$1048576,'Type of Service List'!$B$11))","v":""},{"$f":"IF(OR(ISBLANK(C35),ISBLANK(H35)),\"\",_xlfn.MAXIFS('Mainenance log'!$H$3:$H$1048576,'Mainenance log'!$B$3:$B$1048576,'Service Interval'!$C35,'Mainenance log'!$E$3:$E$1048576,'Type of Service List'!$B$13))","v":""},{"$f":"IF(OR(ISBLANK(C35),ISBLANK(I35)),\"\",_xlfn.MAXIFS('Mainenance log'!$H$3:$H$1048576,'Mainenance log'!$B$3:$B$1048576,'Service Interval'!$C35,'Mainenance log'!$E$3:$E$1048576,'Type of Service List'!$B$12))","v":""},{"$f":"IF(OR(ISBLANK(C35),ISBLANK(J35)),\"\",_xlfn.MAXIFS('Mainenance log'!$H$3:$H$1048576,'Mainenance log'!$B$3:$B$1048576,'Service Interval'!$C35,'Mainenance log'!$E$3:$E$1048576,'Type of Service List'!$B$14))","v":""},{"$f":"IF(OR(ISBLANK(C35),ISBLANK(K35)),\"\",_xlfn.MAXIFS('Mainenance log'!$H$3:$H$1048576,'Mainenance log'!$B$3:$B$1048576,'Service Interval'!$C35,'Mainenance log'!$E$3:$E$1048576,'Type of Service List'!$B$16))","v":""}]
[null,31,null,null,null,null,null,null,null,null,null,"",null,{"$f":"IF(OR(ISBLANK(C36),ISBLANK(D36)),\"\",_xlfn.MAXIFS('Mainenance log'!$H$3:$H$1048576,'Mainenance log'!$B$3:$B$1048576,'Service Interval'!$C36,'Mainenance log'!$E$3:$E$1048576,'Type of Service List'!$B$5))","v":""},{"$f":"IF(OR(ISBLANK(C36),ISBLANK(E36)),\"\",_xlfn.MAXIFS('Mainenance log'!$H$3:$H$1048576,'Mainenance log'!$B$3:$B$1048576,'Service Interval'!$C36,'Mainenance log'!$E$3:$E$1048576,'Type of Service List'!$B$8))","v":""},{"$f":"IF(OR(ISBLANK(C36),ISBLANK(F36)),\"\",_xlfn.MAXIFS('Mainenance log'!$H$3:$H$1048576,'Mainenance log'!$B$3:$B$1048576,'Service Interval'!$C36,'Mainenance log'!$E$3:$E$1048576,'Type of Service List'!$B$10))","v":""},{"$f":"IF(OR(ISBLANK(C36),ISBLANK(G36)),\"\",_xlfn.MAXIFS('Mainenance log'!$H$3:$H$1048576,'Mainenance log'!$B$3:$B$1048576,'Service Interval'!$C36,'Mainenance log'!$E$3:$E$1048576,'Type of Service List'!$B$11))","v":""},{"$f":"IF(OR(ISBLANK(C36),ISBLANK(H36)),\"\",_xlfn.MAXIFS('Mainenance log'!$H$3:$H$1048576,'Mainenance log'!$B$3:$B$1048576,'Service Interval'!$C36,'Mainenance log'!$E$3:$E$1048576,'Type of Service List'!$B$13))","v":""},{"$f":"IF(OR(ISBLANK(C36),ISBLANK(I36)),\"\",_xlfn.MAXIFS('Mainenance log'!$H$3:$H$1048576,'Mainenance log'!$B$3:$B$1048576,'Service Interval'!$C36,'Mainenance log'!$E$3:$E$1048576,'Type of Service List'!$B$12))","v":""},{"$f":"IF(OR(ISBLANK(C36),ISBLANK(J36)),\"\",_xlfn.MAXIFS('Mainenance log'!$H$3:$H$1048576,'Mainenance log'!$B$3:$B$1048576,'Service Interval'!$C36,'Mainenance log'!$E$3:$E$1048576,'Type of Service List'!$B$14))","v":""},{"$f":"IF(OR(ISBLANK(C36),ISBLANK(K36)),\"\",_xlfn.MAXIFS('Mainenance log'!$H$3:$H$1048576,'Mainenance log'!$B$3:$B$1048576,'Service Interval'!$C36,'Mainenance log'!$E$3:$E$1048576,'Type of Service List'!$B$16))","v":""}]
[null,32,null,null,null,null,null,null,null,null,null,"",null,{"$f":"IF(OR(ISBLANK(C37),ISBLANK(D37)),\"\",_xlfn.MAXIFS('Mainenance log'!$H$3:$H$1048576,'Mainenance log'!$B$3:$B$1048576,'Service Interval'!$C37,'Mainenance log'!$E$3:$E$1048576,'Type of Service List'!$B$5))","v":""},{"$f":"IF(OR(ISBLANK(C37),ISBLANK(E37)),\"\",_xlfn.MAXIFS('Mainenance log'!$H$3:$H$1048576,'Mainenance log'!$B$3:$B$1048576,'Service Interval'!$C37,'Mainenance log'!$E$3:$E$1048576,'Type of Service List'!$B$8))","v":""},{"$f":"IF(OR(ISBLANK(C37),ISBLANK(F37)),\"\",_xlfn.MAXIFS('Mainenance log'!$H$3:$H$1048576,'Mainenance log'!$B$3:$B$1048576,'Service Interval'!$C37,'Mainenance log'!$E$3:$E$1048576,'Type of Service List'!$B$10))","v":""},{"$f":"IF(OR(ISBLANK(C37),ISBLANK(G37)),\"\",_xlfn.MAXIFS('Mainenance log'!$H$3:$H$1048576,'Mainenance log'!$B$3:$B$1048576,'Service Interval'!$C37,'Mainenance log'!$E$3:$E$1048576,'Type of Service List'!$B$11))","v":""},{"$f":"IF(OR(ISBLANK(C37),ISBLANK(H37)),\"\",_xlfn.MAXIFS('Mainenance log'!$H$3:$H$1048576,'Mainenance log'!$B$3:$B$1048576,'Service Interval'!$C37,'Mainenance log'!$E$3:$E$1048576,'Type of Service List'!$B$13))","v":""},{"$f":"IF(OR(ISBLANK(C37),ISBLANK(I37)),\"\",_xlfn.MAXIFS('Mainenance log'!$H$3:$H$1048576,'Mainenance log'!$B$3:$B$1048576,'Service Interval'!$C37,'Mainenance log'!$E$3:$E$1048576,'Type of Service List'!$B$12))","v":""},{"$f":"IF(OR(ISBLANK(C37),ISBLANK(J37)),\"\",_xlfn.MAXIFS('Mainenance log'!$H$3:$H$1048576,'Mainenance log'!$B$3:$B$1048576,'Service Interval'!$C37,'Mainenance log'!$E$3:$E$1048576,'Type of Service List'!$B$14))","v":""},{"$f":"IF(OR(ISBLANK(C37),ISBLANK(K37)),\"\",_xlfn.MAXIFS('Mainenance log'!$H$3:$H$1048576,'Mainenance log'!$B$3:$B$1048576,'Service Interval'!$C37,'Mainenance log'!$E$3:$E$1048576,'Type of Service List'!$B$16))","v":""}]
[null,33,null,null,null,null,null,null,null,null,null,{"$f":"IF(ISBLANK(C38),\"\",_xlfn.MAXIFS(Hours,MainName,C38))","v":""},null,{"$f":"IF(OR(ISBLANK(C38),ISBLANK(D38)),\"\",_xlfn.MAXIFS('Mainenance log'!$H$3:$H$1048576,'Mainenance log'!$B$3:$B$1048576,'Service Interval'!$C38,'Mainenance log'!$E$3:$E$1048576,'Type of Service List'!$B$5))","v":""},{"$f":"IF(OR(ISBLANK(C38),ISBLANK(E38)),\"\",_xlfn.MAXIFS('Mainenance log'!$H$3:$H$1048576,'Mainenance log'!$B$3:$B$1048576,'Service Interval'!$C38,'Mainenance log'!$E$3:$E$1048576,'Type of Service List'!$B$8))","v":""},{"$f":"IF(OR(ISBLANK(C38),ISBLANK(F38)),\"\",_xlfn.MAXIFS('Mainenance log'!$H$3:$H$1048576,'Mainenance log'!$B$3:$B$1048576,'Service Interval'!$C38,'Mainenance log'!$E$3:$E$1048576,'Type of Service List'!$B$10))","v":""},{"$f":"IF(OR(ISBLANK(C38),ISBLANK(G38)),\"\",_xlfn.MAXIFS('Mainenance log'!$H$3:$H$1048576,'Mainenance log'!$B$3:$B$1048576,'Service Interval'!$C38,'Mainenance log'!$E$3:$E$1048576,'Type of Service List'!$B$11))","v":""},{"$f":"IF(OR(ISBLANK(C38),ISBLANK(H38)),\"\",_xlfn.MAXIFS('Mainenance log'!$H$3:$H$1048576,'Mainenance log'!$B$3:$B$1048576,'Service Interval'!$C38,'Mainenance log'!$E$3:$E$1048576,'Type of Service List'!$B$13))","v":""},{"$f":"IF(OR(ISBLANK(C38),ISBLANK(I38)),\"\",_xlfn.MAXIFS('Mainenance log'!$H$3:$H$1048576,'Mainenance log'!$B$3:$B$1048576,'Service Interval'!$C38,'Mainenance log'!$E$3:$E$1048576,'Type of Service List'!$B$12))","v":""},{"$f":"IF(OR(ISBLANK(C38),ISBLANK(J38)),\"\",_xlfn.MAXIFS('Mainenance log'!$H$3:$H$1048576,'Mainenance log'!$B$3:$B$1048576,'Service Interval'!$C38,'Mainenance log'!$E$3:$E$1048576,'Type of Service List'!$B$14))","v":""},{"$f":"IF(OR(ISBLANK(C38),ISBLANK(K38)),\"\",_xlfn.MAXIFS('Mainenance log'!$H$3:$H$1048576,'Mainenance log'!$B$3:$B$1048576,'Service Interval'!$C38,'Mainenance log'!$E$3:$E$1048576,'Type of Service List'!$B$16))","v":""}]
[null,34,null,null,null,null,null,null,null,null,null,"",null,{"$f":"IF(OR(ISBLANK(C39),ISBLANK(D39)),\"\",_xlfn.MAXIFS('Mainenance log'!$H$3:$H$1048576,'Mainenance log'!$B$3:$B$1048576,'Service Interval'!$C39,'Mainenance log'!$E$3:$E$1048576,'Type of Service List'!$B$5))","v":""},{"$f":"IF(OR(ISBLANK(C39),ISBLANK(E39)),\"\",_xlfn.MAXIFS('Mainenance log'!$H$3:$H$1048576,'Mainenance log'!$B$3:$B$1048576,'Service Interval'!$C39,'Mainenance log'!$E$3:$E$1048576,'Type of Service List'!$B$8))","v":""},{"$f":"IF(OR(ISBLANK(C39),ISBLANK(F39)),\"\",_xlfn.MAXIFS('Mainenance log'!$H$3:$H$1048576,'Mainenance log'!$B$3:$B$1048576,'Service Interval'!$C39,'Mainenance log'!$E$3:$E$1048576,'Type of Service List'!$B$10))","v":""},{"$f":"IF(OR(ISBLANK(C39),ISBLANK(G39)),\"\",_xlfn.MAXIFS('Mainenance log'!$H$3:$H$1048576,'Mainenance log'!$B$3:$B$1048576,'Service Interval'!$C39,'Mainenance log'!$E$3:$E$1048576,'Type of Service List'!$B$11))","v":""},{"$f":"IF(OR(ISBLANK(C39),ISBLANK(H39)),\"\",_xlfn.MAXIFS('Mainenance log'!$H$3:$H$1048576,'Mainenance log'!$B$3:$B$1048576,'Service Interval'!$C39,'Mainenance log'!$E$3:$E$1048576,'Type of Service List'!$B$13))","v":""},{"$f":"IF(OR(ISBLANK(C39),ISBLANK(I39)),\"\",_xlfn.MAXIFS('Mainenance log'!$H$3:$H$1048576,'Mainenance log'!$B$3:$B$1048576,'Service Interval'!$C39,'Mainenance log'!$E$3:$E$1048576,'Type of Service List'!$B$12))","v":""},{"$f":"IF(OR(ISBLANK(C39),ISBLANK(J39)),\"\",_xlfn.MAXIFS('Mainenance log'!$H$3:$H$1048576,'Mainenance log'!$B$3:$B$1048576,'Service Interval'!$C39,'Mainenance log'!$E$3:$E$1048576,'Type of Service List'!$B$14))","v":""},{"$f":"IF(OR(ISBLANK(C39),ISBLANK(K39)),\"\",_xlfn.MAXIFS('Mainenance log'!$H$3:$H$1048576,'Mainenance log'!$B$3:$B$1048576,'Service Interval'!$C39,'Mainenance log'!$E$3:$E$1048576,'Type of Service List'!$B$16))","v":""}]
[null,35,null,null,null,null,null,null,null,null,null,"",null,{"$f":"IF(OR(ISBLANK(C40),ISBLANK(D40)),\"\",_xlfn.MAXIFS('Mainenance log'!$H$3:$H$1048576,'Mainenance log'!$B$3:$B$1048576,'Service Interval'!$C40,'Mainenance log'!$E$3:$E$1048576,'Type of Service List'!$B$5))","v":""},{"$f":"IF(OR(ISBLANK(C40),ISBLANK(E40)),\"\",_xlfn.MAXIFS('Mainenance log'!$H$3:$H$1048576,'Mainenance log'!$B$3:$B$1048576,'Service Interval'!$C40,'Mainenance log'!$E$3:$E$1048576,'Type of Service List'!$B$8))","v":""},{"$f":"IF(OR(ISBLANK(C40),ISBLANK(F40)),\"\",_xlfn.MAXIFS('Mainenance log'!$H$3:$H$1048576,'Mainenance log'!$B$3:$B$1048576,'Service Interval'!$C40,'Mainenance log'!$E$3:$E$1048576,'Type of Service List'!$B$10))","v":""},{"$f":"IF(OR(ISBLANK(C40),ISBLANK(G40)),\"\",_xlfn.MAXIFS('Mainenance log'!$H$3:$H$1048576,'Mainenance log'!$B$3:$B$1048576,'Service Interval'!$C40,'Mainenance log'!$E$3:$E$1048576,'Type of Service List'!$B$11))","v":""},{"$f":"IF(OR(ISBLANK(C40),ISBLANK(H40)),\"\",_xlfn.MAXIFS('Mainenance log'!$H$3:$H$1048576,'Mainenance log'!$B$3:$B$1048576,'Service Interval'!$C40,'Mainenance log'!$E$3:$E$1048576,'Type of Service List'!$B$13))","v":""},{"$f":"IF(OR(ISBLANK(C40),ISBLANK(I40)),\"\",_xlfn.MAXIFS('Mainenance log'!$H$3:$H$1048576,'Mainenance log'!$B$3:$B$1048576,'Service Interval'!$C40,'Mainenance log'!$E$3:$E$1048576,'Type of Service List'!$B$12))","v":""},{"$f":"IF(OR(ISBLANK(C40),ISBLANK(J40)),\"\",_xlfn.MAXIFS('Mainenance log'!$H$3:$H$1048576,'Mainenance log'!$B$3:$B$1048576,'Service Interval'!$C40,'Mainenance log'!$E$3:$E$1048576,'Type of Service List'!$B$14))","v":""},{"$f":"IF(OR(ISBLANK(C40),ISBLANK(K40)),\"\",_xlfn.MAXIFS('Mainenance log'!$H$3:$H$1048576,'Mainenance log'!$B$3:$B$1048576,'Service Interval'!$C40,'Mainenance log'!$E$3:$E$1048576,'Type of Service List'!$B$16))","v":""}]
[null,36,null,null,null,null,null,null,null,null,null,"",null,{"$f":"IF(OR(ISBLANK(C41),ISBLANK(D41)),\"\",_xlfn.MAXIFS('Mainenance log'!$H$3:$H$1048576,'Mainenance log'!$B$3:$B$1048576,'Service Interval'!$C41,'Mainenance log'!$E$3:$E$1048576,'Type of Service List'!$B$5))","v":""},{"$f":"IF(OR(ISBLANK(C41),ISBLANK(E41)),\"\",_xlfn.MAXIFS('Mainenance log'!$H$3:$H$1048576,'Mainenance log'!$B$3:$B$1048576,'Service Interval'!$C41,'Mainenance log'!$E$3:$E$1048576,'Type of Service List'!$B$8))","v":""},{"$f":"IF(OR(ISBLANK(C41),ISBLANK(F41)),\"\",_xlfn.MAXIFS('Mainenance log'!$H$3:$H$1048576,'Mainenance log'!$B$3:$B$1048576,'Service Interval'!$C41,'Mainenance log'!$E$3:$E$1048576,'Type of Service List'!$B$10))","v":""},{"$f":"IF(OR(ISBLANK(C41),ISBLANK(G41)),\"\",_xlfn.MAXIFS('Mainenance log'!$H$3:$H$1048576,'Mainenance log'!$B$3:$B$1048576,'Service Interval'!$C41,'Mainenance log'!$E$3:$E$1048576,'Type of Service List'!$B$11))","v":""},{"$f":"IF(OR(ISBLANK(C41),ISBLANK(H41)),\"\",_xlfn.MAXIFS('Mainenance log'!$H$3:$H$1048576,'Mainenance log'!$B$3:$B$1048576,'Service Interval'!$C41,'Mainenance log'!$E$3:$E$1048576,'Type of Service List'!$B$13))","v":""},{"$f":"IF(OR(ISBLANK(C41),ISBLANK(I41)),\"\",_xlfn.MAXIFS('Mainenance log'!$H$3:$H$1048576,'Mainenance log'!$B$3:$B$1048576,'Service Interval'!$C41,'Mainenance log'!$E$3:$E$1048576,'Type of Service List'!$B$12))","v":""},{"$f":"IF(OR(ISBLANK(C41),ISBLANK(J41)),\"\",_xlfn.MAXIFS('Mainenance log'!$H$3:$H$1048576,'Mainenance log'!$B$3:$B$1048576,'Service Interval'!$C41,'Mainenance log'!$E$3:$E$1048576,'Type of Service List'!$B$14))","v":""},{"$f":"IF(OR(ISBLANK(C41),ISBLANK(K41)),\"\",_xlfn.MAXIFS('Mainenance log'!$H$3:$H$1048576,'Mainenance log'!$B$3:$B$1048576,'Service Interval'!$C41,'Mainenance log'!$E$3:$E$1048576,'Type of Service List'!$B$16))","v":""}]
[null,37,null,null,null,null,null,null,null,null,null,"",null,{"$f":"IF(OR(ISBLANK(C42),ISBLANK(D42)),\"\",_xlfn.MAXIFS('Mainenance log'!$H$3:$H$1048576,'Mainenance log'!$B$3:$B$1048576,'Service Interval'!$C42,'Mainenance log'!$E$3:$E$1048576,'Type of Service List'!$B$5))","v":""},{"$f":"IF(OR(ISBLANK(C42),ISBLANK(E42)),\"\",_xlfn.MAXIFS('Mainenance log'!$H$3:$H$1048576,'Mainenance log'!$B$3:$B$1048576,'Service Interval'!$C42,'Mainenance log'!$E$3:$E$1048576,'Type of Service List'!$B$8))","v":""},{"$f":"IF(OR(ISBLANK(C42),ISBLANK(F42)),\"\",_xlfn.MAXIFS('Mainenance log'!$H$3:$H$1048576,'Mainenance log'!$B$3:$B$1048576,'Service Interval'!$C42,'Mainenance log'!$E$3:$E$1048576,'Type of Service List'!$B$10))","v":""},{"$f":"IF(OR(ISBLANK(C42),ISBLANK(G42)),\"\",_xlfn.MAXIFS('Mainenance log'!$H$3:$H$1048576,'Mainenance log'!$B$3:$B$1048576,'Service Interval'!$C42,'Mainenance log'!$E$3:$E$1048576,'Type of Service List'!$B$11))","v":""},{"$f":"IF(OR(ISBLANK(C42),ISBLANK(H42)),\"\",_xlfn.MAXIFS('Mainenance log'!$H$3:$H$1048576,'Mainenance log'!$B$3:$B$1048576,'Service Interval'!$C42,'Mainenance log'!$E$3:$E$1048576,'Type of Service List'!$B$13))","v":""},{"$f":"IF(OR(ISBLANK(C42),ISBLANK(I42)),\"\",_xlfn.MAXIFS('Mainenance log'!$H$3:$H$1048576,'Mainenance log'!$B$3:$B$1048576,'Service Interval'!$C42,'Mainenance log'!$E$3:$E$1048576,'Type of Service List'!$B$12))","v":""},{"$f":"IF(OR(ISBLANK(C42),ISBLANK(J42)),\"\",_xlfn.MAXIFS('Mainenance log'!$H$3:$H$1048576,'Mainenance log'!$B$3:$B$1048576,'Service Interval'!$C42,'Mainenance log'!$E$3:$E$1048576,'Type of Service List'!$B$14))","v":""},{"$f":"IF(OR(ISBLANK(C42),ISBLANK(K42)),\"\",_xlfn.MAXIFS('Mainenance log'!$H$3:$H$1048576,'Mainenance log'!$B$3:$B$1048576,'Service Interval'!$C42,'Mainenance log'!$E$3:$E$1048576,'Type of Service List'!$B$16))","v":""}]
[null,38,null,null,null,null,null,null,null,null,null,"",null,{"$f":"IF(OR(ISBLANK(C43),ISBLANK(D43)),\"\",_xlfn.MAXIFS('Mainenance log'!$H$3:$H$1048576,'Mainenance log'!$B$3:$B$1048576,'Service Interval'!$C43,'Mainenance log'!$E$3:$E$1048576,'Type of Service List'!$B$5))","v":""},{"$f":"IF(OR(ISBLANK(C43),ISBLANK(E43)),\"\",_xlfn.MAXIFS('Mainenance log'!$H$3:$H$1048576,'Mainenance log'!$B$3:$B$1048576,'Service Interval'!$C43,'Mainenance log'!$E$3:$E$1048576,'Type of Service List'!$B$8))","v":""},{"$f":"IF(OR(ISBLANK(C43),ISBLANK(F43)),\"\",_xlfn.MAXIFS('Mainenance log'!$H$3:$H$1048576,'Mainenance log'!$B$3:$B$1048576,'Service Interval'!$C43,'Mainenance log'!$E$3:$E$1048576,'Type of Service List'!$B$10))","v":""},{"$f":"IF(OR(ISBLANK(C43),ISBLANK(G43)),\"\",_xlfn.MAXIFS('Mainenance log'!$H$3:$H$1048576,'Mainenance log'!$B$3:$B$1048576,'Service Interval'!$C43,'Mainenance log'!$E$3:$E$1048576,'Type of Service List'!$B$11))","v":""},{"$f":"IF(OR(ISBLANK(C43),ISBLANK(H43)),\"\",_xlfn.MAXIFS('Mainenance log'!$H$3:$H$1048576,'Mainenance log'!$B$3:$B$1048576,'Service Interval'!$C43,'Mainenance log'!$E$3:$E$1048576,'Type of Service List'!$B$13))","v":""},{"$f":"IF(OR(ISBLANK(C43),ISBLANK(I43)),\"\",_xlfn.MAXIFS('Mainenance log'!$H$3:$H$1048576,'Mainenance log'!$B$3:$B$1048576,'Service Interval'!$C43,'Mainenance log'!$E$3:$E$1048576,'Type of Service List'!$B$12))","v":""},{"$f":"IF(OR(ISBLANK(C43),ISBLANK(J43)),\"\",_xlfn.MAXIFS('Mainenance log'!$H$3:$H$1048576,'Mainenance log'!$B$3:$B$1048576,'Service Interval'!$C43,'Mainenance log'!$E$3:$E$1048576,'Type of Service List'!$B$14))","v":""},{"$f":"IF(OR(ISBLANK(C43),ISBLANK(K43)),\"\",_xlfn.MAXIFS('Mainenance log'!$H$3:$H$1048576,'Mainenance log'!$B$3:$B$1048576,'Service Interval'!$C43,'Mainenance log'!$E$3:$E$1048576,'Type of Service List'!$B$16))","v":""}]
[null,39,null,null,null,null,null,null,null,null,null,"",null,{"$f":"IF(OR(ISBLANK(C44),ISBLANK(D44)),\"\",_xlfn.MAXIFS('Mainenance log'!$H$3:$H$1048576,'Mainenance log'!$B$3:$B$1048576,'Service Interval'!$C44,'Mainenance log'!$E$3:$E$1048576,'Type of Service List'!$B$5))","v":""},{"$f":"IF(OR(ISBLANK(C44),ISBLANK(E44)),\"\",_xlfn.MAXIFS('Mainenance log'!$H$3:$H$1048576,'Mainenance log'!$B$3:$B$1048576,'Service Interval'!$C44,'Mainenance log'!$E$3:$E$1048576,'Type of Service List'!$B$8))","v":""},{"$f":"IF(OR(ISBLANK(C44),ISBLANK(F44)),\"\",_xlfn.MAXIFS('Mainenance log'!$H$3:$H$1048576,'Mainenance log'!$B$3:$B$1048576,'Service Interval'!$C44,'Mainenance log'!$E$3:$E$1048576,'Type of Service List'!$B$10))","v":""},{"$f":"IF(OR(ISBLANK(C44),ISBLANK(G44)),\"\",_xlfn.MAXIFS('Mainenance log'!$H$3:$H$1048576,'Mainenance log'!$B$3:$B$1048576,'Service Interval'!$C44,'Mainenance log'!$E$3:$E$1048576,'Type of Service List'!$B$11))","v":""},{"$f":"IF(OR(ISBLANK(C44),ISBLANK(H44)),\"\",_xlfn.MAXIFS('Mainenance log'!$H$3:$H$1048576,'Mainenance log'!$B$3:$B$1048576,'Service Interval'!$C44,'Mainenance log'!$E$3:$E$1048576,'Type of Service List'!$B$13))","v":""},{"$f":"IF(OR(ISBLANK(C44),ISBLANK(I44)),\"\",_xlfn.MAXIFS('Mainenance log'!$H$3:$H$1048576,'Mainenance log'!$B$3:$B$1048576,'Service Interval'!$C44,'Mainenance log'!$E$3:$E$1048576,'Type of Service List'!$B$12))","v":""},{"$f":"IF(OR(ISBLANK(C44),ISBLANK(J44)),\"\",_xlfn.MAXIFS('Mainenance log'!$H$3:$H$1048576,'Mainenance log'!$B$3:$B$1048576,'Service Interval'!$C44,'Mainenance log'!$E$3:$E$1048576,'Type of Service List'!$B$14))","v":""},{"$f":"IF(OR(ISBLANK(C44),ISBLANK(K44)),\"\",_xlfn.MAXIFS('Mainenance log'!$H$3:$H$1048576,'Mainenance log'!$B$3:$B$1048576,'Service Interval'!$C44,'Mainenance log'!$E$3:$E$1048576,'Type of Service List'!$B$16))","v":""}]
[null,40,null,null,null,null,null,null,null,null,null,"",null,{"$f":"IF(OR(ISBLANK(C45),ISBLANK(D45)),\"\",_xlfn.MAXIFS('Mainenance log'!$H$3:$H$1048576,'Mainenance log'!$B$3:$B$1048576,'Service Interval'!$C45,'Mainenance log'!$E$3:$E$1048576,'Type of Service List'!$B$5))","v":""},{"$f":"IF(OR(ISBLANK(C45),ISBLANK(E45)),\"\",_xlfn.MAXIFS('Mainenance log'!$H$3:$H$1048576,'Mainenance log'!$B$3:$B$1048576,'Service Interval'!$C45,'Mainenance log'!$E$3:$E$1048576,'Type of Service List'!$B$8))","v":""},{"$f":"IF(OR(ISBLANK(C45),ISBLANK(F45)),\"\",_xlfn.MAXIFS('Mainenance log'!$H$3:$H$1048576,'Mainenance log'!$B$3:$B$1048576,'Service Interval'!$C45,'Mainenance log'!$E$3:$E$1048576,'Type of Service List'!$B$10))","v":""},{"$f":"IF(OR(ISBLANK(C45),ISBLANK(G45)),\"\",_xlfn.MAXIFS('Mainenance log'!$H$3:$H$1048576,'Mainenance log'!$B$3:$B$1048576,'Service Interval'!$C45,'Mainenance log'!$E$3:$E$1048576,'Type of Service List'!$B$11))","v":""},{"$f":"IF(OR(ISBLANK(C45),ISBLANK(H45)),\"\",_xlfn.MAXIFS('Mainenance log'!$H$3:$H$1048576,'Mainenance log'!$B$3:$B$1048576,'Service Interval'!$C45,'Mainenance log'!$E$3:$E$1048576,'Type of Service List'!$B$13))","v":""},{"$f":"IF(OR(ISBLANK(C45),ISBLANK(I45)),\"\",_xlfn.MAXIFS('Mainenance log'!$H$3:$H$1048576,'Mainenance log'!$B$3:$B$1048576,'Service Interval'!$C45,'Mainenance log'!$E$3:$E$1048576,'Type of Service List'!$B$12))","v":""},{"$f":"IF(OR(ISBLANK(C45),ISBLANK(J45)),\"\",_xlfn.MAXIFS('Mainenance log'!$H$3:$H$1048576,'Mainenance log'!$B$3:$B$1048576,'Service Interval'!$C45,'Mainenance log'!$E$3:$E$1048576,'Type of Service List'!$B$14))","v":""},{"$f":"IF(OR(ISBLANK(C45),ISBLANK(K45)),\"\",_xlfn.MAXIFS('Mainenance log'!$H$3:$H$1048576,'Mainenance log'!$B$3:$B$1048576,'Service Interval'!$C45,'Mainenance log'!$E$3:$E$1048576,'Type of Service List'!$B$16))","v":""}]
[null,41,null,null,null,null,null,null,null,null,null,"",null,{"$f":"IF(OR(ISBLANK(C46),ISBLANK(D46)),\"\",_xlfn.MAXIFS('Mainenance log'!$H$3:$H$1048576,'Mainenance log'!$B$3:$B$1048576,'Service Interval'!$C46,'Mainenance log'!$E$3:$E$1048576,'Type of Service List'!$B$5))","v":""},{"$f":"IF(OR(ISBLANK(C46),ISBLANK(E46)),\"\",_xlfn.MAXIFS('Mainenance log'!$H$3:$H$1048576,'Mainenance log'!$B$3:$B$1048576,'Service Interval'!$C46,'Mainenance log'!$E$3:$E$1048576,'Type of Service List'!$B$8))","v":""},{"$f":"IF(OR(ISBLANK(C46),ISBLANK(F46)),\"\",_xlfn.MAXIFS('Mainenance log'!$H$3:$H$1048576,'Mainenance log'!$B$3:$B$1048576,'Service Interval'!$C46,'Mainenance log'!$E$3:$E$1048576,'Type of Service List'!$B$10))","v":""},{"$f":"IF(OR(ISBLANK(C46),ISBLANK(G46)),\"\",_xlfn.MAXIFS('Mainenance log'!$H$3:$H$1048576,'Mainenance log'!$B$3:$B$1048576,'Service Interval'!$C46,'Mainenance log'!$E$3:$E$1048576,'Type of Service List'!$B$11))","v":""},{"$f":"IF(OR(ISBLANK(C46),ISBLANK(H46)),\"\",_xlfn.MAXIFS('Mainenance log'!$H$3:$H$1048576,'Mainenance log'!$B$3:$B$1048576,'Service Interval'!$C46,'Mainenance log'!$E$3:$E$1048576,'Type of Service List'!$B$13))","v":""},{"$f":"IF(OR(ISBLANK(C46),ISBLANK(I46)),\"\",_xlfn.MAXIFS('Mainenance log'!$H$3:$H$1048576,'Mainenance log'!$B$3:$B$1048576,'Service Interval'!$C46,'Mainenance log'!$E$3:$E$1048576,'Type of Service List'!$B$12))","v":""},{"$f":"IF(OR(ISBLANK(C46),ISBLANK(J46)),\"\",_xlfn.MAXIFS('Mainenance log'!$H$3:$H$1048576,'Mainenance log'!$B$3:$B$1048576,'Service Interval'!$C46,'Mainenance log'!$E$3:$E$1048576,'Type of Service List'!$B$14))","v":""},{"$f":"IF(OR(ISBLANK(C46),ISBLANK(K46)),\"\",_xlfn.MAXIFS('Mainenance log'!$H$3:$H$1048576,'Mainenance log'!$B$3:$B$1048576,'Service Interval'!$C46,'Mainenance log'!$E$3:$E$1048576,'Type of Service List'!$B$16))","v":""}]
[null,42,null,null,null,null,null,null,null,null,null,"",null,{"$f":"IF(OR(ISBLANK(C47),ISBLANK(D47)),\"\",_xlfn.MAXIFS('Mainenance log'!$H$3:$H$1048576,'Mainenance log'!$B$3:$B$1048576,'Service Interval'!$C47,'Mainenance log'!$E$3:$E$1048576,'Type of Service List'!$B$5))","v":""},{"$f":"IF(OR(ISBLANK(C47),ISBLANK(E47)),\"\",_xlfn.MAXIFS('Mainenance log'!$H$3:$H$1048576,'Mainenance log'!$B$3:$B$1048576,'Service Interval'!$C47,'Mainenance log'!$E$3:$E$1048576,'Type of Service List'!$B$8))","v":""},{"$f":"IF(OR(ISBLANK(C47),ISBLANK(F47)),\"\",_xlfn.MAXIFS('Mainenance log'!$H$3:$H$1048576,'Mainenance log'!$B$3:$B$1048576,'Service Interval'!$C47,'Mainenance log'!$E$3:$E$1048576,'Type of Service List'!$B$10))","v":""},{"$f":"IF(OR(ISBLANK(C47),ISBLANK(G47)),\"\",_xlfn.MAXIFS('Mainenance log'!$H$3:$H$1048576,'Mainenance log'!$B$3:$B$1048576,'Service Interval'!$C47,'Mainenance log'!$E$3:$E$1048576,'Type of Service List'!$B$11))","v":""},{"$f":"IF(OR(ISBLANK(C47),ISBLANK(H47)),\"\",_xlfn.MAXIFS('Mainenance log'!$H$3:$H$1048576,'Mainenance log'!$B$3:$B$1048576,'Service Interval'!$C47,'Mainenance log'!$E$3:$E$1048576,'Type of Service List'!$B$13))","v":""},{"$f":"IF(OR(ISBLANK(C47),ISBLANK(I47)),\"\",_xlfn.MAXIFS('Mainenance log'!$H$3:$H$1048576,'Mainenance log'!$B$3:$B$1048576,'Service Interval'!$C47,'Mainenance log'!$E$3:$E$1048576,'Type of Service List'!$B$12))","v":""},{"$f":"IF(OR(ISBLANK(C47),ISBLANK(J47)),\"\",_xlfn.MAXIFS('Mainenance log'!$H$3:$H$1048576,'Mainenance log'!$B$3:$B$1048576,'Service Interval'!$C47,'Mainenance log'!$E$3:$E$1048576,'Type of Service List'!$B$14))","v":""},{"$f":"IF(OR(ISBLANK(C47),ISBLANK(K47)),\"\",_xlfn.MAXIFS('Mainenance log'!$H$3:$H$1048576,'Mainenance log'!$B$3:$B$1048576,'Service Interval'!$C47,'Mainenance log'!$E$3:$E$1048576,'Type of Service List'!$B$16))","v":""}]
[null,43,null,null,null,null,null,null,null,null,null,"",null,{"$f":"IF(OR(ISBLANK(C48),ISBLANK(D48)),\"\",_xlfn.MAXIFS('Mainenance log'!$H$3:$H$1048576,'Mainenance log'!$B$3:$B$1048576,'Service Interval'!$C48,'Mainenance log'!$E$3:$E$1048576,'Type of Service List'!$B$5))","v":""},{"$f":"IF(OR(ISBLANK(C48),ISBLANK(E48)),\"\",_xlfn.MAXIFS('Mainenance log'!$H$3:$H$1048576,'Mainenance log'!$B$3:$B$1048576,'Service Interval'!$C48,'Mainenance log'!$E$3:$E$1048576,'Type of Service List'!$B$8))","v":""},{"$f":"IF(OR(ISBLANK(C48),ISBLANK(F48)),\"\",_xlfn.MAXIFS('Mainenance log'!$H$3:$H$1048576,'Mainenance log'!$B$3:$B$1048576,'Service Interval'!$C48,'Mainenance log'!$E$3:$E$1048576,'Type of Service List'!$B$10))","v":""},{"$f":"IF(OR(ISBLANK(C48),ISBLANK(G48)),\"\",_xlfn.MAXIFS('Mainenance log'!$H$3:$H$1048576,'Mainenance log'!$B$3:$B$1048576,'Service Interval'!$C48,'Mainenance log'!$E$3:$E$1048576,'Type of Service List'!$B$11))","v":""},{"$f":"IF(OR(ISBLANK(C48),ISBLANK(H48)),\"\",_xlfn.MAXIFS('Mainenance log'!$H$3:$H$1048576,'Mainenance log'!$B$3:$B$1048576,'Service Interval'!$C48,'Mainenance log'!$E$3:$E$1048576,'Type of Service List'!$B$13))","v":""},{"$f":"IF(OR(ISBLANK(C48),ISBLANK(I48)),\"\",_xlfn.MAXIFS('Mainenance log'!$H$3:$H$1048576,'Mainenance log'!$B$3:$B$1048576,'Service Interval'!$C48,'Mainenance log'!$E$3:$E$1048576,'Type of Service List'!$B$12))","v":""},{"$f":"IF(OR(ISBLANK(C48),ISBLANK(J48)),\"\",_xlfn.MAXIFS('Mainenance log'!$H$3:$H$1048576,'Mainenance log'!$B$3:$B$1048576,'Service Interval'!$C48,'Mainenance log'!$E$3:$E$1048576,'Type of Service List'!$B$14))","v":""},{"$f":"IF(OR(ISBLANK(C48),ISBLANK(K48)),\"\",_xlfn.MAXIFS('Mainenance log'!$H$3:$H$1048576,'Mainenance log'!$B$3:$B$1048576,'Service Interval'!$C48,'Mainenance log'!$E$3:$E$1048576,'Type of Service List'!$B$16))","v":""}]
[null,44,null,null,null,null,null,null,null,null,null,"",null,{"$f":"IF(OR(ISBLANK(C49),ISBLANK(D49)),\"\",_xlfn.MAXIFS('Mainenance log'!$H$3:$H$1048576,'Mainenance log'!$B$3:$B$1048576,'Service Interval'!$C49,'Mainenance log'!$E$3:$E$1048576,'Type of Service List'!$B$5))","v":""},{"$f":"IF(OR(ISBLANK(C49),ISBLANK(E49)),\"\",_xlfn.MAXIFS('Mainenance log'!$H$3:$H$1048576,'Mainenance log'!$B$3:$B$1048576,'Service Interval'!$C49,'Mainenance log'!$E$3:$E$1048576,'Type of Service List'!$B$8))","v":""},{"$f":"IF(OR(ISBLANK(C49),ISBLANK(F49)),\"\",_xlfn.MAXIFS('Mainenance log'!$H$3:$H$1048576,'Mainenance log'!$B$3:$B$1048576,'Service Interval'!$C49,'Mainenance log'!$E$3:$E$1048576,'Type of Service List'!$B$10))","v":""},{"$f":"IF(OR(ISBLANK(C49),ISBLANK(G49)),\"\",_xlfn.MAXIFS('Mainenance log'!$H$3:$H$1048576,'Mainenance log'!$B$3:$B$1048576,'Service Interval'!$C49,'Mainenance log'!$E$3:$E$1048576,'Type of Service List'!$B$11))","v":""},{"$f":"IF(OR(ISBLANK(C49),ISBLANK(H49)),\"\",_xlfn.MAXIFS('Mainenance log'!$H$3:$H$1048576,'Mainenance log'!$B$3:$B$1048576,'Service Interval'!$C49,'Mainenance log'!$E$3:$E$1048576,'Type of Service List'!$B$13))","v":""},{"$f":"IF(OR(ISBLANK(C49),ISBLANK(I49)),\"\",_xlfn.MAXIFS('Mainenance log'!$H$3:$H$1048576,'Mainenance log'!$B$3:$B$1048576,'Service Interval'!$C49,'Mainenance log'!$E$3:$E$1048576,'Type of Service List'!$B$12))","v":""},{"$f":"IF(OR(ISBLANK(C49),ISBLANK(J49)),\"\",_xlfn.MAXIFS('Mainenance log'!$H$3:$H$1048576,'Mainenance log'!$B$3:$B$1048576,'Service Interval'!$C49,'Mainenance log'!$E$3:$E$1048576,'Type of Service List'!$B$14))","v":""},{"$f":"IF(OR(ISBLANK(C49),ISBLANK(K49)),\"\",_xlfn.MAXIFS('Mainenance log'!$H$3:$H$1048576,'Mainenance log'!$B$3:$B$1048576,'Service Interval'!$C49,'Mainenance log'!$E$3:$E$1048576,'Type of Service List'!$B$16))","v":""}]
[null,45,null,null,null,null,null,null,null,null,null,"",null,{"$f":"IF(OR(ISBLANK(C50),ISBLANK(D50)),\"\",_xlfn.MAXIFS('Mainenance log'!$H$3:$H$1048576,'Mainenance log'!$B$3:$B$1048576,'Service Interval'!$C50,'Mainenance log'!$E$3:$E$1048576,'Type of Service List'!$B$5))","v":""},{"$f":"IF(OR(ISBLANK(C50),ISBLANK(E50)),\"\",_xlfn.MAXIFS('Mainenance log'!$H$3:$H$1048576,'Mainenance log'!$B$3:$B$1048576,'Service Interval'!$C50,'Mainenance log'!$E$3:$E$1048576,'Type of Service List'!$B$8))","v":""},{"$f":"IF(OR(ISBLANK(C50),ISBLANK(F50)),\"\",_xlfn.MAXIFS('Mainenance log'!$H$3:$H$1048576,'Mainenance log'!$B$3:$B$1048576,'Service Interval'!$C50,'Mainenance log'!$E$3:$E$1048576,'Type of Service List'!$B$10))","v":""},{"$f":"IF(OR(ISBLANK(C50),ISBLANK(G50)),\"\",_xlfn.MAXIFS('Mainenance log'!$H$3:$H$1048576,'Mainenance log'!$B$3:$B$1048576,'Service Interval'!$C50,'Mainenance log'!$E$3:$E$1048576,'Type of Service List'!$B$11))","v":""},{"$f":"IF(OR(ISBLANK(C50),ISBLANK(H50)),\"\",_xlfn.MAXIFS('Mainenance log'!$H$3:$H$1048576,'Mainenance log'!$B$3:$B$1048576,'Service Interval'!$C50,'Mainenance log'!$E$3:$E$1048576,'Type of Service List'!$B$13))","v":""},{"$f":"IF(OR(ISBLANK(C50),ISBLANK(I50)),\"\",_xlfn.MAXIFS('Mainenance log'!$H$3:$H$1048576,'Mainenance log'!$B$3:$B$1048576,'Service Interval'!$C50,'Mainenance log'!$E$3:$E$1048576,'Type of Service List'!$B$12))","v":""},{"$f":"IF(OR(ISBLANK(C50),ISBLANK(J50)),\"\",_xlfn.MAXIFS('Mainenance log'!$H$3:$H$1048576,'Mainenance log'!$B$3:$B$1048576,'Service Interval'!$C50,'Mainenance log'!$E$3:$E$1048576,'Type of Service List'!$B$14))","v":""},{"$f":"IF(OR(ISBLANK(C50),ISBLANK(K50)),\"\",_xlfn.MAXIFS('Mainenance log'!$H$3:$H$1048576,'Mainenance log'!$B$3:$B$1048576,'Service Interval'!$C50,'Mainenance log'!$E$3:$E$1048576,'Type of Service List'!$B$16))","v":""}]
[null,46,null,null,null,null,null,null,null,null,null,"",null,{"$f":"IF(OR(ISBLANK(C51),ISBLANK(D51)),\"\",_xlfn.MAXIFS('Mainenance log'!$H$3:$H$1048576,'Mainenance log'!$B$3:$B$1048576,'Service Interval'!$C51,'Mainenance log'!$E$3:$E$1048576,'Type of Service List'!$B$5))","v":""},{"$f":"IF(OR(ISBLANK(C51),ISBLANK(E51)),\"\",_xlfn.MAXIFS('Mainenance log'!$H$3:$H$1048576,'Mainenance log'!$B$3:$B$1048576,'Service Interval'!$C51,'Mainenance log'!$E$3:$E$1048576,'Type of Service List'!$B$8))","v":""},{"$f":"IF(OR(ISBLANK(C51),ISBLANK(F51)),\"\",_xlfn.MAXIFS('Mainenance log'!$H$3:$H$1048576,'Mainenance log'!$B$3:$B$1048576,'Service Interval'!$C51,'Mainenance log'!$E$3:$E$1048576,'Type of Service List'!$B$10))","v":""},{"$f":"IF(OR(ISBLANK(C51),ISBLANK(G51)),\"\",_xlfn.MAXIFS('Mainenance log'!$H$3:$H$1048576,'Mainenance log'!$B$3:$B$1048576,'Service Interval'!$C51,'Mainenance log'!$E$3:$E$1048576,'Type of Service List'!$B$11))","v":""},{"$f":"IF(OR(ISBLANK(C51),ISBLANK(H51)),\"\",_xlfn.MAXIFS('Mainenance log'!$H$3:$H$1048576,'Mainenance log'!$B$3:$B$1048576,'Service Interval'!$C51,'Mainenance log'!$E$3:$E$1048576,'Type of Service List'!$B$13))","v":""},{"$f":"IF(OR(ISBLANK(C51),ISBLANK(I51)),\"\",_xlfn.MAXIFS('Mainenance log'!$H$3:$H$1048576,'Mainenance log'!$B$3:$B$1048576,'Service Interval'!$C51,'Mainenance log'!$E$3:$E$1048576,'Type of Service List'!$B$12))","v":""},{"$f":"IF(OR(ISBLANK(C51),ISBLANK(J51)),\"\",_xlfn.MAXIFS('Mainenance log'!$H$3:$H$1048576,'Mainenance log'!$B$3:$B$1048576,'Service Interval'!$C51,'Mainenance log'!$E$3:$E$1048576,'Type of Service List'!$B$14))","v":""},{"$f":"IF(OR(ISBLANK(C51),ISBLANK(K51)),\"\",_xlfn.MAXIFS('Mainenance log'!$H$3:$H$1048576,'Mainenance log'!$B$3:$B$1048576,'Service Interval'!$C51,'Mainenance log'!$E$3:$E$1048576,'Type of Service List'!$B$16))","v":""}]
[null,47,null,null,null,null,null,null,null,null,null,"",null,{"$f":"IF(OR(ISBLANK(C52),ISBLANK(D52)),\"\",_xlfn.MAXIFS('Mainenance log'!$H$3:$H$1048576,'Mainenance log'!$B$3:$B$1048576,'Service Interval'!$C52,'Mainenance log'!$E$3:$E$1048576,'Type of Service List'!$B$5))","v":""},{"$f":"IF(OR(ISBLANK(C52),ISBLANK(E52)),\"\",_xlfn.MAXIFS('Mainenance log'!$H$3:$H$1048576,'Mainenance log'!$B$3:$B$1048576,'Service Interval'!$C52,'Mainenance log'!$E$3:$E$1048576,'Type of Service List'!$B$8))","v":""},{"$f":"IF(OR(ISBLANK(C52),ISBLANK(F52)),\"\",_xlfn.MAXIFS('Mainenance log'!$H$3:$H$1048576,'Mainenance log'!$B$3:$B$1048576,'Service Interval'!$C52,'Mainenance log'!$E$3:$E$1048576,'Type of Service List'!$B$10))","v":""},{"$f":"IF(OR(ISBLANK(C52),ISBLANK(G52)),\"\",_xlfn.MAXIFS('Mainenance log'!$H$3:$H$1048576,'Mainenance log'!$B$3:$B$1048576,'Service Interval'!$C52,'Mainenance log'!$E$3:$E$1048576,'Type of Service List'!$B$11))","v":""},{"$f":"IF(OR(ISBLANK(C52),ISBLANK(H52)),\"\",_xlfn.MAXIFS('Mainenance log'!$H$3:$H$1048576,'Mainenance log'!$B$3:$B$1048576,'Service Interval'!$C52,'Mainenance log'!$E$3:$E$1048576,'Type of Service List'!$B$13))","v":""},{"$f":"IF(OR(ISBLANK(C52),ISBLANK(I52)),\"\",_xlfn.MAXIFS('Mainenance log'!$H$3:$H$1048576,'Mainenance log'!$B$3:$B$1048576,'Service Interval'!$C52,'Mainenance log'!$E$3:$E$1048576,'Type of Service List'!$B$12))","v":""},{"$f":"IF(OR(ISBLANK(C52),ISBLANK(J52)),\"\",_xlfn.MAXIFS('Mainenance log'!$H$3:$H$1048576,'Mainenance log'!$B$3:$B$1048576,'Service Interval'!$C52,'Mainenance log'!$E$3:$E$1048576,'Type of Service List'!$B$14))","v":""},{"$f":"IF(OR(ISBLANK(C52),ISBLANK(K52)),\"\",_xlfn.MAXIFS('Mainenance log'!$H$3:$H$1048576,'Mainenance log'!$B$3:$B$1048576,'Service Interval'!$C52,'Mainenance log'!$E$3:$E$1048576,'Type of Service List'!$B$16))","v":""}]
[null,48,null,null,null,null,null,null,null,null,null,"",null,{"$f":"IF(OR(ISBLANK(C53),ISBLANK(D53)),\"\",_xlfn.MAXIFS('Mainenance log'!$H$3:$H$1048576,'Mainenance log'!$B$3:$B$1048576,'Service Interval'!$C53,'Mainenance log'!$E$3:$E$1048576,'Type of Service List'!$B$5))","v":""},{"$f":"IF(OR(ISBLANK(C53),ISBLANK(E53)),\"\",_xlfn.MAXIFS('Mainenance log'!$H$3:$H$1048576,'Mainenance log'!$B$3:$B$1048576,'Service Interval'!$C53,'Mainenance log'!$E$3:$E$1048576,'Type of Service List'!$B$8))","v":""},{"$f":"IF(OR(ISBLANK(C53),ISBLANK(F53)),\"\",_xlfn.MAXIFS('Mainenance log'!$H$3:$H$1048576,'Mainenance log'!$B$3:$B$1048576,'Service Interval'!$C53,'Mainenance log'!$E$3:$E$1048576,'Type of Service List'!$B$10))","v":""},{"$f":"IF(OR(ISBLANK(C53),ISBLANK(G53)),\"\",_xlfn.MAXIFS('Mainenance log'!$H$3:$H$1048576,'Mainenance log'!$B$3:$B$1048576,'Service Interval'!$C53,'Mainenance log'!$E$3:$E$1048576,'Type of Service List'!$B$11))","v":""},{"$f":"IF(OR(ISBLANK(C53),ISBLANK(H53)),\"\",_xlfn.MAXIFS('Mainenance log'!$H$3:$H$1048576,'Mainenance log'!$B$3:$B$1048576,'Service Interval'!$C53,'Mainenance log'!$E$3:$E$1048576,'Type of Service List'!$B$13))","v":""},{"$f":"IF(OR(ISBLANK(C53),ISBLANK(I53)),\"\",_xlfn.MAXIFS('Mainenance log'!$H$3:$H$1048576,'Mainenance log'!$B$3:$B$1048576,'Service Interval'!$C53,'Mainenance log'!$E$3:$E$1048576,'Type of Service List'!$B$12))","v":""},{"$f":"IF(OR(ISBLANK(C53),ISBLANK(J53)),\"\",_xlfn.MAXIFS('Mainenance log'!$H$3:$H$1048576,'Mainenance log'!$B$3:$B$1048576,'Service Interval'!$C53,'Mainenance log'!$E$3:$E$1048576,'Type of Service List'!$B$14))","v":""},{"$f":"IF(OR(ISBLANK(C53),ISBLANK(K53)),\"\",_xlfn.MAXIFS('Mainenance log'!$H$3:$H$1048576,'Mainenance log'!$B$3:$B$1048576,'Service Interval'!$C53,'Mainenance log'!$E$3:$E$1048576,'Type of Service List'!$B$16))","v":""}]
[null,49,null,null,null,null,null,null,null,null,null,"",null,{"$f":"IF(OR(ISBLANK(C54),ISBLANK(D54)),\"\",_xlfn.MAXIFS('Mainenance log'!$H$3:$H$1048576,'Mainenance log'!$B$3:$B$1048576,'Service Interval'!$C54,'Mainenance log'!$E$3:$E$1048576,'Type of Service List'!$B$5))","v":""},{"$f":"IF(OR(ISBLANK(C54),ISBLANK(E54)),\"\",_xlfn.MAXIFS('Mainenance log'!$H$3:$H$1048576,'Mainenance log'!$B$3:$B$1048576,'Service Interval'!$C54,'Mainenance log'!$E$3:$E$1048576,'Type of Service List'!$B$8))","v":""},{"$f":"IF(OR(ISBLANK(C54),ISBLANK(F54)),\"\",_xlfn.MAXIFS('Mainenance log'!$H$3:$H$1048576,'Mainenance log'!$B$3:$B$1048576,'Service Interval'!$C54,'Mainenance log'!$E$3:$E$1048576,'Type of Service List'!$B$10))","v":""},{"$f":"IF(OR(ISBLANK(C54),ISBLANK(G54)),\"\",_xlfn.MAXIFS('Mainenance log'!$H$3:$H$1048576,'Mainenance log'!$B$3:$B$1048576,'Service Interval'!$C54,'Mainenance log'!$E$3:$E$1048576,'Type of Service List'!$B$11))","v":""},{"$f":"IF(OR(ISBLANK(C54),ISBLANK(H54)),\"\",_xlfn.MAXIFS('Mainenance log'!$H$3:$H$1048576,'Mainenance log'!$B$3:$B$1048576,'Service Interval'!$C54,'Mainenance log'!$E$3:$E$1048576,'Type of Service List'!$B$13))","v":""},{"$f":"IF(OR(ISBLANK(C54),ISBLANK(I54)),\"\",_xlfn.MAXIFS('Mainenance log'!$H$3:$H$1048576,'Mainenance log'!$B$3:$B$1048576,'Service Interval'!$C54,'Mainenance log'!$E$3:$E$1048576,'Type of Service List'!$B$12))","v":""},{"$f":"IF(OR(ISBLANK(C54),ISBLANK(J54)),\"\",_xlfn.MAXIFS('Mainenance log'!$H$3:$H$1048576,'Mainenance log'!$B$3:$B$1048576,'Service Interval'!$C54,'Mainenance log'!$E$3:$E$1048576,'Type of Service List'!$B$14))","v":""},{"$f":"IF(OR(ISBLANK(C54),ISBLANK(K54)),\"\",_xlfn.MAXIFS('Mainenance log'!$H$3:$H$1048576,'Mainenance log'!$B$3:$B$1048576,'Service Interval'!$C54,'Mainenance log'!$E$3:$E$1048576,'Type of Service List'!$B$16))","v":""}]
[null,50,null,null,null,null,null,null,null,null,null,"",null,{"$f":"IF(OR(ISBLANK(C55),ISBLANK(D55)),\"\",_xlfn.MAXIFS('Mainenance log'!$H$3:$H$1048576,'Mainenance log'!$B$3:$B$1048576,'Service Interval'!$C55,'Mainenance log'!$E$3:$E$1048576,'Type of Service List'!$B$5))","v":""},{"$f":"IF(OR(ISBLANK(C55),ISBLANK(E55)),\"\",_xlfn.MAXIFS('Mainenance log'!$H$3:$H$1048576,'Mainenance log'!$B$3:$B$1048576,'Service Interval'!$C55,'Mainenance log'!$E$3:$E$1048576,'Type of Service List'!$B$8))","v":""},{"$f":"IF(OR(ISBLANK(C55),ISBLANK(F55)),\"\",_xlfn.MAXIFS('Mainenance log'!$H$3:$H$1048576,'Mainenance log'!$B$3:$B$1048576,'Service Interval'!$C55,'Mainenance log'!$E$3:$E$1048576,'Type of Service List'!$B$10))","v":""},{"$f":"IF(OR(ISBLANK(C55),ISBLANK(G55)),\"\",_xlfn.MAXIFS('Mainenance log'!$H$3:$H$1048576,'Mainenance log'!$B$3:$B$1048576,'Service Interval'!$C55,'Mainenance log'!$E$3:$E$1048576,'Type of Service List'!$B$11))","v":""},{"$f":"IF(OR(ISBLANK(C55),ISBLANK(H55)),\"\",_xlfn.MAXIFS('Mainenance log'!$H$3:$H$1048576,'Mainenance log'!$B$3:$B$1048576,'Service Interval'!$C55,'Mainenance log'!$E$3:$E$1048576,'Type of Service List'!$B$13))","v":""},{"$f":"IF(OR(ISBLANK(C55),ISBLANK(I55)),\"\",_xlfn.MAXIFS('Mainenance log'!$H$3:$H$1048576,'Mainenance log'!$B$3:$B$1048576,'Service Interval'!$C55,'Mainenance log'!$E$3:$E$1048576,'Type of Service List'!$B$12))","v":""},{"$f":"IF(OR(ISBLANK(C55),ISBLANK(J55)),\"\",_xlfn.MAXIFS('Mainenance log'!$H$3:$H$1048576,'Mainenance log'!$B$3:$B$1048576,'Service Interval'!$C55,'Mainenance log'!$E$3:$E$1048576,'Type of Service List'!$B$14))","v":""},{"$f":"IF(OR(ISBLANK(C55),ISBLANK(K55)),\"\",_xlfn.MAXIFS('Mainenance log'!$H$3:$H$1048576,'Mainenance log'!$B$3:$B$1048576,'Service Interval'!$C55,'Mainenance log'!$E$3:$E$1048576,'Type of Service List'!$B$16))","v":""}]
[null,51,null,null,null,null,null,null,null,null,null,"",null,{"$f":"IF(OR(ISBLANK(C56),ISBLANK(D56)),\"\",_xlfn.MAXIFS('Mainenance log'!$H$3:$H$1048576,'Mainenance log'!$B$3:$B$1048576,'Service Interval'!$C56,'Mainenance log'!$E$3:$E$1048576,'Type of Service List'!$B$5))","v":""},{"$f":"IF(OR(ISBLANK(C56),ISBLANK(E56)),\"\",_xlfn.MAXIFS('Mainenance log'!$H$3:$H$1048576,'Mainenance log'!$B$3:$B$1048576,'Service Interval'!$C56,'Mainenance log'!$E$3:$E$1048576,'Type of Service List'!$B$8))","v":""},{"$f":"IF(OR(ISBLANK(C56),ISBLANK(F56)),\"\",_xlfn.MAXIFS('Mainenance log'!$H$3:$H$1048576,'Mainenance log'!$B$3:$B$1048576,'Service Interval'!$C56,'Mainenance log'!$E$3:$E$1048576,'Type of Service List'!$B$10))","v":""},{"$f":"IF(OR(ISBLANK(C56),ISBLANK(G56)),\"\",_xlfn.MAXIFS('Mainenance log'!$H$3:$H$1048576,'Mainenance log'!$B$3:$B$1048576,'Service Interval'!$C56,'Mainenance log'!$E$3:$E$1048576,'Type of Service List'!$B$11))","v":""},{"$f":"IF(OR(ISBLANK(C56),ISBLANK(H56)),\"\",_xlfn.MAXIFS('Mainenance log'!$H$3:$H$1048576,'Mainenance log'!$B$3:$B$1048576,'Service Interval'!$C56,'Mainenance log'!$E$3:$E$1048576,'Type of Service List'!$B$13))","v":""},{"$f":"IF(OR(ISBLANK(C56),ISBLANK(I56)),\"\",_xlfn.MAXIFS('Mainenance log'!$H$3:$H$1048576,'Mainenance log'!$B$3:$B$1048576,'Service Interval'!$C56,'Mainenance log'!$E$3:$E$1048576,'Type of Service List'!$B$12))","v":""},{"$f":"IF(OR(ISBLANK(C56),ISBLANK(J56)),\"\",_xlfn.MAXIFS('Mainenance log'!$H$3:$H$1048576,'Mainenance log'!$B$3:$B$1048576,'Service Interval'!$C56,'Mainenance log'!$E$3:$E$1048576,'Type of Service List'!$B$14))","v":""},{"$f":"IF(OR(ISBLANK(C56),ISBLANK(K56)),\"\",_xlfn.MAXIFS('Mainenance log'!$H$3:$H$1048576,'Mainenance log'!$B$3:$B$1048576,'Service Interval'!$C56,'Mainenance log'!$E$3:$E$1048576,'Type of Service List'!$B$16))","v":""}]
[null,52,null,null,null,null,null,null,null,null,null,"",null,{"$f":"IF(OR(ISBLANK(C57),ISBLANK(D57)),\"\",_xlfn.MAXIFS('Mainenance log'!$H$3:$H$1048576,'Mainenance log'!$B$3:$B$1048576,'Service Interval'!$C57,'Mainenance log'!$E$3:$E$1048576,'Type of Service List'!$B$5))","v":""},{"$f":"IF(OR(ISBLANK(C57),ISBLANK(E57)),\"\",_xlfn.MAXIFS('Mainenance log'!$H$3:$H$1048576,'Mainenance log'!$B$3:$B$1048576,'Service Interval'!$C57,'Mainenance log'!$E$3:$E$1048576,'Type of Service List'!$B$8))","v":""},{"$f":"IF(OR(ISBLANK(C57),ISBLANK(F57)),\"\",_xlfn.MAXIFS('Mainenance log'!$H$3:$H$1048576,'Mainenance log'!$B$3:$B$1048576,'Service Interval'!$C57,'Mainenance log'!$E$3:$E$1048576,'Type of Service List'!$B$10))","v":""},{"$f":"IF(OR(ISBLANK(C57),ISBLANK(G57)),\"\",_xlfn.MAXIFS('Mainenance log'!$H$3:$H$1048576,'Mainenance log'!$B$3:$B$1048576,'Service Interval'!$C57,'Mainenance log'!$E$3:$E$1048576,'Type of Service List'!$B$11))","v":""},{"$f":"IF(OR(ISBLANK(C57),ISBLANK(H57)),\"\",_xlfn.MAXIFS('Mainenance log'!$H$3:$H$1048576,'Mainenance log'!$B$3:$B$1048576,'Service Interval'!$C57,'Mainenance log'!$E$3:$E$1048576,'Type of Service List'!$B$13))","v":""},{"$f":"IF(OR(ISBLANK(C57),ISBLANK(I57)),\"\",_xlfn.MAXIFS('Mainenance log'!$H$3:$H$1048576,'Mainenance log'!$B$3:$B$1048576,'Service Interval'!$C57,'Mainenance log'!$E$3:$E$1048576,'Type of Service List'!$B$12))","v":""},{"$f":"IF(OR(ISBLANK(C57),ISBLANK(J57)),\"\",_xlfn.MAXIFS('Mainenance log'!$H$3:$H$1048576,'Mainenance log'!$B$3:$B$1048576,'Service Interval'!$C57,'Mainenance log'!$E$3:$E$1048576,'Type of Service List'!$B$14))","v":""},{"$f":"IF(OR(ISBLANK(C57),ISBLANK(K57)),\"\",_xlfn.MAXIFS('Mainenance log'!$H$3:$H$1048576,'Mainenance log'!$B$3:$B$1048576,'Service Interval'!$C57,'Mainenance log'!$E$3:$E$1048576,'Type of Service List'!$B$16))","v":""}]
[null,53,null,null,null,null,null,null,null,null,null,"",null,{"$f":"IF(OR(ISBLANK(C58),ISBLANK(D58)),\"\",_xlfn.MAXIFS('Mainenance log'!$H$3:$H$1048576,'Mainenance log'!$B$3:$B$1048576,'Service Interval'!$C58,'Mainenance log'!$E$3:$E$1048576,'Type of Service List'!$B$5))","v":""},{"$f":"IF(OR(ISBLANK(C58),ISBLANK(E58)),\"\",_xlfn.MAXIFS('Mainenance log'!$H$3:$H$1048576,'Mainenance log'!$B$3:$B$1048576,'Service Interval'!$C58,'Mainenance log'!$E$3:$E$1048576,'Type of Service List'!$B$8))","v":""},{"$f":"IF(OR(ISBLANK(C58),ISBLANK(F58)),\"\",_xlfn.MAXIFS('Mainenance log'!$H$3:$H$1048576,'Mainenance log'!$B$3:$B$1048576,'Service Interval'!$C58,'Mainenance log'!$E$3:$E$1048576,'Type of Service List'!$B$10))","v":""},{"$f":"IF(OR(ISBLANK(C58),ISBLANK(G58)),\"\",_xlfn.MAXIFS('Mainenance log'!$H$3:$H$1048576,'Mainenance log'!$B$3:$B$1048576,'Service Interval'!$C58,'Mainenance log'!$E$3:$E$1048576,'Type of Service List'!$B$11))","v":""},{"$f":"IF(OR(ISBLANK(C58),ISBLANK(H58)),\"\",_xlfn.MAXIFS('Mainenance log'!$H$3:$H$1048576,'Mainenance log'!$B$3:$B$1048576,'Service Interval'!$C58,'Mainenance log'!$E$3:$E$1048576,'Type of Service List'!$B$13))","v":""},{"$f":"IF(OR(ISBLANK(C58),ISBLANK(I58)),\"\",_xlfn.MAXIFS('Mainenance log'!$H$3:$H$1048576,'Mainenance log'!$B$3:$B$1048576,'Service Interval'!$C58,'Mainenance log'!$E$3:$E$1048576,'Type of Service List'!$B$12))","v":""},{"$f":"IF(OR(ISBLANK(C58),ISBLANK(J58)),\"\",_xlfn.MAXIFS('Mainenance log'!$H$3:$H$1048576,'Mainenance log'!$B$3:$B$1048576,'Service Interval'!$C58,'Mainenance log'!$E$3:$E$1048576,'Type of Service List'!$B$14))","v":""},{"$f":"IF(OR(ISBLANK(C58),ISBLANK(K58)),\"\",_xlfn.MAXIFS('Mainenance log'!$H$3:$H$1048576,'Mainenance log'!$B$3:$B$1048576,'Service Interval'!$C58,'Mainenance log'!$E$3:$E$1048576,'Type of Service List'!$B$16))","v":""}]
[null,54,null,null,null,null,null,null,null,null,null,"",null,{"$f":"IF(OR(ISBLANK(C59),ISBLANK(D59)),\"\",_xlfn.MAXIFS('Mainenance log'!$H$3:$H$1048576,'Mainenance log'!$B$3:$B$1048576,'Service Interval'!$C59,'Mainenance log'!$E$3:$E$1048576,'Type of Service List'!$B$5))","v":""},{"$f":"IF(OR(ISBLANK(C59),ISBLANK(E59)),\"\",_xlfn.MAXIFS('Mainenance log'!$H$3:$H$1048576,'Mainenance log'!$B$3:$B$1048576,'Service Interval'!$C59,'Mainenance log'!$E$3:$E$1048576,'Type of Service List'!$B$8))","v":""},{"$f":"IF(OR(ISBLANK(C59),ISBLANK(F59)),\"\",_xlfn.MAXIFS('Mainenance log'!$H$3:$H$1048576,'Mainenance log'!$B$3:$B$1048576,'Service Interval'!$C59,'Mainenance log'!$E$3:$E$1048576,'Type of Service List'!$B$10))","v":""},{"$f":"IF(OR(ISBLANK(C59),ISBLANK(G59)),\"\",_xlfn.MAXIFS('Mainenance log'!$H$3:$H$1048576,'Mainenance log'!$B$3:$B$1048576,'Service Interval'!$C59,'Mainenance log'!$E$3:$E$1048576,'Type of Service List'!$B$11))","v":""},{"$f":"IF(OR(ISBLANK(C59),ISBLANK(H59)),\"\",_xlfn.MAXIFS('Mainenance log'!$H$3:$H$1048576,'Mainenance log'!$B$3:$B$1048576,'Service Interval'!$C59,'Mainenance log'!$E$3:$E$1048576,'Type of Service List'!$B$13))","v":""},{"$f":"IF(OR(ISBLANK(C59),ISBLANK(I59)),\"\",_xlfn.MAXIFS('Mainenance log'!$H$3:$H$1048576,'Mainenance log'!$B$3:$B$1048576,'Service Interval'!$C59,'Mainenance log'!$E$3:$E$1048576,'Type of Service List'!$B$12))","v":""},{"$f":"IF(OR(ISBLANK(C59),ISBLANK(J59)),\"\",_xlfn.MAXIFS('Mainenance log'!$H$3:$H$1048576,'Mainenance log'!$B$3:$B$1048576,'Service Interval'!$C59,'Mainenance log'!$E$3:$E$1048576,'Type of Service List'!$B$14))","v":""},{"$f":"IF(OR(ISBLANK(C59),ISBLANK(K59)),\"\",_xlfn.MAXIFS('Mainenance log'!$H$3:$H$1048576,'Mainenance log'!$B$3:$B$1048576,'Service Interval'!$C59,'Mainenance log'!$E$3:$E$1048576,'Type of Service List'!$B$16))","v":""}]
[null,55,null,null,null,null,null,null,null,null,null,"",null,{"$f":"IF(OR(ISBLANK(C60),ISBLANK(D60)),\"\",_xlfn.MAXIFS('Mainenance log'!$H$3:$H$1048576,'Mainenance log'!$B$3:$B$1048576,'Service Interval'!$C60,'Mainenance log'!$E$3:$E$1048576,'Type of Service List'!$B$5))","v":""},{"$f":"IF(OR(ISBLANK(C60),ISBLANK(E60)),\"\",_xlfn.MAXIFS('Mainenance log'!$H$3:$H$1048576,'Mainenance log'!$B$3:$B$1048576,'Service Interval'!$C60,'Mainenance log'!$E$3:$E$1048576,'Type of Service List'!$B$8))","v":""},{"$f":"IF(OR(ISBLANK(C60),ISBLANK(F60)),\"\",_xlfn.MAXIFS('Mainenance log'!$H$3:$H$1048576,'Mainenance log'!$B$3:$B$1048576,'Service Interval'!$C60,'Mainenance log'!$E$3:$E$1048576,'Type of Service List'!$B$10))","v":""},{"$f":"IF(OR(ISBLANK(C60),ISBLANK(G60)),\"\",_xlfn.MAXIFS('Mainenance log'!$H$3:$H$1048576,'Mainenance log'!$B$3:$B$1048576,'Service Interval'!$C60,'Mainenance log'!$E$3:$E$1048576,'Type of Service List'!$B$11))","v":""},{"$f":"IF(OR(ISBLANK(C60),ISBLANK(H60)),\"\",_xlfn.MAXIFS('Mainenance log'!$H$3:$H$1048576,'Mainenance log'!$B$3:$B$1048576,'Service Interval'!$C60,'Mainenance log'!$E$3:$E$1048576,'Type of Service List'!$B$13))","v":""},{"$f":"IF(OR(ISBLANK(C60),ISBLANK(I60)),\"\",_xlfn.MAXIFS('Mainenance log'!$H$3:$H$1048576,'Mainenance log'!$B$3:$B$1048576,'Service Interval'!$C60,'Mainenance log'!$E$3:$E$1048576,'Type of Service List'!$B$12))","v":""},{"$f":"IF(OR(ISBLANK(C60),ISBLANK(J60)),\"\",_xlfn.MAXIFS('Mainenance log'!$H$3:$H$1048576,'Mainenance log'!$B$3:$B$1048576,'Service Interval'!$C60,'Mainenance log'!$E$3:$E$1048576,'Type of Service List'!$B$14))","v":""},{"$f":"IF(OR(ISBLANK(C60),ISBLANK(K60)),\"\",_xlfn.MAXIFS('Mainenance log'!$H$3:$H$1048576,'Mainenance log'!$B$3:$B$1048576,'Service Interval'!$C60,'Mainenance log'!$E$3:$E$1048576,'Type of Service List'!$B$16))","v":""}]
[null,56,null,null,null,null,null,null,null,null,null,"",null,{"$f":"IF(OR(ISBLANK(C61),ISBLANK(D61)),\"\",_xlfn.MAXIFS('Mainenance log'!$H$3:$H$1048576,'Mainenance log'!$B$3:$B$1048576,'Service Interval'!$C61,'Mainenance log'!$E$3:$E$1048576,'Type of Service List'!$B$5))","v":""},{"$f":"IF(OR(ISBLANK(C61),ISBLANK(E61)),\"\",_xlfn.MAXIFS('Mainenance log'!$H$3:$H$1048576,'Mainenance log'!$B$3:$B$1048576,'Service Interval'!$C61,'Mainenance log'!$E$3:$E$1048576,'Type of Service List'!$B$8))","v":""},{"$f":"IF(OR(ISBLANK(C61),ISBLANK(F61)),\"\",_xlfn.MAXIFS('Mainenance log'!$H$3:$H$1048576,'Mainenance log'!$B$3:$B$1048576,'Service Interval'!$C61,'Mainenance log'!$E$3:$E$1048576,'Type of Service List'!$B$10))","v":""},{"$f":"IF(OR(ISBLANK(C61),ISBLANK(G61)),\"\",_xlfn.MAXIFS('Mainenance log'!$H$3:$H$1048576,'Mainenance log'!$B$3:$B$1048576,'Service Interval'!$C61,'Mainenance log'!$E$3:$E$1048576,'Type of Service List'!$B$11))","v":""},{"$f":"IF(OR(ISBLANK(C61),ISBLANK(H61)),\"\",_xlfn.MAXIFS('Mainenance log'!$H$3:$H$1048576,'Mainenance log'!$B$3:$B$1048576,'Service Interval'!$C61,'Mainenance log'!$E$3:$E$1048576,'Type of Service List'!$B$13))","v":""},{"$f":"IF(OR(ISBLANK(C61),ISBLANK(I61)),\"\",_xlfn.MAXIFS('Mainenance log'!$H$3:$H$1048576,'Mainenance log'!$B$3:$B$1048576,'Service Interval'!$C61,'Mainenance log'!$E$3:$E$1048576,'Type of Service List'!$B$12))","v":""},{"$f":"IF(OR(ISBLANK(C61),ISBLANK(J61)),\"\",_xlfn.MAXIFS('Mainenance log'!$H$3:$H$1048576,'Mainenance log'!$B$3:$B$1048576,'Service Interval'!$C61,'Mainenance log'!$E$3:$E$1048576,'Type of Service List'!$B$14))","v":""},{"$f":"IF(OR(ISBLANK(C61),ISBLANK(K61)),\"\",_xlfn.MAXIFS('Mainenance log'!$H$3:$H$1048576,'Mainenance log'!$B$3:$B$1048576,'Service Interval'!$C61,'Mainenance log'!$E$3:$E$1048576,'Type of Service List'!$B$16))","v":""}]
[null,57,null,null,null,null,null,null,null,null,null,"",null,{"$f":"IF(OR(ISBLANK(C62),ISBLANK(D62)),\"\",_xlfn.MAXIFS('Mainenance log'!$H$3:$H$1048576,'Mainenance log'!$B$3:$B$1048576,'Service Interval'!$C62,'Mainenance log'!$E$3:$E$1048576,'Type of Service List'!$B$5))","v":""},{"$f":"IF(OR(ISBLANK(C62),ISBLANK(E62)),\"\",_xlfn.MAXIFS('Mainenance log'!$H$3:$H$1048576,'Mainenance log'!$B$3:$B$1048576,'Service Interval'!$C62,'Mainenance log'!$E$3:$E$1048576,'Type of Service List'!$B$8))","v":""},{"$f":"IF(OR(ISBLANK(C62),ISBLANK(F62)),\"\",_xlfn.MAXIFS('Mainenance log'!$H$3:$H$1048576,'Mainenance log'!$B$3:$B$1048576,'Service Interval'!$C62,'Mainenance log'!$E$3:$E$1048576,'Type of Service List'!$B$10))","v":""},{"$f":"IF(OR(ISBLANK(C62),ISBLANK(G62)),\"\",_xlfn.MAXIFS('Mainenance log'!$H$3:$H$1048576,'Mainenance log'!$B$3:$B$1048576,'Service Interval'!$C62,'Mainenance log'!$E$3:$E$1048576,'Type of Service List'!$B$11))","v":""},{"$f":"IF(OR(ISBLANK(C62),ISBLANK(H62)),\"\",_xlfn.MAXIFS('Mainenance log'!$H$3:$H$1048576,'Mainenance log'!$B$3:$B$1048576,'Service Interval'!$C62,'Mainenance log'!$E$3:$E$1048576,'Type of Service List'!$B$13))","v":""},{"$f":"IF(OR(ISBLANK(C62),ISBLANK(I62)),\"\",_xlfn.MAXIFS('Mainenance log'!$H$3:$H$1048576,'Mainenance log'!$B$3:$B$1048576,'Service Interval'!$C62,'Mainenance log'!$E$3:$E$1048576,'Type of Service List'!$B$12))","v":""},{"$f":"IF(OR(ISBLANK(C62),ISBLANK(J62)),\"\",_xlfn.MAXIFS('Mainenance log'!$H$3:$H$1048576,'Mainenance log'!$B$3:$B$1048576,'Service Interval'!$C62,'Mainenance log'!$E$3:$E$1048576,'Type of Service List'!$B$14))","v":""},{"$f":"IF(OR(ISBLANK(C62),ISBLANK(K62)),\"\",_xlfn.MAXIFS('Mainenance log'!$H$3:$H$1048576,'Mainenance log'!$B$3:$B$1048576,'Service Interval'!$C62,'Mainenance log'!$E$3:$E$1048576,'Type of Service List'!$B$16))","v":""}]
[null,58,null,null,null,null,null,null,null,null,null,"",null,{"$f":"IF(OR(ISBLANK(C63),ISBLANK(D63)),\"\",_xlfn.MAXIFS('Mainenance log'!$H$3:$H$1048576,'Mainenance log'!$B$3:$B$1048576,'Service Interval'!$C63,'Mainenance log'!$E$3:$E$1048576,'Type of Service List'!$B$5))","v":""},{"$f":"IF(OR(ISBLANK(C63),ISBLANK(E63)),\"\",_xlfn.MAXIFS('Mainenance log'!$H$3:$H$1048576,'Mainenance log'!$B$3:$B$1048576,'Service Interval'!$C63,'Mainenance log'!$E$3:$E$1048576,'Type of Service List'!$B$8))","v":""},{"$f":"IF(OR(ISBLANK(C63),ISBLANK(F63)),\"\",_xlfn.MAXIFS('Mainenance log'!$H$3:$H$1048576,'Mainenance log'!$B$3:$B$1048576,'Service Interval'!$C63,'Mainenance log'!$E$3:$E$1048576,'Type of Service List'!$B$10))","v":""},{"$f":"IF(OR(ISBLANK(C63),ISBLANK(G63)),\"\",_xlfn.MAXIFS('Mainenance log'!$H$3:$H$1048576,'Mainenance log'!$B$3:$B$1048576,'Service Interval'!$C63,'Mainenance log'!$E$3:$E$1048576,'Type of Service List'!$B$11))","v":""},{"$f":"IF(OR(ISBLANK(C63),ISBLANK(H63)),\"\",_xlfn.MAXIFS('Mainenance log'!$H$3:$H$1048576,'Mainenance log'!$B$3:$B$1048576,'Service Interval'!$C63,'Mainenance log'!$E$3:$E$1048576,'Type of Service List'!$B$13))","v":""},{"$f":"IF(OR(ISBLANK(C63),ISBLANK(I63)),\"\",_xlfn.MAXIFS('Mainenance log'!$H$3:$H$1048576,'Mainenance log'!$B$3:$B$1048576,'Service Interval'!$C63,'Mainenance log'!$E$3:$E$1048576,'Type of Service List'!$B$12))","v":""},{"$f":"IF(OR(ISBLANK(C63),ISBLANK(J63)),\"\",_xlfn.MAXIFS('Mainenance log'!$H$3:$H$1048576,'Mainenance log'!$B$3:$B$1048576,'Service Interval'!$C63,'Mainenance log'!$E$3:$E$1048576,'Type of Service List'!$B$14))","v":""},{"$f":"IF(OR(ISBLANK(C63),ISBLANK(K63)),\"\",_xlfn.MAXIFS('Mainenance log'!$H$3:$H$1048576,'Mainenance log'!$B$3:$B$1048576,'Service Interval'!$C63,'Mainenance log'!$E$3:$E$1048576,'Type of Service List'!$B$16))","v":""}]
[null,59,null,null,null,null,null,null,null,null,null,"",null,{"$f":"IF(OR(ISBLANK(C64),ISBLANK(D64)),\"\",_xlfn.MAXIFS('Mainenance log'!$H$3:$H$1048576,'Mainenance log'!$B$3:$B$1048576,'Service Interval'!$C64,'Mainenance log'!$E$3:$E$1048576,'Type of Service List'!$B$5))","v":""},{"$f":"IF(OR(ISBLANK(C64),ISBLANK(E64)),\"\",_xlfn.MAXIFS('Mainenance log'!$H$3:$H$1048576,'Mainenance log'!$B$3:$B$1048576,'Service Interval'!$C64,'Mainenance log'!$E$3:$E$1048576,'Type of Service List'!$B$8))","v":""},{"$f":"IF(OR(ISBLANK(C64),ISBLANK(F64)),\"\",_xlfn.MAXIFS('Mainenance log'!$H$3:$H$1048576,'Mainenance log'!$B$3:$B$1048576,'Service Interval'!$C64,'Mainenance log'!$E$3:$E$1048576,'Type of Service List'!$B$10))","v":""},{"$f":"IF(OR(ISBLANK(C64),ISBLANK(G64)),\"\",_xlfn.MAXIFS('Mainenance log'!$H$3:$H$1048576,'Mainenance log'!$B$3:$B$1048576,'Service Interval'!$C64,'Mainenance log'!$E$3:$E$1048576,'Type of Service List'!$B$11))","v":""},{"$f":"IF(OR(ISBLANK(C64),ISBLANK(H64)),\"\",_xlfn.MAXIFS('Mainenance log'!$H$3:$H$1048576,'Mainenance log'!$B$3:$B$1048576,'Service Interval'!$C64,'Mainenance log'!$E$3:$E$1048576,'Type of Service List'!$B$13))","v":""},{"$f":"IF(OR(ISBLANK(C64),ISBLANK(I64)),\"\",_xlfn.MAXIFS('Mainenance log'!$H$3:$H$1048576,'Mainenance log'!$B$3:$B$1048576,'Service Interval'!$C64,'Mainenance log'!$E$3:$E$1048576,'Type of Service List'!$B$12))","v":""},{"$f":"IF(OR(ISBLANK(C64),ISBLANK(J64)),\"\",_xlfn.MAXIFS('Mainenance log'!$H$3:$H$1048576,'Mainenance log'!$B$3:$B$1048576,'Service Interval'!$C64,'Mainenance log'!$E$3:$E$1048576,'Type of Service List'!$B$14))","v":""},{"$f":"IF(OR(ISBLANK(C64),ISBLANK(K64)),\"\",_xlfn.MAXIFS('Mainenance log'!$H$3:$H$1048576,'Mainenance log'!$B$3:$B$1048576,'Service Interval'!$C64,'Mainenance log'!$E$3:$E$1048576,'Type of Service List'!$B$16))","v":""}]
[null,60,null,null,null,null,null,null,null,null,null,"",null,{"$f":"IF(OR(ISBLANK(C65),ISBLANK(D65)),\"\",_xlfn.MAXIFS('Mainenance log'!$H$3:$H$1048576,'Mainenance log'!$B$3:$B$1048576,'Service Interval'!$C65,'Mainenance log'!$E$3:$E$1048576,'Type of Service List'!$B$5))","v":""},{"$f":"IF(OR(ISBLANK(C65),ISBLANK(E65)),\"\",_xlfn.MAXIFS('Mainenance log'!$H$3:$H$1048576,'Mainenance log'!$B$3:$B$1048576,'Service Interval'!$C65,'Mainenance log'!$E$3:$E$1048576,'Type of Service List'!$B$8))","v":""},{"$f":"IF(OR(ISBLANK(C65),ISBLANK(F65)),\"\",_xlfn.MAXIFS('Mainenance log'!$H$3:$H$1048576,'Mainenance log'!$B$3:$B$1048576,'Service Interval'!$C65,'Mainenance log'!$E$3:$E$1048576,'Type of Service List'!$B$10))","v":""},{"$f":"IF(OR(ISBLANK(C65),ISBLANK(G65)),\"\",_xlfn.MAXIFS('Mainenance log'!$H$3:$H$1048576,'Mainenance log'!$B$3:$B$1048576,'Service Interval'!$C65,'Mainenance log'!$E$3:$E$1048576,'Type of Service List'!$B$11))","v":""},{"$f":"IF(OR(ISBLANK(C65),ISBLANK(H65)),\"\",_xlfn.MAXIFS('Mainenance log'!$H$3:$H$1048576,'Mainenance log'!$B$3:$B$1048576,'Service Interval'!$C65,'Mainenance log'!$E$3:$E$1048576,'Type of Service List'!$B$13))","v":""},{"$f":"IF(OR(ISBLANK(C65),ISBLANK(I65)),\"\",_xlfn.MAXIFS('Mainenance log'!$H$3:$H$1048576,'Mainenance log'!$B$3:$B$1048576,'Service Interval'!$C65,'Mainenance log'!$E$3:$E$1048576,'Type of Service List'!$B$12))","v":""},{"$f":"IF(OR(ISBLANK(C65),ISBLANK(J65)),\"\",_xlfn.MAXIFS('Mainenance log'!$H$3:$H$1048576,'Mainenance log'!$B$3:$B$1048576,'Service Interval'!$C65,'Mainenance log'!$E$3:$E$1048576,'Type of Service List'!$B$14))","v":""},{"$f":"IF(OR(ISBLANK(C65),ISBLANK(K65)),\"\",_xlfn.MAXIFS('Mainenance log'!$H$3:$H$1048576,'Mainenance log'!$B$3:$B$1048576,'Service Interval'!$C65,'Mainenance log'!$E$3:$E$1048576,'Type of Service List'!$B$16))","v":""}]
[null,61,null,null,null,null,null,null,null,null,null,"",null,{"$f":"IF(OR(ISBLANK(C66),ISBLANK(D66)),\"\",_xlfn.MAXIFS('Mainenance log'!$H$3:$H$1048576,'Mainenance log'!$B$3:$B$1048576,'Service Interval'!$C66,'Mainenance log'!$E$3:$E$1048576,'Type of Service List'!$B$5))","v":""},{"$f":"IF(OR(ISBLANK(C66),ISBLANK(E66)),\"\",_xlfn.MAXIFS('Mainenance log'!$H$3:$H$1048576,'Mainenance log'!$B$3:$B$1048576,'Service Interval'!$C66,'Mainenance log'!$E$3:$E$1048576,'Type of Service List'!$B$8))","v":""},{"$f":"IF(OR(ISBLANK(C66),ISBLANK(F66)),\"\",_xlfn.MAXIFS('Mainenance log'!$H$3:$H$1048576,'Mainenance log'!$B$3:$B$1048576,'Service Interval'!$C66,'Mainenance log'!$E$3:$E$1048576,'Type of Service List'!$B$10))","v":""},{"$f":"IF(OR(ISBLANK(C66),ISBLANK(G66)),\"\",_xlfn.MAXIFS('Mainenance log'!$H$3:$H$1048576,'Mainenance log'!$B$3:$B$1048576,'Service Interval'!$C66,'Mainenance log'!$E$3:$E$1048576,'Type of Service List'!$B$11))","v":""},{"$f":"IF(OR(ISBLANK(C66),ISBLANK(H66)),\"\",_xlfn.MAXIFS('Mainenance log'!$H$3:$H$1048576,'Mainenance log'!$B$3:$B$1048576,'Service Interval'!$C66,'Mainenance log'!$E$3:$E$1048576,'Type of Service List'!$B$13))","v":""},{"$f":"IF(OR(ISBLANK(C66),ISBLANK(I66)),\"\",_xlfn.MAXIFS('Mainenance log'!$H$3:$H$1048576,'Mainenance log'!$B$3:$B$1048576,'Service Interval'!$C66,'Mainenance log'!$E$3:$E$1048576,'Type of Service List'!$B$12))","v":""},{"$f":"IF(OR(ISBLANK(C66),ISBLANK(J66)),\"\",_xlfn.MAXIFS('Mainenance log'!$H$3:$H$1048576,'Mainenance log'!$B$3:$B$1048576,'Service Interval'!$C66,'Mainenance log'!$E$3:$E$1048576,'Type of Service List'!$B$14))","v":""},{"$f":"IF(OR(ISBLANK(C66),ISBLANK(K66)),\"\",_xlfn.MAXIFS('Mainenance log'!$H$3:$H$1048576,'Mainenance log'!$B$3:$B$1048576,'Service Interval'!$C66,'Mainenance log'!$E$3:$E$1048576,'Type of Service List'!$B$16))","v":""}]
[null,62,null,null,null,null,null,null,null,null,null,"",null,{"$f":"IF(OR(ISBLANK(C67),ISBLANK(D67)),\"\",_xlfn.MAXIFS('Mainenance log'!$H$3:$H$1048576,'Mainenance log'!$B$3:$B$1048576,'Service Interval'!$C67,'Mainenance log'!$E$3:$E$1048576,'Type of Service List'!$B$5))","v":""},{"$f":"IF(OR(ISBLANK(C67),ISBLANK(E67)),\"\",_xlfn.MAXIFS('Mainenance log'!$H$3:$H$1048576,'Mainenance log'!$B$3:$B$1048576,'Service Interval'!$C67,'Mainenance log'!$E$3:$E$1048576,'Type of Service List'!$B$8))","v":""},{"$f":"IF(OR(ISBLANK(C67),ISBLANK(F67)),\"\",_xlfn.MAXIFS('Mainenance log'!$H$3:$H$1048576,'Mainenance log'!$B$3:$B$1048576,'Service Interval'!$C67,'Mainenance log'!$E$3:$E$1048576,'Type of Service List'!$B$10))","v":""},{"$f":"IF(OR(ISBLANK(C67),ISBLANK(G67)),\"\",_xlfn.MAXIFS('Mainenance log'!$H$3:$H$1048576,'Mainenance log'!$B$3:$B$1048576,'Service Interval'!$C67,'Mainenance log'!$E$3:$E$1048576,'Type of Service List'!$B$11))","v":""},{"$f":"IF(OR(ISBLANK(C67),ISBLANK(H67)),\"\",_xlfn.MAXIFS('Mainenance log'!$H$3:$H$1048576,'Mainenance log'!$B$3:$B$1048576,'Service Interval'!$C67,'Mainenance log'!$E$3:$E$1048576,'Type of Service List'!$B$13))","v":""},{"$f":"IF(OR(ISBLANK(C67),ISBLANK(I67)),\"\",_xlfn.MAXIFS('Mainenance log'!$H$3:$H$1048576,'Mainenance log'!$B$3:$B$1048576,'Service Interval'!$C67,'Mainenance log'!$E$3:$E$1048576,'Type of Service List'!$B$12))","v":""},{"$f":"IF(OR(ISBLANK(C67),ISBLANK(J67)),\"\",_xlfn.MAXIFS('Mainenance log'!$H$3:$H$1048576,'Mainenance log'!$B$3:$B$1048576,'Service Interval'!$C67,'Mainenance log'!$E$3:$E$1048576,'Type of Service List'!$B$14))","v":""},{"$f":"IF(OR(ISBLANK(C67),ISBLANK(K67)),\"\",_xlfn.MAXIFS('Mainenance log'!$H$3:$H$1048576,'Mainenance log'!$B$3:$B$1048576,'Service Interval'!$C67,'Mainenance log'!$E$3:$E$1048576,'Type of Service List'!$B$16))","v":""}]
[null,63,null,null,null,null,null,null,null,null,null,"",null,{"$f":"IF(OR(ISBLANK(C68),ISBLANK(D68)),\"\",_xlfn.MAXIFS('Mainenance log'!$H$3:$H$1048576,'Mainenance log'!$B$3:$B$1048576,'Service Interval'!$C68,'Mainenance log'!$E$3:$E$1048576,'Type of Service List'!$B$5))","v":""},{"$f":"IF(OR(ISBLANK(C68),ISBLANK(E68)),\"\",_xlfn.MAXIFS('Mainenance log'!$H$3:$H$1048576,'Mainenance log'!$B$3:$B$1048576,'Service Interval'!$C68,'Mainenance log'!$E$3:$E$1048576,'Type of Service List'!$B$8))","v":""},{"$f":"IF(OR(ISBLANK(C68),ISBLANK(F68)),\"\",_xlfn.MAXIFS('Mainenance log'!$H$3:$H$1048576,'Mainenance log'!$B$3:$B$1048576,'Service Interval'!$C68,'Mainenance log'!$E$3:$E$1048576,'Type of Service List'!$B$10))","v":""},{"$f":"IF(OR(ISBLANK(C68),ISBLANK(G68)),\"\",_xlfn.MAXIFS('Mainenance log'!$H$3:$H$1048576,'Mainenance log'!$B$3:$B$1048576,'Service Interval'!$C68,'Mainenance log'!$E$3:$E$1048576,'Type of Service List'!$B$11))","v":""},{"$f":"IF(OR(ISBLANK(C68),ISBLANK(H68)),\"\",_xlfn.MAXIFS('Mainenance log'!$H$3:$H$1048576,'Mainenance log'!$B$3:$B$1048576,'Service Interval'!$C68,'Mainenance log'!$E$3:$E$1048576,'Type of Service List'!$B$13))","v":""},{"$f":"IF(OR(ISBLANK(C68),ISBLANK(I68)),\"\",_xlfn.MAXIFS('Mainenance log'!$H$3:$H$1048576,'Mainenance log'!$B$3:$B$1048576,'Service Interval'!$C68,'Mainenance log'!$E$3:$E$1048576,'Type of Service List'!$B$12))","v":""},{"$f":"IF(OR(ISBLANK(C68),ISBLANK(J68)),\"\",_xlfn.MAXIFS('Mainenance log'!$H$3:$H$1048576,'Mainenance log'!$B$3:$B$1048576,'Service Interval'!$C68,'Mainenance log'!$E$3:$E$1048576,'Type of Service List'!$B$14))","v":""},{"$f":"IF(OR(ISBLANK(C68),ISBLANK(K68)),\"\",_xlfn.MAXIFS('Mainenance log'!$H$3:$H$1048576,'Mainenance log'!$B$3:$B$1048576,'Service Interval'!$C68,'Mainenance log'!$E$3:$E$1048576,'Type of Service List'!$B$16))","v":""}]
[null,64,null,null,null,null,null,null,null,null,null,"",null,{"$f":"IF(OR(ISBLANK(C69),ISBLANK(D69)),\"\",_xlfn.MAXIFS('Mainenance log'!$H$3:$H$1048576,'Mainenance log'!$B$3:$B$1048576,'Service Interval'!$C69,'Mainenance log'!$E$3:$E$1048576,'Type of Service List'!$B$5))","v":""},{"$f":"IF(OR(ISBLANK(C69),ISBLANK(E69)),\"\",_xlfn.MAXIFS('Mainenance log'!$H$3:$H$1048576,'Mainenance log'!$B$3:$B$1048576,'Service Interval'!$C69,'Mainenance log'!$E$3:$E$1048576,'Type of Service List'!$B$8))","v":""},{"$f":"IF(OR(ISBLANK(C69),ISBLANK(F69)),\"\",_xlfn.MAXIFS('Mainenance log'!$H$3:$H$1048576,'Mainenance log'!$B$3:$B$1048576,'Service Interval'!$C69,'Mainenance log'!$E$3:$E$1048576,'Type of Service List'!$B$10))","v":""},{"$f":"IF(OR(ISBLANK(C69),ISBLANK(G69)),\"\",_xlfn.MAXIFS('Mainenance log'!$H$3:$H$1048576,'Mainenance log'!$B$3:$B$1048576,'Service Interval'!$C69,'Mainenance log'!$E$3:$E$1048576,'Type of Service List'!$B$11))","v":""},{"$f":"IF(OR(ISBLANK(C69),ISBLANK(H69)),\"\",_xlfn.MAXIFS('Mainenance log'!$H$3:$H$1048576,'Mainenance log'!$B$3:$B$1048576,'Service Interval'!$C69,'Mainenance log'!$E$3:$E$1048576,'Type of Service List'!$B$13))","v":""},{"$f":"IF(OR(ISBLANK(C69),ISBLANK(I69)),\"\",_xlfn.MAXIFS('Mainenance log'!$H$3:$H$1048576,'Mainenance log'!$B$3:$B$1048576,'Service Interval'!$C69,'Mainenance log'!$E$3:$E$1048576,'Type of Service List'!$B$12))","v":""},{"$f":"IF(OR(ISBLANK(C69),ISBLANK(J69)),\"\",_xlfn.MAXIFS('Mainenance log'!$H$3:$H$1048576,'Mainenance log'!$B$3:$B$1048576,'Service Interval'!$C69,'Mainenance log'!$E$3:$E$1048576,'Type of Service List'!$B$14))","v":""},{"$f":"IF(OR(ISBLANK(C69),ISBLANK(K69)),\"\",_xlfn.MAXIFS('Mainenance log'!$H$3:$H$1048576,'Mainenance log'!$B$3:$B$1048576,'Service Interval'!$C69,'Mainenance log'!$E$3:$E$1048576,'Type of Service List'!$B$16))","v":""}]
[null,65,null,null,null,null,null,null,null,null,null,{"$f":"IF(ISBLANK(C70),\"\",_xlfn.MAXIFS(Hours,MainName,C70))","v":""},null,{"$f":"IF(OR(ISBLANK(C70),ISBLANK(D70)),\"\",_xlfn.MAXIFS('Mainenance log'!$H$3:$H$1048576,'Mainenance log'!$B$3:$B$1048576,'Service Interval'!$C70,'Mainenance log'!$E$3:$E$1048576,'Type of Service List'!$B$5))","v":""},{"$f":"IF(OR(ISBLANK(C70),ISBLANK(E70)),\"\",_xlfn.MAXIFS('Mainenance log'!$H$3:$H$1048576,'Mainenance log'!$B$3:$B$1048576,'Service Interval'!$C70,'Mainenance log'!$E$3:$E$1048576,'Type of Service List'!$B$8))","v":""},{"$f":"IF(OR(ISBLANK(C70),ISBLANK(F70)),\"\",_xlfn.MAXIFS('Mainenance log'!$H$3:$H$1048576,'Mainenance log'!$B$3:$B$1048576,'Service Interval'!$C70,'Mainenance log'!$E$3:$E$1048576,'Type of Service List'!$B$10))","v":""},{"$f":"IF(OR(ISBLANK(C70),ISBLANK(G70)),\"\",_xlfn.MAXIFS('Mainenance log'!$H$3:$H$1048576,'Mainenance log'!$B$3:$B$1048576,'Service Interval'!$C70,'Mainenance log'!$E$3:$E$1048576,'Type of Service List'!$B$11))","v":""},{"$f":"IF(OR(ISBLANK(C70),ISBLANK(H70)),\"\",_xlfn.MAXIFS('Mainenance log'!$H$3:$H$1048576,'Mainenance log'!$B$3:$B$1048576,'Service Interval'!$C70,'Mainenance log'!$E$3:$E$1048576,'Type of Service List'!$B$13))","v":""},{"$f":"IF(OR(ISBLANK(C70),ISBLANK(I70)),\"\",_xlfn.MAXIFS('Mainenance log'!$H$3:$H$1048576,'Mainenance log'!$B$3:$B$1048576,'Service Interval'!$C70,'Mainenance log'!$E$3:$E$1048576,'Type of Service List'!$B$12))","v":""},{"$f":"IF(OR(ISBLANK(C70),ISBLANK(J70)),\"\",_xlfn.MAXIFS('Mainenance log'!$H$3:$H$1048576,'Mainenance log'!$B$3:$B$1048576,'Service Interval'!$C70,'Mainenance log'!$E$3:$E$1048576,'Type of Service List'!$B$14))","v":""},{"$f":"IF(OR(ISBLANK(C70),ISBLANK(K70)),\"\",_xlfn.MAXIFS('Mainenance log'!$H$3:$H$1048576,'Mainenance log'!$B$3:$B$1048576,'Service Interval'!$C70,'Mainenance log'!$E$3:$E$1048576,'Type of Service List'!$B$16))","v":""}]
[null,66,null,null,null,null,null,null,null,null,null,"",null,{"$f":"IF(OR(ISBLANK(C71),ISBLANK(D71)),\"\",_xlfn.MAXIFS('Mainenance log'!$H$3:$H$1048576,'Mainenance log'!$B$3:$B$1048576,'Service Interval'!$C71,'Mainenance log'!$E$3:$E$1048576,'Type of Service List'!$B$5))","v":""},{"$f":"IF(OR(ISBLANK(C71),ISBLANK(E71)),\"\",_xlfn.MAXIFS('Mainenance log'!$H$3:$H$1048576,'Mainenance log'!$B$3:$B$1048576,'Service Interval'!$C71,'Mainenance log'!$E$3:$E$1048576,'Type of Service List'!$B$8))","v":""},{"$f":"IF(OR(ISBLANK(C71),ISBLANK(F71)),\"\",_xlfn.MAXIFS('Mainenance log'!$H$3:$H$1048576,'Mainenance log'!$B$3:$B$1048576,'Service Interval'!$C71,'Mainenance log'!$E$3:$E$1048576,'Type of Service List'!$B$10))","v":""},{"$f":"IF(OR(ISBLANK(C71),ISBLANK(G71)),\"\",_xlfn.MAXIFS('Mainenance log'!$H$3:$H$1048576,'Mainenance log'!$B$3:$B$1048576,'Service Interval'!$C71,'Mainenance log'!$E$3:$E$1048576,'Type of Service List'!$B$11))","v":""},{"$f":"IF(OR(ISBLANK(C71),ISBLANK(H71)),\"\",_xlfn.MAXIFS('Mainenance log'!$H$3:$H$1048576,'Mainenance log'!$B$3:$B$1048576,'Service Interval'!$C71,'Mainenance log'!$E$3:$E$1048576,'Type of Service List'!$B$13))","v":""},{"$f":"IF(OR(ISBLANK(C71),ISBLANK(I71)),\"\",_xlfn.MAXIFS('Mainenance log'!$H$3:$H$1048576,'Mainenance log'!$B$3:$B$1048576,'Service Interval'!$C71,'Mainenance log'!$E$3:$E$1048576,'Type of Service List'!$B$12))","v":""},{"$f":"IF(OR(ISBLANK(C71),ISBLANK(J71)),\"\",_xlfn.MAXIFS('Mainenance log'!$H$3:$H$1048576,'Mainenance log'!$B$3:$B$1048576,'Service Interval'!$C71,'Mainenance log'!$E$3:$E$1048576,'Type of Service List'!$B$14))","v":""},{"$f":"IF(OR(ISBLANK(C71),ISBLANK(K71)),\"\",_xlfn.MAXIFS('Mainenance log'!$H$3:$H$1048576,'Mainenance log'!$B$3:$B$1048576,'Service Interval'!$C71,'Mainenance log'!$E$3:$E$1048576,'Type of Service List'!$B$16))","v":""}]
[null,67,null,null,null,null,null,null,null,null,null,"",null,{"$f":"IF(OR(ISBLANK(C72),ISBLANK(D72)),\"\",_xlfn.MAXIFS('Mainenance log'!$H$3:$H$1048576,'Mainenance log'!$B$3:$B$1048576,'Service Interval'!$C72,'Mainenance log'!$E$3:$E$1048576,'Type of Service List'!$B$5))","v":""},{"$f":"IF(OR(ISBLANK(C72),ISBLANK(E72)),\"\",_xlfn.MAXIFS('Mainenance log'!$H$3:$H$1048576,'Mainenance log'!$B$3:$B$1048576,'Service Interval'!$C72,'Mainenance log'!$E$3:$E$1048576,'Type of Service List'!$B$8))","v":""},{"$f":"IF(OR(ISBLANK(C72),ISBLANK(F72)),\"\",_xlfn.MAXIFS('Mainenance log'!$H$3:$H$1048576,'Mainenance log'!$B$3:$B$1048576,'Service Interval'!$C72,'Mainenance log'!$E$3:$E$1048576,'Type of Service List'!$B$10))","v":""},{"$f":"IF(OR(ISBLANK(C72),ISBLANK(G72)),\"\",_xlfn.MAXIFS('Mainenance log'!$H$3:$H$1048576,'Mainenance log'!$B$3:$B$1048576,'Service Interval'!$C72,'Mainenance log'!$E$3:$E$1048576,'Type of Service List'!$B$11))","v":""},{"$f":"IF(OR(ISBLANK(C72),ISBLANK(H72)),\"\",_xlfn.MAXIFS('Mainenance log'!$H$3:$H$1048576,'Mainenance log'!$B$3:$B$1048576,'Service Interval'!$C72,'Mainenance log'!$E$3:$E$1048576,'Type of Service List'!$B$13))","v":""},{"$f":"IF(OR(ISBLANK(C72),ISBLANK(I72)),\"\",_xlfn.MAXIFS('Mainenance log'!$H$3:$H$1048576,'Mainenance log'!$B$3:$B$1048576,'Service Interval'!$C72,'Mainenance log'!$E$3:$E$1048576,'Type of Service List'!$B$12))","v":""},{"$f":"IF(OR(ISBLANK(C72),ISBLANK(J72)),\"\",_xlfn.MAXIFS('Mainenance log'!$H$3:$H$1048576,'Mainenance log'!$B$3:$B$1048576,'Service Interval'!$C72,'Mainenance log'!$E$3:$E$1048576,'Type of Service List'!$B$14))","v":""},{"$f":"IF(OR(ISBLANK(C72),ISBLANK(K72)),\"\",_xlfn.MAXIFS('Mainenance log'!$H$3:$H$1048576,'Mainenance log'!$B$3:$B$1048576,'Service Interval'!$C72,'Mainenance log'!$E$3:$E$1048576,'Type of Service List'!$B$16))","v":""}]
[null,68,null,null,null,null,null,null,null,null,null,"",null,{"$f":"IF(OR(ISBLANK(C73),ISBLANK(D73)),\"\",_xlfn.MAXIFS('Mainenance log'!$H$3:$H$1048576,'Mainenance log'!$B$3:$B$1048576,'Service Interval'!$C73,'Mainenance log'!$E$3:$E$1048576,'Type of Service List'!$B$5))","v":""},{"$f":"IF(OR(ISBLANK(C73),ISBLANK(E73)),\"\",_xlfn.MAXIFS('Mainenance log'!$H$3:$H$1048576,'Mainenance log'!$B$3:$B$1048576,'Service Interval'!$C73,'Mainenance log'!$E$3:$E$1048576,'Type of Service List'!$B$8))","v":""},{"$f":"IF(OR(ISBLANK(C73),ISBLANK(F73)),\"\",_xlfn.MAXIFS('Mainenance log'!$H$3:$H$1048576,'Mainenance log'!$B$3:$B$1048576,'Service Interval'!$C73,'Mainenance log'!$E$3:$E$1048576,'Type of Service List'!$B$10))","v":""},{"$f":"IF(OR(ISBLANK(C73),ISBLANK(G73)),\"\",_xlfn.MAXIFS('Mainenance log'!$H$3:$H$1048576,'Mainenance log'!$B$3:$B$1048576,'Service Interval'!$C73,'Mainenance log'!$E$3:$E$1048576,'Type of Service List'!$B$11))","v":""},{"$f":"IF(OR(ISBLANK(C73),ISBLANK(H73)),\"\",_xlfn.MAXIFS('Mainenance log'!$H$3:$H$1048576,'Mainenance log'!$B$3:$B$1048576,'Service Interval'!$C73,'Mainenance log'!$E$3:$E$1048576,'Type of Service List'!$B$13))","v":""},{"$f":"IF(OR(ISBLANK(C73),ISBLANK(I73)),\"\",_xlfn.MAXIFS('Mainenance log'!$H$3:$H$1048576,'Mainenance log'!$B$3:$B$1048576,'Service Interval'!$C73,'Mainenance log'!$E$3:$E$1048576,'Type of Service List'!$B$12))","v":""},{"$f":"IF(OR(ISBLANK(C73),ISBLANK(J73)),\"\",_xlfn.MAXIFS('Mainenance log'!$H$3:$H$1048576,'Mainenance log'!$B$3:$B$1048576,'Service Interval'!$C73,'Mainenance log'!$E$3:$E$1048576,'Type of Service List'!$B$14))","v":""},{"$f":"IF(OR(ISBLANK(C73),ISBLANK(K73)),\"\",_xlfn.MAXIFS('Mainenance log'!$H$3:$H$1048576,'Mainenance log'!$B$3:$B$1048576,'Service Interval'!$C73,'Mainenance log'!$E$3:$E$1048576,'Type of Service List'!$B$16))","v":""}]
[null,69,null,null,null,null,null,null,null,null,null,"",null,{"$f":"IF(OR(ISBLANK(C74),ISBLANK(D74)),\"\",_xlfn.MAXIFS('Mainenance log'!$H$3:$H$1048576,'Mainenance log'!$B$3:$B$1048576,'Service Interval'!$C74,'Mainenance log'!$E$3:$E$1048576,'Type of Service List'!$B$5))","v":""},{"$f":"IF(OR(ISBLANK(C74),ISBLANK(E74)),\"\",_xlfn.MAXIFS('Mainenance log'!$H$3:$H$1048576,'Mainenance log'!$B$3:$B$1048576,'Service Interval'!$C74,'Mainenance log'!$E$3:$E$1048576,'Type of Service List'!$B$8))","v":""},{"$f":"IF(OR(ISBLANK(C74),ISBLANK(F74)),\"\",_xlfn.MAXIFS('Mainenance log'!$H$3:$H$1048576,'Mainenance log'!$B$3:$B$1048576,'Service Interval'!$C74,'Mainenance log'!$E$3:$E$1048576,'Type of Service List'!$B$10))","v":""},{"$f":"IF(OR(ISBLANK(C74),ISBLANK(G74)),\"\",_xlfn.MAXIFS('Mainenance log'!$H$3:$H$1048576,'Mainenance log'!$B$3:$B$1048576,'Service Interval'!$C74,'Mainenance log'!$E$3:$E$1048576,'Type of Service List'!$B$11))","v":""},{"$f":"IF(OR(ISBLANK(C74),ISBLANK(H74)),\"\",_xlfn.MAXIFS('Mainenance log'!$H$3:$H$1048576,'Mainenance log'!$B$3:$B$1048576,'Service Interval'!$C74,'Mainenance log'!$E$3:$E$1048576,'Type of Service List'!$B$13))","v":""},{"$f":"IF(OR(ISBLANK(C74),ISBLANK(I74)),\"\",_xlfn.MAXIFS('Mainenance log'!$H$3:$H$1048576,'Mainenance log'!$B$3:$B$1048576,'Service Interval'!$C74,'Mainenance log'!$E$3:$E$1048576,'Type of Service List'!$B$12))","v":""},{"$f":"IF(OR(ISBLANK(C74),ISBLANK(J74)),\"\",_xlfn.MAXIFS('Mainenance log'!$H$3:$H$1048576,'Mainenance log'!$B$3:$B$1048576,'Service Interval'!$C74,'Mainenance log'!$E$3:$E$1048576,'Type of Service List'!$B$14))","v":""},{"$f":"IF(OR(ISBLANK(C74),ISBLANK(K74)),\"\",_xlfn.MAXIFS('Mainenance log'!$H$3:$H$1048576,'Mainenance log'!$B$3:$B$1048576,'Service Interval'!$C74,'Mainenance log'!$E$3:$E$1048576,'Type of Service List'!$B$16))","v":""}]
[null,70,null,null,null,null,null,null,null,null,null,"",null,{"$f":"IF(OR(ISBLANK(C75),ISBLANK(D75)),\"\",_xlfn.MAXIFS('Mainenance log'!$H$3:$H$1048576,'Mainenance log'!$B$3:$B$1048576,'Service Interval'!$C75,'Mainenance log'!$E$3:$E$1048576,'Type of Service List'!$B$5))","v":""},{"$f":"IF(OR(ISBLANK(C75),ISBLANK(E75)),\"\",_xlfn.MAXIFS('Mainenance log'!$H$3:$H$1048576,'Mainenance log'!$B$3:$B$1048576,'Service Interval'!$C75,'Mainenance log'!$E$3:$E$1048576,'Type of Service List'!$B$8))","v":""},{"$f":"IF(OR(ISBLANK(C75),ISBLANK(F75)),\"\",_xlfn.MAXIFS('Mainenance log'!$H$3:$H$1048576,'Mainenance log'!$B$3:$B$1048576,'Service Interval'!$C75,'Mainenance log'!$E$3:$E$1048576,'Type of Service List'!$B$10))","v":""},{"$f":"IF(OR(ISBLANK(C75),ISBLANK(G75)),\"\",_xlfn.MAXIFS('Mainenance log'!$H$3:$H$1048576,'Mainenance log'!$B$3:$B$1048576,'Service Interval'!$C75,'Mainenance log'!$E$3:$E$1048576,'Type of Service List'!$B$11))","v":""},{"$f":"IF(OR(ISBLANK(C75),ISBLANK(H75)),\"\",_xlfn.MAXIFS('Mainenance log'!$H$3:$H$1048576,'Mainenance log'!$B$3:$B$1048576,'Service Interval'!$C75,'Mainenance log'!$E$3:$E$1048576,'Type of Service List'!$B$13))","v":""},{"$f":"IF(OR(ISBLANK(C75),ISBLANK(I75)),\"\",_xlfn.MAXIFS('Mainenance log'!$H$3:$H$1048576,'Mainenance log'!$B$3:$B$1048576,'Service Interval'!$C75,'Mainenance log'!$E$3:$E$1048576,'Type of Service List'!$B$12))","v":""},{"$f":"IF(OR(ISBLANK(C75),ISBLANK(J75)),\"\",_xlfn.MAXIFS('Mainenance log'!$H$3:$H$1048576,'Mainenance log'!$B$3:$B$1048576,'Service Interval'!$C75,'Mainenance log'!$E$3:$E$1048576,'Type of Service List'!$B$14))","v":""},{"$f":"IF(OR(ISBLANK(C75),ISBLANK(K75)),\"\",_xlfn.MAXIFS('Mainenance log'!$H$3:$H$1048576,'Mainenance log'!$B$3:$B$1048576,'Service Interval'!$C75,'Mainenance log'!$E$3:$E$1048576,'Type of Service List'!$B$16))","v":""}]
[null,71,null,null,null,null,null,null,null,null,null,"",null,{"$f":"IF(OR(ISBLANK(C76),ISBLANK(D76)),\"\",_xlfn.MAXIFS('Mainenance log'!$H$3:$H$1048576,'Mainenance log'!$B$3:$B$1048576,'Service Interval'!$C76,'Mainenance log'!$E$3:$E$1048576,'Type of Service List'!$B$5))","v":""},{"$f":"IF(OR(ISBLANK(C76),ISBLANK(E76)),\"\",_xlfn.MAXIFS('Mainenance log'!$H$3:$H$1048576,'Mainenance log'!$B$3:$B$1048576,'Service Interval'!$C76,'Mainenance log'!$E$3:$E$1048576,'Type of Service List'!$B$8))","v":""},{"$f":"IF(OR(ISBLANK(C76),ISBLANK(F76)),\"\",_xlfn.MAXIFS('Mainenance log'!$H$3:$H$1048576,'Mainenance log'!$B$3:$B$1048576,'Service Interval'!$C76,'Mainenance log'!$E$3:$E$1048576,'Type of Service List'!$B$10))","v":""},{"$f":"IF(OR(ISBLANK(C76),ISBLANK(G76)),\"\",_xlfn.MAXIFS('Mainenance log'!$H$3:$H$1048576,'Mainenance log'!$B$3:$B$1048576,'Service Interval'!$C76,'Mainenance log'!$E$3:$E$1048576,'Type of Service List'!$B$11))","v":""},{"$f":"IF(OR(ISBLANK(C76),ISBLANK(H76)),\"\",_xlfn.MAXIFS('Mainenance log'!$H$3:$H$1048576,'Mainenance log'!$B$3:$B$1048576,'Service Interval'!$C76,'Mainenance log'!$E$3:$E$1048576,'Type of Service List'!$B$13))","v":""},{"$f":"IF(OR(ISBLANK(C76),ISBLANK(I76)),\"\",_xlfn.MAXIFS('Mainenance log'!$H$3:$H$1048576,'Mainenance log'!$B$3:$B$1048576,'Service Interval'!$C76,'Mainenance log'!$E$3:$E$1048576,'Type of Service List'!$B$12))","v":""},{"$f":"IF(OR(ISBLANK(C76),ISBLANK(J76)),\"\",_xlfn.MAXIFS('Mainenance log'!$H$3:$H$1048576,'Mainenance log'!$B$3:$B$1048576,'Service Interval'!$C76,'Mainenance log'!$E$3:$E$1048576,'Type of Service List'!$B$14))","v":""},{"$f":"IF(OR(ISBLANK(C76),ISBLANK(K76)),\"\",_xlfn.MAXIFS('Mainenance log'!$H$3:$H$1048576,'Mainenance log'!$B$3:$B$1048576,'Service Interval'!$C76,'Mainenance log'!$E$3:$E$1048576,'Type of Service List'!$B$16))","v":""}]
[null,72,null,null,null,null,null,null,null,null,null,"",null,{"$f":"IF(OR(ISBLANK(C77),ISBLANK(D77)),\"\",_xlfn.MAXIFS('Mainenance log'!$H$3:$H$1048576,'Mainenance log'!$B$3:$B$1048576,'Service Interval'!$C77,'Mainenance log'!$E$3:$E$1048576,'Type of Service List'!$B$5))","v":""},{"$f":"IF(OR(ISBLANK(C77),ISBLANK(E77)),\"\",_xlfn.MAXIFS('Mainenance log'!$H$3:$H$1048576,'Mainenance log'!$B$3:$B$1048576,'Service Interval'!$C77,'Mainenance log'!$E$3:$E$1048576,'Type of Service List'!$B$8))","v":""},{"$f":"IF(OR(ISBLANK(C77),ISBLANK(F77)),\"\",_xlfn.MAXIFS('Mainenance log'!$H$3:$H$1048576,'Mainenance log'!$B$3:$B$1048576,'Service Interval'!$C77,'Mainenance log'!$E$3:$E$1048576,'Type of Service List'!$B$10))","v":""},{"$f":"IF(OR(ISBLANK(C77),ISBLANK(G77)),\"\",_xlfn.MAXIFS('Mainenance log'!$H$3:$H$1048576,'Mainenance log'!$B$3:$B$1048576,'Service Interval'!$C77,'Mainenance log'!$E$3:$E$1048576,'Type of Service List'!$B$11))","v":""},{"$f":"IF(OR(ISBLANK(C77),ISBLANK(H77)),\"\",_xlfn.MAXIFS('Mainenance log'!$H$3:$H$1048576,'Mainenance log'!$B$3:$B$1048576,'Service Interval'!$C77,'Mainenance log'!$E$3:$E$1048576,'Type of Service List'!$B$13))","v":""},{"$f":"IF(OR(ISBLANK(C77),ISBLANK(I77)),\"\",_xlfn.MAXIFS('Mainenance log'!$H$3:$H$1048576,'Mainenance log'!$B$3:$B$1048576,'Service Interval'!$C77,'Mainenance log'!$E$3:$E$1048576,'Type of Service List'!$B$12))","v":""},{"$f":"IF(OR(ISBLANK(C77),ISBLANK(J77)),\"\",_xlfn.MAXIFS('Mainenance log'!$H$3:$H$1048576,'Mainenance log'!$B$3:$B$1048576,'Service Interval'!$C77,'Mainenance log'!$E$3:$E$1048576,'Type of Service List'!$B$14))","v":""},{"$f":"IF(OR(ISBLANK(C77),ISBLANK(K77)),\"\",_xlfn.MAXIFS('Mainenance log'!$H$3:$H$1048576,'Mainenance log'!$B$3:$B$1048576,'Service Interval'!$C77,'Mainenance log'!$E$3:$E$1048576,'Type of Service List'!$B$16))","v":""}]
[null,73,null,null,null,null,null,null,null,null,null,"",null,{"$f":"IF(OR(ISBLANK(C78),ISBLANK(D78)),\"\",_xlfn.MAXIFS('Mainenance log'!$H$3:$H$1048576,'Mainenance log'!$B$3:$B$1048576,'Service Interval'!$C78,'Mainenance log'!$E$3:$E$1048576,'Type of Service List'!$B$5))","v":""},{"$f":"IF(OR(ISBLANK(C78),ISBLANK(E78)),\"\",_xlfn.MAXIFS('Mainenance log'!$H$3:$H$1048576,'Mainenance log'!$B$3:$B$1048576,'Service Interval'!$C78,'Mainenance log'!$E$3:$E$1048576,'Type of Service List'!$B$8))","v":""},{"$f":"IF(OR(ISBLANK(C78),ISBLANK(F78)),\"\",_xlfn.MAXIFS('Mainenance log'!$H$3:$H$1048576,'Mainenance log'!$B$3:$B$1048576,'Service Interval'!$C78,'Mainenance log'!$E$3:$E$1048576,'Type of Service List'!$B$10))","v":""},{"$f":"IF(OR(ISBLANK(C78),ISBLANK(G78)),\"\",_xlfn.MAXIFS('Mainenance log'!$H$3:$H$1048576,'Mainenance log'!$B$3:$B$1048576,'Service Interval'!$C78,'Mainenance log'!$E$3:$E$1048576,'Type of Service List'!$B$11))","v":""},{"$f":"IF(OR(ISBLANK(C78),ISBLANK(H78)),\"\",_xlfn.MAXIFS('Mainenance log'!$H$3:$H$1048576,'Mainenance log'!$B$3:$B$1048576,'Service Interval'!$C78,'Mainenance log'!$E$3:$E$1048576,'Type of Service List'!$B$13))","v":""},{"$f":"IF(OR(ISBLANK(C78),ISBLANK(I78)),\"\",_xlfn.MAXIFS('Mainenance log'!$H$3:$H$1048576,'Mainenance log'!$B$3:$B$1048576,'Service Interval'!$C78,'Mainenance log'!$E$3:$E$1048576,'Type of Service List'!$B$12))","v":""},{"$f":"IF(OR(ISBLANK(C78),ISBLANK(J78)),\"\",_xlfn.MAXIFS('Mainenance log'!$H$3:$H$1048576,'Mainenance log'!$B$3:$B$1048576,'Service Interval'!$C78,'Mainenance log'!$E$3:$E$1048576,'Type of Service List'!$B$14))","v":""},{"$f":"IF(OR(ISBLANK(C78),ISBLANK(K78)),\"\",_xlfn.MAXIFS('Mainenance log'!$H$3:$H$1048576,'Mainenance log'!$B$3:$B$1048576,'Service Interval'!$C78,'Mainenance log'!$E$3:$E$1048576,'Type of Service List'!$B$16))","v":""}]
[null,74,null,null,null,null,null,null,null,null,null,"",null,{"$f":"IF(OR(ISBLANK(C79),ISBLANK(D79)),\"\",_xlfn.MAXIFS('Mainenance log'!$H$3:$H$1048576,'Mainenance log'!$B$3:$B$1048576,'Service Interval'!$C79,'Mainenance log'!$E$3:$E$1048576,'Type of Service List'!$B$5))","v":""},{"$f":"IF(OR(ISBLANK(C79),ISBLANK(E79)),\"\",_xlfn.MAXIFS('Mainenance log'!$H$3:$H$1048576,'Mainenance log'!$B$3:$B$1048576,'Service Interval'!$C79,'Mainenance log'!$E$3:$E$1048576,'Type of Service List'!$B$8))","v":""},{"$f":"IF(OR(ISBLANK(C79),ISBLANK(F79)),\"\",_xlfn.MAXIFS('Mainenance log'!$H$3:$H$1048576,'Mainenance log'!$B$3:$B$1048576,'Service Interval'!$C79,'Mainenance log'!$E$3:$E$1048576,'Type of Service List'!$B$10))","v":""},{"$f":"IF(OR(ISBLANK(C79),ISBLANK(G79)),\"\",_xlfn.MAXIFS('Mainenance log'!$H$3:$H$1048576,'Mainenance log'!$B$3:$B$1048576,'Service Interval'!$C79,'Mainenance log'!$E$3:$E$1048576,'Type of Service List'!$B$11))","v":""},{"$f":"IF(OR(ISBLANK(C79),ISBLANK(H79)),\"\",_xlfn.MAXIFS('Mainenance log'!$H$3:$H$1048576,'Mainenance log'!$B$3:$B$1048576,'Service Interval'!$C79,'Mainenance log'!$E$3:$E$1048576,'Type of Service List'!$B$13))","v":""},{"$f":"IF(OR(ISBLANK(C79),ISBLANK(I79)),\"\",_xlfn.MAXIFS('Mainenance log'!$H$3:$H$1048576,'Mainenance log'!$B$3:$B$1048576,'Service Interval'!$C79,'Mainenance log'!$E$3:$E$1048576,'Type of Service List'!$B$12))","v":""},{"$f":"IF(OR(ISBLANK(C79),ISBLANK(J79)),\"\",_xlfn.MAXIFS('Mainenance log'!$H$3:$H$1048576,'Mainenance log'!$B$3:$B$1048576,'Service Interval'!$C79,'Mainenance log'!$E$3:$E$1048576,'Type of Service List'!$B$14))","v":""},{"$f":"IF(OR(ISBLANK(C79),ISBLANK(K79)),\"\",_xlfn.MAXIFS('Mainenance log'!$H$3:$H$1048576,'Mainenance log'!$B$3:$B$1048576,'Service Interval'!$C79,'Mainenance log'!$E$3:$E$1048576,'Type of Service List'!$B$16))","v":""}]
[null,75,null,null,null,null,null,null,null,null,null,"",null,{"$f":"IF(OR(ISBLANK(C80),ISBLANK(D80)),\"\",_xlfn.MAXIFS('Mainenance log'!$H$3:$H$1048576,'Mainenance log'!$B$3:$B$1048576,'Service Interval'!$C80,'Mainenance log'!$E$3:$E$1048576,'Type of Service List'!$B$5))","v":""},{"$f":"IF(OR(ISBLANK(C80),ISBLANK(E80)),\"\",_xlfn.MAXIFS('Mainenance log'!$H$3:$H$1048576,'Mainenance log'!$B$3:$B$1048576,'Service Interval'!$C80,'Mainenance log'!$E$3:$E$1048576,'Type of Service List'!$B$8))","v":""},{"$f":"IF(OR(ISBLANK(C80),ISBLANK(F80)),\"\",_xlfn.MAXIFS('Mainenance log'!$H$3:$H$1048576,'Mainenance log'!$B$3:$B$1048576,'Service Interval'!$C80,'Mainenance log'!$E$3:$E$1048576,'Type of Service List'!$B$10))","v":""},{"$f":"IF(OR(ISBLANK(C80),ISBLANK(G80)),\"\",_xlfn.MAXIFS('Mainenance log'!$H$3:$H$1048576,'Mainenance log'!$B$3:$B$1048576,'Service Interval'!$C80,'Mainenance log'!$E$3:$E$1048576,'Type of Service List'!$B$11))","v":""},{"$f":"IF(OR(ISBLANK(C80),ISBLANK(H80)),\"\",_xlfn.MAXIFS('Mainenance log'!$H$3:$H$1048576,'Mainenance log'!$B$3:$B$1048576,'Service Interval'!$C80,'Mainenance log'!$E$3:$E$1048576,'Type of Service List'!$B$13))","v":""},{"$f":"IF(OR(ISBLANK(C80),ISBLANK(I80)),\"\",_xlfn.MAXIFS('Mainenance log'!$H$3:$H$1048576,'Mainenance log'!$B$3:$B$1048576,'Service Interval'!$C80,'Mainenance log'!$E$3:$E$1048576,'Type of Service List'!$B$12))","v":""},{"$f":"IF(OR(ISBLANK(C80),ISBLANK(J80)),\"\",_xlfn.MAXIFS('Mainenance log'!$H$3:$H$1048576,'Mainenance log'!$B$3:$B$1048576,'Service Interval'!$C80,'Mainenance log'!$E$3:$E$1048576,'Type of Service List'!$B$14))","v":""},{"$f":"IF(OR(ISBLANK(C80),ISBLANK(K80)),\"\",_xlfn.MAXIFS('Mainenance log'!$H$3:$H$1048576,'Mainenance log'!$B$3:$B$1048576,'Service Interval'!$C80,'Mainenance log'!$E$3:$E$1048576,'Type of Service List'!$B$16))","v":""}]
[null,76,null,null,null,null,null,null,null,null,null,"",null,{"$f":"IF(OR(ISBLANK(C81),ISBLANK(D81)),\"\",_xlfn.MAXIFS('Mainenance log'!$H$3:$H$1048576,'Mainenance log'!$B$3:$B$1048576,'Service Interval'!$C81,'Mainenance log'!$E$3:$E$1048576,'Type of Service List'!$B$5))","v":""},{"$f":"IF(OR(ISBLANK(C81),ISBLANK(E81)),\"\",_xlfn.MAXIFS('Mainenance log'!$H$3:$H$1048576,'Mainenance log'!$B$3:$B$1048576,'Service Interval'!$C81,'Mainenance log'!$E$3:$E$1048576,'Type of Service List'!$B$8))","v":""},{"$f":"IF(OR(ISBLANK(C81),ISBLANK(F81)),\"\",_xlfn.MAXIFS('Mainenance log'!$H$3:$H$1048576,'Mainenance log'!$B$3:$B$1048576,'Service Interval'!$C81,'Mainenance log'!$E$3:$E$1048576,'Type of Service List'!$B$10))","v":""},{"$f":"IF(OR(ISBLANK(C81),ISBLANK(G81)),\"\",_xlfn.MAXIFS('Mainenance log'!$H$3:$H$1048576,'Mainenance log'!$B$3:$B$1048576,'Service Interval'!$C81,'Mainenance log'!$E$3:$E$1048576,'Type of Service List'!$B$11))","v":""},{"$f":"IF(OR(ISBLANK(C81),ISBLANK(H81)),\"\",_xlfn.MAXIFS('Mainenance log'!$H$3:$H$1048576,'Mainenance log'!$B$3:$B$1048576,'Service Interval'!$C81,'Mainenance log'!$E$3:$E$1048576,'Type of Service List'!$B$13))","v":""},{"$f":"IF(OR(ISBLANK(C81),ISBLANK(I81)),\"\",_xlfn.MAXIFS('Mainenance log'!$H$3:$H$1048576,'Mainenance log'!$B$3:$B$1048576,'Service Interval'!$C81,'Mainenance log'!$E$3:$E$1048576,'Type of Service List'!$B$12))","v":""},{"$f":"IF(OR(ISBLANK(C81),ISBLANK(J81)),\"\",_xlfn.MAXIFS('Mainenance log'!$H$3:$H$1048576,'Mainenance log'!$B$3:$B$1048576,'Service Interval'!$C81,'Mainenance log'!$E$3:$E$1048576,'Type of Service List'!$B$14))","v":""},{"$f":"IF(OR(ISBLANK(C81),ISBLANK(K81)),\"\",_xlfn.MAXIFS('Mainenance log'!$H$3:$H$1048576,'Mainenance log'!$B$3:$B$1048576,'Service Interval'!$C81,'Mainenance log'!$E$3:$E$1048576,'Type of Service List'!$B$16))","v":""}]
[null,77,null,null,null,null,null,null,null,null,null,"",null,{"$f":"IF(OR(ISBLANK(C82),ISBLANK(D82)),\"\",_xlfn.MAXIFS('Mainenance log'!$H$3:$H$1048576,'Mainenance log'!$B$3:$B$1048576,'Service Interval'!$C82,'Mainenance log'!$E$3:$E$1048576,'Type of Service List'!$B$5))","v":""},{"$f":"IF(OR(ISBLANK(C82),ISBLANK(E82)),\"\",_xlfn.MAXIFS('Mainenance log'!$H$3:$H$1048576,'Mainenance log'!$B$3:$B$1048576,'Service Interval'!$C82,'Mainenance log'!$E$3:$E$1048576,'Type of Service List'!$B$8))","v":""},{"$f":"IF(OR(ISBLANK(C82),ISBLANK(F82)),\"\",_xlfn.MAXIFS('Mainenance log'!$H$3:$H$1048576,'Mainenance log'!$B$3:$B$1048576,'Service Interval'!$C82,'Mainenance log'!$E$3:$E$1048576,'Type of Service List'!$B$10))","v":""},{"$f":"IF(OR(ISBLANK(C82),ISBLANK(G82)),\"\",_xlfn.MAXIFS('Mainenance log'!$H$3:$H$1048576,'Mainenance log'!$B$3:$B$1048576,'Service Interval'!$C82,'Mainenance log'!$E$3:$E$1048576,'Type of Service List'!$B$11))","v":""},{"$f":"IF(OR(ISBLANK(C82),ISBLANK(H82)),\"\",_xlfn.MAXIFS('Mainenance log'!$H$3:$H$1048576,'Mainenance log'!$B$3:$B$1048576,'Service Interval'!$C82,'Mainenance log'!$E$3:$E$1048576,'Type of Service List'!$B$13))","v":""},{"$f":"IF(OR(ISBLANK(C82),ISBLANK(I82)),\"\",_xlfn.MAXIFS('Mainenance log'!$H$3:$H$1048576,'Mainenance log'!$B$3:$B$1048576,'Service Interval'!$C82,'Mainenance log'!$E$3:$E$1048576,'Type of Service List'!$B$12))","v":""},{"$f":"IF(OR(ISBLANK(C82),ISBLANK(J82)),\"\",_xlfn.MAXIFS('Mainenance log'!$H$3:$H$1048576,'Mainenance log'!$B$3:$B$1048576,'Service Interval'!$C82,'Mainenance log'!$E$3:$E$1048576,'Type of Service List'!$B$14))","v":""},{"$f":"IF(OR(ISBLANK(C82),ISBLANK(K82)),\"\",_xlfn.MAXIFS('Mainenance log'!$H$3:$H$1048576,'Mainenance log'!$B$3:$B$1048576,'Service Interval'!$C82,'Mainenance log'!$E$3:$E$1048576,'Type of Service List'!$B$16))","v":""}]
[null,78,null,null,null,null,null,null,null,null,null,"",null,{"$f":"IF(OR(ISBLANK(C83),ISBLANK(D83)),\"\",_xlfn.MAXIFS('Mainenance log'!$H$3:$H$1048576,'Mainenance log'!$B$3:$B$1048576,'Service Interval'!$C83,'Mainenance log'!$E$3:$E$1048576,'Type of Service List'!$B$5))","v":""},{"$f":"IF(OR(ISBLANK(C83),ISBLANK(E83)),\"\",_xlfn.MAXIFS('Mainenance log'!$H$3:$H$1048576,'Mainenance log'!$B$3:$B$1048576,'Service Interval'!$C83,'Mainenance log'!$E$3:$E$1048576,'Type of Service List'!$B$8))","v":""},{"$f":"IF(OR(ISBLANK(C83),ISBLANK(F83)),\"\",_xlfn.MAXIFS('Mainenance log'!$H$3:$H$1048576,'Mainenance log'!$B$3:$B$1048576,'Service Interval'!$C83,'Mainenance log'!$E$3:$E$1048576,'Type of Service List'!$B$10))","v":""},{"$f":"IF(OR(ISBLANK(C83),ISBLANK(G83)),\"\",_xlfn.MAXIFS('Mainenance log'!$H$3:$H$1048576,'Mainenance log'!$B$3:$B$1048576,'Service Interval'!$C83,'Mainenance log'!$E$3:$E$1048576,'Type of Service List'!$B$11))","v":""},{"$f":"IF(OR(ISBLANK(C83),ISBLANK(H83)),\"\",_xlfn.MAXIFS('Mainenance log'!$H$3:$H$1048576,'Mainenance log'!$B$3:$B$1048576,'Service Interval'!$C83,'Mainenance log'!$E$3:$E$1048576,'Type of Service List'!$B$13))","v":""},{"$f":"IF(OR(ISBLANK(C83),ISBLANK(I83)),\"\",_xlfn.MAXIFS('Mainenance log'!$H$3:$H$1048576,'Mainenance log'!$B$3:$B$1048576,'Service Interval'!$C83,'Mainenance log'!$E$3:$E$1048576,'Type of Service List'!$B$12))","v":""},{"$f":"IF(OR(ISBLANK(C83),ISBLANK(J83)),\"\",_xlfn.MAXIFS('Mainenance log'!$H$3:$H$1048576,'Mainenance log'!$B$3:$B$1048576,'Service Interval'!$C83,'Mainenance log'!$E$3:$E$1048576,'Type of Service List'!$B$14))","v":""},{"$f":"IF(OR(ISBLANK(C83),ISBLANK(K83)),\"\",_xlfn.MAXIFS('Mainenance log'!$H$3:$H$1048576,'Mainenance log'!$B$3:$B$1048576,'Service Interval'!$C83,'Mainenance log'!$E$3:$E$1048576,'Type of Service List'!$B$16))","v":""}]
[null,79,null,null,null,null,null,null,null,null,null,"",null,{"$f":"IF(OR(ISBLANK(C84),ISBLANK(D84)),\"\",_xlfn.MAXIFS('Mainenance log'!$H$3:$H$1048576,'Mainenance log'!$B$3:$B$1048576,'Service Interval'!$C84,'Mainenance log'!$E$3:$E$1048576,'Type of Service List'!$B$5))","v":""},{"$f":"IF(OR(ISBLANK(C84),ISBLANK(E84)),\"\",_xlfn.MAXIFS('Mainenance log'!$H$3:$H$1048576,'Mainenance log'!$B$3:$B$1048576,'Service Interval'!$C84,'Mainenance log'!$E$3:$E$1048576,'Type of Service List'!$B$8))","v":""},{"$f":"IF(OR(ISBLANK(C84),ISBLANK(F84)),\"\",_xlfn.MAXIFS('Mainenance log'!$H$3:$H$1048576,'Mainenance log'!$B$3:$B$1048576,'Service Interval'!$C84,'Mainenance log'!$E$3:$E$1048576,'Type of Service List'!$B$10))","v":""},{"$f":"IF(OR(ISBLANK(C84),ISBLANK(G84)),\"\",_xlfn.MAXIFS('Mainenance log'!$H$3:$H$1048576,'Mainenance log'!$B$3:$B$1048576,'Service Interval'!$C84,'Mainenance log'!$E$3:$E$1048576,'Type of Service List'!$B$11))","v":""},{"$f":"IF(OR(ISBLANK(C84),ISBLANK(H84)),\"\",_xlfn.MAXIFS('Mainenance log'!$H$3:$H$1048576,'Mainenance log'!$B$3:$B$1048576,'Service Interval'!$C84,'Mainenance log'!$E$3:$E$1048576,'Type of Service List'!$B$13))","v":""},{"$f":"IF(OR(ISBLANK(C84),ISBLANK(I84)),\"\",_xlfn.MAXIFS('Mainenance log'!$H$3:$H$1048576,'Mainenance log'!$B$3:$B$1048576,'Service Interval'!$C84,'Mainenance log'!$E$3:$E$1048576,'Type of Service List'!$B$12))","v":""},{"$f":"IF(OR(ISBLANK(C84),ISBLANK(J84)),\"\",_xlfn.MAXIFS('Mainenance log'!$H$3:$H$1048576,'Mainenance log'!$B$3:$B$1048576,'Service Interval'!$C84,'Mainenance log'!$E$3:$E$1048576,'Type of Service List'!$B$14))","v":""},{"$f":"IF(OR(ISBLANK(C84),ISBLANK(K84)),\"\",_xlfn.MAXIFS('Mainenance log'!$H$3:$H$1048576,'Mainenance log'!$B$3:$B$1048576,'Service Interval'!$C84,'Mainenance log'!$E$3:$E$1048576,'Type of Service List'!$B$16))","v":""}]
[null,80,null,null,null,null,null,null,null,null,null,"",null,{"$f":"IF(OR(ISBLANK(C85),ISBLANK(D85)),\"\",_xlfn.MAXIFS('Mainenance log'!$H$3:$H$1048576,'Mainenance log'!$B$3:$B$1048576,'Service Interval'!$C85,'Mainenance log'!$E$3:$E$1048576,'Type of Service List'!$B$5))","v":""},{"$f":"IF(OR(ISBLANK(C85),ISBLANK(E85)),\"\",_xlfn.MAXIFS('Mainenance log'!$H$3:$H$1048576,'Mainenance log'!$B$3:$B$1048576,'Service Interval'!$C85,'Mainenance log'!$E$3:$E$1048576,'Type of Service List'!$B$8))","v":""},{"$f":"IF(OR(ISBLANK(C85),ISBLANK(F85)),\"\",_xlfn.MAXIFS('Mainenance log'!$H$3:$H$1048576,'Mainenance log'!$B$3:$B$1048576,'Service Interval'!$C85,'Mainenance log'!$E$3:$E$1048576,'Type of Service List'!$B$10))","v":""},{"$f":"IF(OR(ISBLANK(C85),ISBLANK(G85)),\"\",_xlfn.MAXIFS('Mainenance log'!$H$3:$H$1048576,'Mainenance log'!$B$3:$B$1048576,'Service Interval'!$C85,'Mainenance log'!$E$3:$E$1048576,'Type of Service List'!$B$11))","v":""},{"$f":"IF(OR(ISBLANK(C85),ISBLANK(H85)),\"\",_xlfn.MAXIFS('Mainenance log'!$H$3:$H$1048576,'Mainenance log'!$B$3:$B$1048576,'Service Interval'!$C85,'Mainenance log'!$E$3:$E$1048576,'Type of Service List'!$B$13))","v":""},{"$f":"IF(OR(ISBLANK(C85),ISBLANK(I85)),\"\",_xlfn.MAXIFS('Mainenance log'!$H$3:$H$1048576,'Mainenance log'!$B$3:$B$1048576,'Service Interval'!$C85,'Mainenance log'!$E$3:$E$1048576,'Type of Service List'!$B$12))","v":""},{"$f":"IF(OR(ISBLANK(C85),ISBLANK(J85)),\"\",_xlfn.MAXIFS('Mainenance log'!$H$3:$H$1048576,'Mainenance log'!$B$3:$B$1048576,'Service Interval'!$C85,'Mainenance log'!$E$3:$E$1048576,'Type of Service List'!$B$14))","v":""},{"$f":"IF(OR(ISBLANK(C85),ISBLANK(K85)),\"\",_xlfn.MAXIFS('Mainenance log'!$H$3:$H$1048576,'Mainenance log'!$B$3:$B$1048576,'Service Interval'!$C85,'Mainenance log'!$E$3:$E$1048576,'Type of Service List'!$B$16))","v":""}]
[null,81,null,null,null,null,null,null,null,null,null,"",null,{"$f":"IF(OR(ISBLANK(C86),ISBLANK(D86)),\"\",_xlfn.MAXIFS('Mainenance log'!$H$3:$H$1048576,'Mainenance log'!$B$3:$B$1048576,'Service Interval'!$C86,'Mainenance log'!$E$3:$E$1048576,'Type of Service List'!$B$5))","v":""},{"$f":"IF(OR(ISBLANK(C86),ISBLANK(E86)),\"\",_xlfn.MAXIFS('Mainenance log'!$H$3:$H$1048576,'Mainenance log'!$B$3:$B$1048576,'Service Interval'!$C86,'Mainenance log'!$E$3:$E$1048576,'Type of Service List'!$B$8))","v":""},{"$f":"IF(OR(ISBLANK(C86),ISBLANK(F86)),\"\",_xlfn.MAXIFS('Mainenance log'!$H$3:$H$1048576,'Mainenance log'!$B$3:$B$1048576,'Service Interval'!$C86,'Mainenance log'!$E$3:$E$1048576,'Type of Service List'!$B$10))","v":""},{"$f":"IF(OR(ISBLANK(C86),ISBLANK(G86)),\"\",_xlfn.MAXIFS('Mainenance log'!$H$3:$H$1048576,'Mainenance log'!$B$3:$B$1048576,'Service Interval'!$C86,'Mainenance log'!$E$3:$E$1048576,'Type of Service List'!$B$11))","v":""},{"$f":"IF(OR(ISBLANK(C86),ISBLANK(H86)),\"\",_xlfn.MAXIFS('Mainenance log'!$H$3:$H$1048576,'Mainenance log'!$B$3:$B$1048576,'Service Interval'!$C86,'Mainenance log'!$E$3:$E$1048576,'Type of Service List'!$B$13))","v":""},{"$f":"IF(OR(ISBLANK(C86),ISBLANK(I86)),\"\",_xlfn.MAXIFS('Mainenance log'!$H$3:$H$1048576,'Mainenance log'!$B$3:$B$1048576,'Service Interval'!$C86,'Mainenance log'!$E$3:$E$1048576,'Type of Service List'!$B$12))","v":""},{"$f":"IF(OR(ISBLANK(C86),ISBLANK(J86)),\"\",_xlfn.MAXIFS('Mainenance log'!$H$3:$H$1048576,'Mainenance log'!$B$3:$B$1048576,'Service Interval'!$C86,'Mainenance log'!$E$3:$E$1048576,'Type of Service List'!$B$14))","v":""},{"$f":"IF(OR(ISBLANK(C86),ISBLANK(K86)),\"\",_xlfn.MAXIFS('Mainenance log'!$H$3:$H$1048576,'Mainenance log'!$B$3:$B$1048576,'Service Interval'!$C86,'Mainenance log'!$E$3:$E$1048576,'Type of Service List'!$B$16))","v":""}]
[null,82,null,null,null,null,null,null,null,null,null,"",null,{"$f":"IF(OR(ISBLANK(C87),ISBLANK(D87)),\"\",_xlfn.MAXIFS('Mainenance log'!$H$3:$H$1048576,'Mainenance log'!$B$3:$B$1048576,'Service Interval'!$C87,'Mainenance log'!$E$3:$E$1048576,'Type of Service List'!$B$5))","v":""},{"$f":"IF(OR(ISBLANK(C87),ISBLANK(E87)),\"\",_xlfn.MAXIFS('Mainenance log'!$H$3:$H$1048576,'Mainenance log'!$B$3:$B$1048576,'Service Interval'!$C87,'Mainenance log'!$E$3:$E$1048576,'Type of Service List'!$B$8))","v":""},{"$f":"IF(OR(ISBLANK(C87),ISBLANK(F87)),\"\",_xlfn.MAXIFS('Mainenance log'!$H$3:$H$1048576,'Mainenance log'!$B$3:$B$1048576,'Service Interval'!$C87,'Mainenance log'!$E$3:$E$1048576,'Type of Service List'!$B$10))","v":""},{"$f":"IF(OR(ISBLANK(C87),ISBLANK(G87)),\"\",_xlfn.MAXIFS('Mainenance log'!$H$3:$H$1048576,'Mainenance log'!$B$3:$B$1048576,'Service Interval'!$C87,'Mainenance log'!$E$3:$E$1048576,'Type of Service List'!$B$11))","v":""},{"$f":"IF(OR(ISBLANK(C87),ISBLANK(H87)),\"\",_xlfn.MAXIFS('Mainenance log'!$H$3:$H$1048576,'Mainenance log'!$B$3:$B$1048576,'Service Interval'!$C87,'Mainenance log'!$E$3:$E$1048576,'Type of Service List'!$B$13))","v":""},{"$f":"IF(OR(ISBLANK(C87),ISBLANK(I87)),\"\",_xlfn.MAXIFS('Mainenance log'!$H$3:$H$1048576,'Mainenance log'!$B$3:$B$1048576,'Service Interval'!$C87,'Mainenance log'!$E$3:$E$1048576,'Type of Service List'!$B$12))","v":""},{"$f":"IF(OR(ISBLANK(C87),ISBLANK(J87)),\"\",_xlfn.MAXIFS('Mainenance log'!$H$3:$H$1048576,'Mainenance log'!$B$3:$B$1048576,'Service Interval'!$C87,'Mainenance log'!$E$3:$E$1048576,'Type of Service List'!$B$14))","v":""},{"$f":"IF(OR(ISBLANK(C87),ISBLANK(K87)),\"\",_xlfn.MAXIFS('Mainenance log'!$H$3:$H$1048576,'Mainenance log'!$B$3:$B$1048576,'Service Interval'!$C87,'Mainenance log'!$E$3:$E$1048576,'Type of Service List'!$B$16))","v":""}]
[null,83,null,null,null,null,null,null,null,null,null,"",null,{"$f":"IF(OR(ISBLANK(C88),ISBLANK(D88)),\"\",_xlfn.MAXIFS('Mainenance log'!$H$3:$H$1048576,'Mainenance log'!$B$3:$B$1048576,'Service Interval'!$C88,'Mainenance log'!$E$3:$E$1048576,'Type of Service List'!$B$5))","v":""},{"$f":"IF(OR(ISBLANK(C88),ISBLANK(E88)),\"\",_xlfn.MAXIFS('Mainenance log'!$H$3:$H$1048576,'Mainenance log'!$B$3:$B$1048576,'Service Interval'!$C88,'Mainenance log'!$E$3:$E$1048576,'Type of Service List'!$B$8))","v":""},{"$f":"IF(OR(ISBLANK(C88),ISBLANK(F88)),\"\",_xlfn.MAXIFS('Mainenance log'!$H$3:$H$1048576,'Mainenance log'!$B$3:$B$1048576,'Service Interval'!$C88,'Mainenance log'!$E$3:$E$1048576,'Type of Service List'!$B$10))","v":""},{"$f":"IF(OR(ISBLANK(C88),ISBLANK(G88)),\"\",_xlfn.MAXIFS('Mainenance log'!$H$3:$H$1048576,'Mainenance log'!$B$3:$B$1048576,'Service Interval'!$C88,'Mainenance log'!$E$3:$E$1048576,'Type of Service List'!$B$11))","v":""},{"$f":"IF(OR(ISBLANK(C88),ISBLANK(H88)),\"\",_xlfn.MAXIFS('Mainenance log'!$H$3:$H$1048576,'Mainenance log'!$B$3:$B$1048576,'Service Interval'!$C88,'Mainenance log'!$E$3:$E$1048576,'Type of Service List'!$B$13))","v":""},{"$f":"IF(OR(ISBLANK(C88),ISBLANK(I88)),\"\",_xlfn.MAXIFS('Mainenance log'!$H$3:$H$1048576,'Mainenance log'!$B$3:$B$1048576,'Service Interval'!$C88,'Mainenance log'!$E$3:$E$1048576,'Type of Service List'!$B$12))","v":""},{"$f":"IF(OR(ISBLANK(C88),ISBLANK(J88)),\"\",_xlfn.MAXIFS('Mainenance log'!$H$3:$H$1048576,'Mainenance log'!$B$3:$B$1048576,'Service Interval'!$C88,'Mainenance log'!$E$3:$E$1048576,'Type of Service List'!$B$14))","v":""},{"$f":"IF(OR(ISBLANK(C88),ISBLANK(K88)),\"\",_xlfn.MAXIFS('Mainenance log'!$H$3:$H$1048576,'Mainenance log'!$B$3:$B$1048576,'Service Interval'!$C88,'Mainenance log'!$E$3:$E$1048576,'Type of Service List'!$B$16))","v":""}]
[null,84,null,null,null,null,null,null,null,null,null,"",null,{"$f":"IF(OR(ISBLANK(C89),ISBLANK(D89)),\"\",_xlfn.MAXIFS('Mainenance log'!$H$3:$H$1048576,'Mainenance log'!$B$3:$B$1048576,'Service Interval'!$C89,'Mainenance log'!$E$3:$E$1048576,'Type of Service List'!$B$5))","v":""},{"$f":"IF(OR(ISBLANK(C89),ISBLANK(E89)),\"\",_xlfn.MAXIFS('Mainenance log'!$H$3:$H$1048576,'Mainenance log'!$B$3:$B$1048576,'Service Interval'!$C89,'Mainenance log'!$E$3:$E$1048576,'Type of Service List'!$B$8))","v":""},{"$f":"IF(OR(ISBLANK(C89),ISBLANK(F89)),\"\",_xlfn.MAXIFS('Mainenance log'!$H$3:$H$1048576,'Mainenance log'!$B$3:$B$1048576,'Service Interval'!$C89,'Mainenance log'!$E$3:$E$1048576,'Type of Service List'!$B$10))","v":""},{"$f":"IF(OR(ISBLANK(C89),ISBLANK(G89)),\"\",_xlfn.MAXIFS('Mainenance log'!$H$3:$H$1048576,'Mainenance log'!$B$3:$B$1048576,'Service Interval'!$C89,'Mainenance log'!$E$3:$E$1048576,'Type of Service List'!$B$11))","v":""},{"$f":"IF(OR(ISBLANK(C89),ISBLANK(H89)),\"\",_xlfn.MAXIFS('Mainenance log'!$H$3:$H$1048576,'Mainenance log'!$B$3:$B$1048576,'Service Interval'!$C89,'Mainenance log'!$E$3:$E$1048576,'Type of Service List'!$B$13))","v":""},{"$f":"IF(OR(ISBLANK(C89),ISBLANK(I89)),\"\",_xlfn.MAXIFS('Mainenance log'!$H$3:$H$1048576,'Mainenance log'!$B$3:$B$1048576,'Service Interval'!$C89,'Mainenance log'!$E$3:$E$1048576,'Type of Service List'!$B$12))","v":""},{"$f":"IF(OR(ISBLANK(C89),ISBLANK(J89)),\"\",_xlfn.MAXIFS('Mainenance log'!$H$3:$H$1048576,'Mainenance log'!$B$3:$B$1048576,'Service Interval'!$C89,'Mainenance log'!$E$3:$E$1048576,'Type of Service List'!$B$14))","v":""},{"$f":"IF(OR(ISBLANK(C89),ISBLANK(K89)),\"\",_xlfn.MAXIFS('Mainenance log'!$H$3:$H$1048576,'Mainenance log'!$B$3:$B$1048576,'Service Interval'!$C89,'Mainenance log'!$E$3:$E$1048576,'Type of Service List'!$B$16))","v":""}]
[null,85,null,null,null,null,null,null,null,null,null,"",null,{"$f":"IF(OR(ISBLANK(C90),ISBLANK(D90)),\"\",_xlfn.MAXIFS('Mainenance log'!$H$3:$H$1048576,'Mainenance log'!$B$3:$B$1048576,'Service Interval'!$C90,'Mainenance log'!$E$3:$E$1048576,'Type of Service List'!$B$5))","v":""},{"$f":"IF(OR(ISBLANK(C90),ISBLANK(E90)),\"\",_xlfn.MAXIFS('Mainenance log'!$H$3:$H$1048576,'Mainenance log'!$B$3:$B$1048576,'Service Interval'!$C90,'Mainenance log'!$E$3:$E$1048576,'Type of Service List'!$B$8))","v":""},{"$f":"IF(OR(ISBLANK(C90),ISBLANK(F90)),\"\",_xlfn.MAXIFS('Mainenance log'!$H$3:$H$1048576,'Mainenance log'!$B$3:$B$1048576,'Service Interval'!$C90,'Mainenance log'!$E$3:$E$1048576,'Type of Service List'!$B$10))","v":""},{"$f":"IF(OR(ISBLANK(C90),ISBLANK(G90)),\"\",_xlfn.MAXIFS('Mainenance log'!$H$3:$H$1048576,'Mainenance log'!$B$3:$B$1048576,'Service Interval'!$C90,'Mainenance log'!$E$3:$E$1048576,'Type of Service List'!$B$11))","v":""},{"$f":"IF(OR(ISBLANK(C90),ISBLANK(H90)),\"\",_xlfn.MAXIFS('Mainenance log'!$H$3:$H$1048576,'Mainenance log'!$B$3:$B$1048576,'Service Interval'!$C90,'Mainenance log'!$E$3:$E$1048576,'Type of Service List'!$B$13))","v":""},{"$f":"IF(OR(ISBLANK(C90),ISBLANK(I90)),\"\",_xlfn.MAXIFS('Mainenance log'!$H$3:$H$1048576,'Mainenance log'!$B$3:$B$1048576,'Service Interval'!$C90,'Mainenance log'!$E$3:$E$1048576,'Type of Service List'!$B$12))","v":""},{"$f":"IF(OR(ISBLANK(C90),ISBLANK(J90)),\"\",_xlfn.MAXIFS('Mainenance log'!$H$3:$H$1048576,'Mainenance log'!$B$3:$B$1048576,'Service Interval'!$C90,'Mainenance log'!$E$3:$E$1048576,'Type of Service List'!$B$14))","v":""},{"$f":"IF(OR(ISBLANK(C90),ISBLANK(K90)),\"\",_xlfn.MAXIFS('Mainenance log'!$H$3:$H$1048576,'Mainenance log'!$B$3:$B$1048576,'Service Interval'!$C90,'Mainenance log'!$E$3:$E$1048576,'Type of Service List'!$B$16))","v":""}]
[null,86,null,null,null,null,null,null,null,null,null,"",null,{"$f":"IF(OR(ISBLANK(C91),ISBLANK(D91)),\"\",_xlfn.MAXIFS('Mainenance log'!$H$3:$H$1048576,'Mainenance log'!$B$3:$B$1048576,'Service Interval'!$C91,'Mainenance log'!$E$3:$E$1048576,'Type of Service List'!$B$5))","v":""},{"$f":"IF(OR(ISBLANK(C91),ISBLANK(E91)),\"\",_xlfn.MAXIFS('Mainenance log'!$H$3:$H$1048576,'Mainenance log'!$B$3:$B$1048576,'Service Interval'!$C91,'Mainenance log'!$E$3:$E$1048576,'Type of Service List'!$B$8))","v":""},{"$f":"IF(OR(ISBLANK(C91),ISBLANK(F91)),\"\",_xlfn.MAXIFS('Mainenance log'!$H$3:$H$1048576,'Mainenance log'!$B$3:$B$1048576,'Service Interval'!$C91,'Mainenance log'!$E$3:$E$1048576,'Type of Service List'!$B$10))","v":""},{"$f":"IF(OR(ISBLANK(C91),ISBLANK(G91)),\"\",_xlfn.MAXIFS('Mainenance log'!$H$3:$H$1048576,'Mainenance log'!$B$3:$B$1048576,'Service Interval'!$C91,'Mainenance log'!$E$3:$E$1048576,'Type of Service List'!$B$11))","v":""},{"$f":"IF(OR(ISBLANK(C91),ISBLANK(H91)),\"\",_xlfn.MAXIFS('Mainenance log'!$H$3:$H$1048576,'Mainenance log'!$B$3:$B$1048576,'Service Interval'!$C91,'Mainenance log'!$E$3:$E$1048576,'Type of Service List'!$B$13))","v":""},{"$f":"IF(OR(ISBLANK(C91),ISBLANK(I91)),\"\",_xlfn.MAXIFS('Mainenance log'!$H$3:$H$1048576,'Mainenance log'!$B$3:$B$1048576,'Service Interval'!$C91,'Mainenance log'!$E$3:$E$1048576,'Type of Service List'!$B$12))","v":""},{"$f":"IF(OR(ISBLANK(C91),ISBLANK(J91)),\"\",_xlfn.MAXIFS('Mainenance log'!$H$3:$H$1048576,'Mainenance log'!$B$3:$B$1048576,'Service Interval'!$C91,'Mainenance log'!$E$3:$E$1048576,'Type of Service List'!$B$14))","v":""},{"$f":"IF(OR(ISBLANK(C91),ISBLANK(K91)),\"\",_xlfn.MAXIFS('Mainenance log'!$H$3:$H$1048576,'Mainenance log'!$B$3:$B$1048576,'Service Interval'!$C91,'Mainenance log'!$E$3:$E$1048576,'Type of Service List'!$B$16))","v":""}]
[null,87,null,null,null,null,null,null,null,null,null,"",null,{"$f":"IF(OR(ISBLANK(C92),ISBLANK(D92)),\"\",_xlfn.MAXIFS('Mainenance log'!$H$3:$H$1048576,'Mainenance log'!$B$3:$B$1048576,'Service Interval'!$C92,'Mainenance log'!$E$3:$E$1048576,'Type of Service List'!$B$5))","v":""},{"$f":"IF(OR(ISBLANK(C92),ISBLANK(E92)),\"\",_xlfn.MAXIFS('Mainenance log'!$H$3:$H$1048576,'Mainenance log'!$B$3:$B$1048576,'Service Interval'!$C92,'Mainenance log'!$E$3:$E$1048576,'Type of Service List'!$B$8))","v":""},{"$f":"IF(OR(ISBLANK(C92),ISBLANK(F92)),\"\",_xlfn.MAXIFS('Mainenance log'!$H$3:$H$1048576,'Mainenance log'!$B$3:$B$1048576,'Service Interval'!$C92,'Mainenance log'!$E$3:$E$1048576,'Type of Service List'!$B$10))","v":""},{"$f":"IF(OR(ISBLANK(C92),ISBLANK(G92)),\"\",_xlfn.MAXIFS('Mainenance log'!$H$3:$H$1048576,'Mainenance log'!$B$3:$B$1048576,'Service Interval'!$C92,'Mainenance log'!$E$3:$E$1048576,'Type of Service List'!$B$11))","v":""},{"$f":"IF(OR(ISBLANK(C92),ISBLANK(H92)),\"\",_xlfn.MAXIFS('Mainenance log'!$H$3:$H$1048576,'Mainenance log'!$B$3:$B$1048576,'Service Interval'!$C92,'Mainenance log'!$E$3:$E$1048576,'Type of Service List'!$B$13))","v":""},{"$f":"IF(OR(ISBLANK(C92),ISBLANK(I92)),\"\",_xlfn.MAXIFS('Mainenance log'!$H$3:$H$1048576,'Mainenance log'!$B$3:$B$1048576,'Service Interval'!$C92,'Mainenance log'!$E$3:$E$1048576,'Type of Service List'!$B$12))","v":""},{"$f":"IF(OR(ISBLANK(C92),ISBLANK(J92)),\"\",_xlfn.MAXIFS('Mainenance log'!$H$3:$H$1048576,'Mainenance log'!$B$3:$B$1048576,'Service Interval'!$C92,'Mainenance log'!$E$3:$E$1048576,'Type of Service List'!$B$14))","v":""},{"$f":"IF(OR(ISBLANK(C92),ISBLANK(K92)),\"\",_xlfn.MAXIFS('Mainenance log'!$H$3:$H$1048576,'Mainenance log'!$B$3:$B$1048576,'Service Interval'!$C92,'Mainenance log'!$E$3:$E$1048576,'Type of Service List'!$B$16))","v":""}]
[null,88,null,null,null,null,null,null,null,null,null,"",null,{"$f":"IF(OR(ISBLANK(C93),ISBLANK(D93)),\"\",_xlfn.MAXIFS('Mainenance log'!$H$3:$H$1048576,'Mainenance log'!$B$3:$B$1048576,'Service Interval'!$C93,'Mainenance log'!$E$3:$E$1048576,'Type of Service List'!$B$5))","v":""},{"$f":"IF(OR(ISBLANK(C93),ISBLANK(E93)),\"\",_xlfn.MAXIFS('Mainenance log'!$H$3:$H$1048576,'Mainenance log'!$B$3:$B$1048576,'Service Interval'!$C93,'Mainenance log'!$E$3:$E$1048576,'Type of Service List'!$B$8))","v":""},{"$f":"IF(OR(ISBLANK(C93),ISBLANK(F93)),\"\",_xlfn.MAXIFS('Mainenance log'!$H$3:$H$1048576,'Mainenance log'!$B$3:$B$1048576,'Service Interval'!$C93,'Mainenance log'!$E$3:$E$1048576,'Type of Service List'!$B$10))","v":""},{"$f":"IF(OR(ISBLANK(C93),ISBLANK(G93)),\"\",_xlfn.MAXIFS('Mainenance log'!$H$3:$H$1048576,'Mainenance log'!$B$3:$B$1048576,'Service Interval'!$C93,'Mainenance log'!$E$3:$E$1048576,'Type of Service List'!$B$11))","v":""},{"$f":"IF(OR(ISBLANK(C93),ISBLANK(H93)),\"\",_xlfn.MAXIFS('Mainenance log'!$H$3:$H$1048576,'Mainenance log'!$B$3:$B$1048576,'Service Interval'!$C93,'Mainenance log'!$E$3:$E$1048576,'Type of Service List'!$B$13))","v":""},{"$f":"IF(OR(ISBLANK(C93),ISBLANK(I93)),\"\",_xlfn.MAXIFS('Mainenance log'!$H$3:$H$1048576,'Mainenance log'!$B$3:$B$1048576,'Service Interval'!$C93,'Mainenance log'!$E$3:$E$1048576,'Type of Service List'!$B$12))","v":""},{"$f":"IF(OR(ISBLANK(C93),ISBLANK(J93)),\"\",_xlfn.MAXIFS('Mainenance log'!$H$3:$H$1048576,'Mainenance log'!$B$3:$B$1048576,'Service Interval'!$C93,'Mainenance log'!$E$3:$E$1048576,'Type of Service List'!$B$14))","v":""},{"$f":"IF(OR(ISBLANK(C93),ISBLANK(K93)),\"\",_xlfn.MAXIFS('Mainenance log'!$H$3:$H$1048576,'Mainenance log'!$B$3:$B$1048576,'Service Interval'!$C93,'Mainenance log'!$E$3:$E$1048576,'Type of Service List'!$B$16))","v":""}]
[null,89,null,null,null,null,null,null,null,null,null,"",null,{"$f":"IF(OR(ISBLANK(C94),ISBLANK(D94)),\"\",_xlfn.MAXIFS('Mainenance log'!$H$3:$H$1048576,'Mainenance log'!$B$3:$B$1048576,'Service Interval'!$C94,'Mainenance log'!$E$3:$E$1048576,'Type of Service List'!$B$5))","v":""},{"$f":"IF(OR(ISBLANK(C94),ISBLANK(E94)),\"\",_xlfn.MAXIFS('Mainenance log'!$H$3:$H$1048576,'Mainenance log'!$B$3:$B$1048576,'Service Interval'!$C94,'Mainenance log'!$E$3:$E$1048576,'Type of Service List'!$B$8))","v":""},{"$f":"IF(OR(ISBLANK(C94),ISBLANK(F94)),\"\",_xlfn.MAXIFS('Mainenance log'!$H$3:$H$1048576,'Mainenance log'!$B$3:$B$1048576,'Service Interval'!$C94,'Mainenance log'!$E$3:$E$1048576,'Type of Service List'!$B$10))","v":""},{"$f":"IF(OR(ISBLANK(C94),ISBLANK(G94)),\"\",_xlfn.MAXIFS('Mainenance log'!$H$3:$H$1048576,'Mainenance log'!$B$3:$B$1048576,'Service Interval'!$C94,'Mainenance log'!$E$3:$E$1048576,'Type of Service List'!$B$11))","v":""},{"$f":"IF(OR(ISBLANK(C94),ISBLANK(H94)),\"\",_xlfn.MAXIFS('Mainenance log'!$H$3:$H$1048576,'Mainenance log'!$B$3:$B$1048576,'Service Interval'!$C94,'Mainenance log'!$E$3:$E$1048576,'Type of Service List'!$B$13))","v":""},{"$f":"IF(OR(ISBLANK(C94),ISBLANK(I94)),\"\",_xlfn.MAXIFS('Mainenance log'!$H$3:$H$1048576,'Mainenance log'!$B$3:$B$1048576,'Service Interval'!$C94,'Mainenance log'!$E$3:$E$1048576,'Type of Service List'!$B$12))","v":""},{"$f":"IF(OR(ISBLANK(C94),ISBLANK(J94)),\"\",_xlfn.MAXIFS('Mainenance log'!$H$3:$H$1048576,'Mainenance log'!$B$3:$B$1048576,'Service Interval'!$C94,'Mainenance log'!$E$3:$E$1048576,'Type of Service List'!$B$14))","v":""},{"$f":"IF(OR(ISBLANK(C94),ISBLANK(K94)),\"\",_xlfn.MAXIFS('Mainenance log'!$H$3:$H$1048576,'Mainenance log'!$B$3:$B$1048576,'Service Interval'!$C94,'Mainenance log'!$E$3:$E$1048576,'Type of Service List'!$B$16))","v":""}]
[null,90,null,null,null,null,null,null,null,null,null,"",null,{"$f":"IF(OR(ISBLANK(C95),ISBLANK(D95)),\"\",_xlfn.MAXIFS('Mainenance log'!$H$3:$H$1048576,'Mainenance log'!$B$3:$B$1048576,'Service Interval'!$C95,'Mainenance log'!$E$3:$E$1048576,'Type of Service List'!$B$5))","v":""},{"$f":"IF(OR(ISBLANK(C95),ISBLANK(E95)),\"\",_xlfn.MAXIFS('Mainenance log'!$H$3:$H$1048576,'Mainenance log'!$B$3:$B$1048576,'Service Interval'!$C95,'Mainenance log'!$E$3:$E$1048576,'Type of Service List'!$B$8))","v":""},{"$f":"IF(OR(ISBLANK(C95),ISBLANK(F95)),\"\",_xlfn.MAXIFS('Mainenance log'!$H$3:$H$1048576,'Mainenance log'!$B$3:$B$1048576,'Service Interval'!$C95,'Mainenance log'!$E$3:$E$1048576,'Type of Service List'!$B$10))","v":""},{"$f":"IF(OR(ISBLANK(C95),ISBLANK(G95)),\"\",_xlfn.MAXIFS('Mainenance log'!$H$3:$H$1048576,'Mainenance log'!$B$3:$B$1048576,'Service Interval'!$C95,'Mainenance log'!$E$3:$E$1048576,'Type of Service List'!$B$11))","v":""},{"$f":"IF(OR(ISBLANK(C95),ISBLANK(H95)),\"\",_xlfn.MAXIFS('Mainenance log'!$H$3:$H$1048576,'Mainenance log'!$B$3:$B$1048576,'Service Interval'!$C95,'Mainenance log'!$E$3:$E$1048576,'Type of Service List'!$B$13))","v":""},{"$f":"IF(OR(ISBLANK(C95),ISBLANK(I95)),\"\",_xlfn.MAXIFS('Mainenance log'!$H$3:$H$1048576,'Mainenance log'!$B$3:$B$1048576,'Service Interval'!$C95,'Mainenance log'!$E$3:$E$1048576,'Type of Service List'!$B$12))","v":""},{"$f":"IF(OR(ISBLANK(C95),ISBLANK(J95)),\"\",_xlfn.MAXIFS('Mainenance log'!$H$3:$H$1048576,'Mainenance log'!$B$3:$B$1048576,'Service Interval'!$C95,'Mainenance log'!$E$3:$E$1048576,'Type of Service List'!$B$14))","v":""},{"$f":"IF(OR(ISBLANK(C95),ISBLANK(K95)),\"\",_xlfn.MAXIFS('Mainenance log'!$H$3:$H$1048576,'Mainenance log'!$B$3:$B$1048576,'Service Interval'!$C95,'Mainenance log'!$E$3:$E$1048576,'Type of Service List'!$B$16))","v":""}]
[null,91,null,null,null,null,null,null,null,null,null,"",null,{"$f":"IF(OR(ISBLANK(C96),ISBLANK(D96)),\"\",_xlfn.MAXIFS('Mainenance log'!$H$3:$H$1048576,'Mainenance log'!$B$3:$B$1048576,'Service Interval'!$C96,'Mainenance log'!$E$3:$E$1048576,'Type of Service List'!$B$5))","v":""},{"$f":"IF(OR(ISBLANK(C96),ISBLANK(E96)),\"\",_xlfn.MAXIFS('Mainenance log'!$H$3:$H$1048576,'Mainenance log'!$B$3:$B$1048576,'Service Interval'!$C96,'Mainenance log'!$E$3:$E$1048576,'Type of Service List'!$B$8))","v":""},{"$f":"IF(OR(ISBLANK(C96),ISBLANK(F96)),\"\",_xlfn.MAXIFS('Mainenance log'!$H$3:$H$1048576,'Mainenance log'!$B$3:$B$1048576,'Service Interval'!$C96,'Mainenance log'!$E$3:$E$1048576,'Type of Service List'!$B$10))","v":""},{"$f":"IF(OR(ISBLANK(C96),ISBLANK(G96)),\"\",_xlfn.MAXIFS('Mainenance log'!$H$3:$H$1048576,'Mainenance log'!$B$3:$B$1048576,'Service Interval'!$C96,'Mainenance log'!$E$3:$E$1048576,'Type of Service List'!$B$11))","v":""},{"$f":"IF(OR(ISBLANK(C96),ISBLANK(H96)),\"\",_xlfn.MAXIFS('Mainenance log'!$H$3:$H$1048576,'Mainenance log'!$B$3:$B$1048576,'Service Interval'!$C96,'Mainenance log'!$E$3:$E$1048576,'Type of Service List'!$B$13))","v":""},{"$f":"IF(OR(ISBLANK(C96),ISBLANK(I96)),\"\",_xlfn.MAXIFS('Mainenance log'!$H$3:$H$1048576,'Mainenance log'!$B$3:$B$1048576,'Service Interval'!$C96,'Mainenance log'!$E$3:$E$1048576,'Type of Service List'!$B$12))","v":""},{"$f":"IF(OR(ISBLANK(C96),ISBLANK(J96)),\"\",_xlfn.MAXIFS('Mainenance log'!$H$3:$H$1048576,'Mainenance log'!$B$3:$B$1048576,'Service Interval'!$C96,'Mainenance log'!$E$3:$E$1048576,'Type of Service List'!$B$14))","v":""},{"$f":"IF(OR(ISBLANK(C96),ISBLANK(K96)),\"\",_xlfn.MAXIFS('Mainenance log'!$H$3:$H$1048576,'Mainenance log'!$B$3:$B$1048576,'Service Interval'!$C96,'Mainenance log'!$E$3:$E$1048576,'Type of Service List'!$B$16))","v":""}]
[null,92,null,null,null,null,null,null,null,null,null,"",null,{"$f":"IF(OR(ISBLANK(C97),ISBLANK(D97)),\"\",_xlfn.MAXIFS('Mainenance log'!$H$3:$H$1048576,'Mainenance log'!$B$3:$B$1048576,'Service Interval'!$C97,'Mainenance log'!$E$3:$E$1048576,'Type of Service List'!$B$5))","v":""},{"$f":"IF(OR(ISBLANK(C97),ISBLANK(E97)),\"\",_xlfn.MAXIFS('Mainenance log'!$H$3:$H$1048576,'Mainenance log'!$B$3:$B$1048576,'Service Interval'!$C97,'Mainenance log'!$E$3:$E$1048576,'Type of Service List'!$B$8))","v":""},{"$f":"IF(OR(ISBLANK(C97),ISBLANK(F97)),\"\",_xlfn.MAXIFS('Mainenance log'!$H$3:$H$1048576,'Mainenance log'!$B$3:$B$1048576,'Service Interval'!$C97,'Mainenance log'!$E$3:$E$1048576,'Type of Service List'!$B$10))","v":""},{"$f":"IF(OR(ISBLANK(C97),ISBLANK(G97)),\"\",_xlfn.MAXIFS('Mainenance log'!$H$3:$H$1048576,'Mainenance log'!$B$3:$B$1048576,'Service Interval'!$C97,'Mainenance log'!$E$3:$E$1048576,'Type of Service List'!$B$11))","v":""},{"$f":"IF(OR(ISBLANK(C97),ISBLANK(H97)),\"\",_xlfn.MAXIFS('Mainenance log'!$H$3:$H$1048576,'Mainenance log'!$B$3:$B$1048576,'Service Interval'!$C97,'Mainenance log'!$E$3:$E$1048576,'Type of Service List'!$B$13))","v":""},{"$f":"IF(OR(ISBLANK(C97),ISBLANK(I97)),\"\",_xlfn.MAXIFS('Mainenance log'!$H$3:$H$1048576,'Mainenance log'!$B$3:$B$1048576,'Service Interval'!$C97,'Mainenance log'!$E$3:$E$1048576,'Type of Service List'!$B$12))","v":""},{"$f":"IF(OR(ISBLANK(C97),ISBLANK(J97)),\"\",_xlfn.MAXIFS('Mainenance log'!$H$3:$H$1048576,'Mainenance log'!$B$3:$B$1048576,'Service Interval'!$C97,'Mainenance log'!$E$3:$E$1048576,'Type of Service List'!$B$14))","v":""},{"$f":"IF(OR(ISBLANK(C97),ISBLANK(K97)),\"\",_xlfn.MAXIFS('Mainenance log'!$H$3:$H$1048576,'Mainenance log'!$B$3:$B$1048576,'Service Interval'!$C97,'Mainenance log'!$E$3:$E$1048576,'Type of Service List'!$B$16))","v":""}]
[null,93,null,null,null,null,null,null,null,null,null,"",null,{"$f":"IF(OR(ISBLANK(C98),ISBLANK(D98)),\"\",_xlfn.MAXIFS('Mainenance log'!$H$3:$H$1048576,'Mainenance log'!$B$3:$B$1048576,'Service Interval'!$C98,'Mainenance log'!$E$3:$E$1048576,'Type of Service List'!$B$5))","v":""},{"$f":"IF(OR(ISBLANK(C98),ISBLANK(E98)),\"\",_xlfn.MAXIFS('Mainenance log'!$H$3:$H$1048576,'Mainenance log'!$B$3:$B$1048576,'Service Interval'!$C98,'Mainenance log'!$E$3:$E$1048576,'Type of Service List'!$B$8))","v":""},{"$f":"IF(OR(ISBLANK(C98),ISBLANK(F98)),\"\",_xlfn.MAXIFS('Mainenance log'!$H$3:$H$1048576,'Mainenance log'!$B$3:$B$1048576,'Service Interval'!$C98,'Mainenance log'!$E$3:$E$1048576,'Type of Service List'!$B$10))","v":""},{"$f":"IF(OR(ISBLANK(C98),ISBLANK(G98)),\"\",_xlfn.MAXIFS('Mainenance log'!$H$3:$H$1048576,'Mainenance log'!$B$3:$B$1048576,'Service Interval'!$C98,'Mainenance log'!$E$3:$E$1048576,'Type of Service List'!$B$11))","v":""},{"$f":"IF(OR(ISBLANK(C98),ISBLANK(H98)),\"\",_xlfn.MAXIFS('Mainenance log'!$H$3:$H$1048576,'Mainenance log'!$B$3:$B$1048576,'Service Interval'!$C98,'Mainenance log'!$E$3:$E$1048576,'Type of Service List'!$B$13))","v":""},{"$f":"IF(OR(ISBLANK(C98),ISBLANK(I98)),\"\",_xlfn.MAXIFS('Mainenance log'!$H$3:$H$1048576,'Mainenance log'!$B$3:$B$1048576,'Service Interval'!$C98,'Mainenance log'!$E$3:$E$1048576,'Type of Service List'!$B$12))","v":""},{"$f":"IF(OR(ISBLANK(C98),ISBLANK(J98)),\"\",_xlfn.MAXIFS('Mainenance log'!$H$3:$H$1048576,'Mainenance log'!$B$3:$B$1048576,'Service Interval'!$C98,'Mainenance log'!$E$3:$E$1048576,'Type of Service List'!$B$14))","v":""},{"$f":"IF(OR(ISBLANK(C98),ISBLANK(K98)),\"\",_xlfn.MAXIFS('Mainenance log'!$H$3:$H$1048576,'Mainenance log'!$B$3:$B$1048576,'Service Interval'!$C98,'Mainenance log'!$E$3:$E$1048576,'Type of Service List'!$B$16))","v":""}]
[null,94,null,null,null,null,null,null,null,null,null,"",null,{"$f":"IF(OR(ISBLANK(C99),ISBLANK(D99)),\"\",_xlfn.MAXIFS('Mainenance log'!$H$3:$H$1048576,'Mainenance log'!$B$3:$B$1048576,'Service Interval'!$C99,'Mainenance log'!$E$3:$E$1048576,'Type of Service List'!$B$5))","v":""},{"$f":"IF(OR(ISBLANK(C99),ISBLANK(E99)),\"\",_xlfn.MAXIFS('Mainenance log'!$H$3:$H$1048576,'Mainenance log'!$B$3:$B$1048576,'Service Interval'!$C99,'Mainenance log'!$E$3:$E$1048576,'Type of Service List'!$B$8))","v":""},{"$f":"IF(OR(ISBLANK(C99),ISBLANK(F99)),\"\",_xlfn.MAXIFS('Mainenance log'!$H$3:$H$1048576,'Mainenance log'!$B$3:$B$1048576,'Service Interval'!$C99,'Mainenance log'!$E$3:$E$1048576,'Type of Service List'!$B$10))","v":""},{"$f":"IF(OR(ISBLANK(C99),ISBLANK(G99)),\"\",_xlfn.MAXIFS('Mainenance log'!$H$3:$H$1048576,'Mainenance log'!$B$3:$B$1048576,'Service Interval'!$C99,'Mainenance log'!$E$3:$E$1048576,'Type of Service List'!$B$11))","v":""},{"$f":"IF(OR(ISBLANK(C99),ISBLANK(H99)),\"\",_xlfn.MAXIFS('Mainenance log'!$H$3:$H$1048576,'Mainenance log'!$B$3:$B$1048576,'Service Interval'!$C99,'Mainenance log'!$E$3:$E$1048576,'Type of Service List'!$B$13))","v":""},{"$f":"IF(OR(ISBLANK(C99),ISBLANK(I99)),\"\",_xlfn.MAXIFS('Mainenance log'!$H$3:$H$1048576,'Mainenance log'!$B$3:$B$1048576,'Service Interval'!$C99,'Mainenance log'!$E$3:$E$1048576,'Type of Service List'!$B$12))","v":""},{"$f":"IF(OR(ISBLANK(C99),ISBLANK(J99)),\"\",_xlfn.MAXIFS('Mainenance log'!$H$3:$H$1048576,'Mainenance log'!$B$3:$B$1048576,'Service Interval'!$C99,'Mainenance log'!$E$3:$E$1048576,'Type of Service List'!$B$14))","v":""},{"$f":"IF(OR(ISBLANK(C99),ISBLANK(K99)),\"\",_xlfn.MAXIFS('Mainenance log'!$H$3:$H$1048576,'Mainenance log'!$B$3:$B$1048576,'Service Interval'!$C99,'Mainenance log'!$E$3:$E$1048576,'Type of Service List'!$B$16))","v":""}]
[null,95,null,null,null,null,null,null,null,null,null,"",null,{"$f":"IF(OR(ISBLANK(C100),ISBLANK(D100)),\"\",_xlfn.MAXIFS('Mainenance log'!$H$3:$H$1048576,'Mainenance log'!$B$3:$B$1048576,'Service Interval'!$C100,'Mainenance log'!$E$3:$E$1048576,'Type of Service List'!$B$5))","v":""},{"$f":"IF(OR(ISBLANK(C100),ISBLANK(E100)),\"\",_xlfn.MAXIFS('Mainenance log'!$H$3:$H$1048576,'Mainenance log'!$B$3:$B$1048576,'Service Interval'!$C100,'Mainenance log'!$E$3:$E$1048576,'Type of Service List'!$B$8))","v":""},{"$f":"IF(OR(ISBLANK(C100),ISBLANK(F100)),\"\",_xlfn.MAXIFS('Mainenance log'!$H$3:$H$1048576,'Mainenance log'!$B$3:$B$1048576,'Service Interval'!$C100,'Mainenance log'!$E$3:$E$1048576,'Type of Service List'!$B$10))","v":""},{"$f":"IF(OR(ISBLANK(C100),ISBLANK(G100)),\"\",_xlfn.MAXIFS('Mainenance log'!$H$3:$H$1048576,'Mainenance log'!$B$3:$B$1048576,'Service Interval'!$C100,'Mainenance log'!$E$3:$E$1048576,'Type of Service List'!$B$11))","v":""},{"$f":"IF(OR(ISBLANK(C100),ISBLANK(H100)),\"\",_xlfn.MAXIFS('Mainenance log'!$H$3:$H$1048576,'Mainenance log'!$B$3:$B$1048576,'Service Interval'!$C100,'Mainenance log'!$E$3:$E$1048576,'Type of Service List'!$B$13))","v":""},{"$f":"IF(OR(ISBLANK(C100),ISBLANK(I100)),\"\",_xlfn.MAXIFS('Mainenance log'!$H$3:$H$1048576,'Mainenance log'!$B$3:$B$1048576,'Service Interval'!$C100,'Mainenance log'!$E$3:$E$1048576,'Type of Service List'!$B$12))","v":""},{"$f":"IF(OR(ISBLANK(C100),ISBLANK(J100)),\"\",_xlfn.MAXIFS('Mainenance log'!$H$3:$H$1048576,'Mainenance log'!$B$3:$B$1048576,'Service Interval'!$C100,'Mainenance log'!$E$3:$E$1048576,'Type of Service List'!$B$14))","v":""},{"$f":"IF(OR(ISBLANK(C100),ISBLANK(K100)),\"\",_xlfn.MAXIFS('Mainenance log'!$H$3:$H$1048576,'Mainenance log'!$B$3:$B$1048576,'Service Interval'!$C100,'Mainenance log'!$E$3:$E$1048576,'Type of Service List'!$B$16))","v":""}]
[null,96,null,null,null,null,null,null,null,null,null,"",null,{"$f":"IF(OR(ISBLANK(C101),ISBLANK(D101)),\"\",_xlfn.MAXIFS('Mainenance log'!$H$3:$H$1048576,'Mainenance log'!$B$3:$B$1048576,'Service Interval'!$C101,'Mainenance log'!$E$3:$E$1048576,'Type of Service List'!$B$5))","v":""},{"$f":"IF(OR(ISBLANK(C101),ISBLANK(E101)),\"\",_xlfn.MAXIFS('Mainenance log'!$H$3:$H$1048576,'Mainenance log'!$B$3:$B$1048576,'Service Interval'!$C101,'Mainenance log'!$E$3:$E$1048576,'Type of Service List'!$B$8))","v":""},{"$f":"IF(OR(ISBLANK(C101),ISBLANK(F101)),\"\",_xlfn.MAXIFS('Mainenance log'!$H$3:$H$1048576,'Mainenance log'!$B$3:$B$1048576,'Service Interval'!$C101,'Mainenance log'!$E$3:$E$1048576,'Type of Service List'!$B$10))","v":""},{"$f":"IF(OR(ISBLANK(C101),ISBLANK(G101)),\"\",_xlfn.MAXIFS('Mainenance log'!$H$3:$H$1048576,'Mainenance log'!$B$3:$B$1048576,'Service Interval'!$C101,'Mainenance log'!$E$3:$E$1048576,'Type of Service List'!$B$11))","v":""},{"$f":"IF(OR(ISBLANK(C101),ISBLANK(H101)),\"\",_xlfn.MAXIFS('Mainenance log'!$H$3:$H$1048576,'Mainenance log'!$B$3:$B$1048576,'Service Interval'!$C101,'Mainenance log'!$E$3:$E$1048576,'Type of Service List'!$B$13))","v":""},{"$f":"IF(OR(ISBLANK(C101),ISBLANK(I101)),\"\",_xlfn.MAXIFS('Mainenance log'!$H$3:$H$1048576,'Mainenance log'!$B$3:$B$1048576,'Service Interval'!$C101,'Mainenance log'!$E$3:$E$1048576,'Type of Service List'!$B$12))","v":""},{"$f":"IF(OR(ISBLANK(C101),ISBLANK(J101)),\"\",_xlfn.MAXIFS('Mainenance log'!$H$3:$H$1048576,'Mainenance log'!$B$3:$B$1048576,'Service Interval'!$C101,'Mainenance log'!$E$3:$E$1048576,'Type of Service List'!$B$14))","v":""},{"$f":"IF(OR(ISBLANK(C101),ISBLANK(K101)),\"\",_xlfn.MAXIFS('Mainenance log'!$H$3:$H$1048576,'Mainenance log'!$B$3:$B$1048576,'Service Interval'!$C101,'Mainenance log'!$E$3:$E$1048576,'Type of Service List'!$B$16))","v":""}]
[null,97,null,null,null,null,null,null,null,null,null,"",null,{"$f":"IF(OR(ISBLANK(C102),ISBLANK(D102)),\"\",_xlfn.MAXIFS('Mainenance log'!$H$3:$H$1048576,'Mainenance log'!$B$3:$B$1048576,'Service Interval'!$C102,'Mainenance log'!$E$3:$E$1048576,'Type of Service List'!$B$5))","v":""},{"$f":"IF(OR(ISBLANK(C102),ISBLANK(E102)),\"\",_xlfn.MAXIFS('Mainenance log'!$H$3:$H$1048576,'Mainenance log'!$B$3:$B$1048576,'Service Interval'!$C102,'Mainenance log'!$E$3:$E$1048576,'Type of Service List'!$B$8))","v":""},{"$f":"IF(OR(ISBLANK(C102),ISBLANK(F102)),\"\",_xlfn.MAXIFS('Mainenance log'!$H$3:$H$1048576,'Mainenance log'!$B$3:$B$1048576,'Service Interval'!$C102,'Mainenance log'!$E$3:$E$1048576,'Type of Service List'!$B$10))","v":""},{"$f":"IF(OR(ISBLANK(C102),ISBLANK(G102)),\"\",_xlfn.MAXIFS('Mainenance log'!$H$3:$H$1048576,'Mainenance log'!$B$3:$B$1048576,'Service Interval'!$C102,'Mainenance log'!$E$3:$E$1048576,'Type of Service List'!$B$11))","v":""},{"$f":"IF(OR(ISBLANK(C102),ISBLANK(H102)),\"\",_xlfn.MAXIFS('Mainenance log'!$H$3:$H$1048576,'Mainenance log'!$B$3:$B$1048576,'Service Interval'!$C102,'Mainenance log'!$E$3:$E$1048576,'Type of Service List'!$B$13))","v":""},{"$f":"IF(OR(ISBLANK(C102),ISBLANK(I102)),\"\",_xlfn.MAXIFS('Mainenance log'!$H$3:$H$1048576,'Mainenance log'!$B$3:$B$1048576,'Service Interval'!$C102,'Mainenance log'!$E$3:$E$1048576,'Type of Service List'!$B$12))","v":""},{"$f":"IF(OR(ISBLANK(C102),ISBLANK(J102)),\"\",_xlfn.MAXIFS('Mainenance log'!$H$3:$H$1048576,'Mainenance log'!$B$3:$B$1048576,'Service Interval'!$C102,'Mainenance log'!$E$3:$E$1048576,'Type of Service List'!$B$14))","v":""},{"$f":"IF(OR(ISBLANK(C102),ISBLANK(K102)),\"\",_xlfn.MAXIFS('Mainenance log'!$H$3:$H$1048576,'Mainenance log'!$B$3:$B$1048576,'Service Interval'!$C102,'Mainenance log'!$E$3:$E$1048576,'Type of Service List'!$B$16))","v":""}]
[null,98,null,null,null,null,null,null,null,null,null,"",null,{"$f":"IF(OR(ISBLANK(C103),ISBLANK(D103)),\"\",_xlfn.MAXIFS('Mainenance log'!$H$3:$H$1048576,'Mainenance log'!$B$3:$B$1048576,'Service Interval'!$C103,'Mainenance log'!$E$3:$E$1048576,'Type of Service List'!$B$5))","v":""},{"$f":"IF(OR(ISBLANK(C103),ISBLANK(E103)),\"\",_xlfn.MAXIFS('Mainenance log'!$H$3:$H$1048576,'Mainenance log'!$B$3:$B$1048576,'Service Interval'!$C103,'Mainenance log'!$E$3:$E$1048576,'Type of Service List'!$B$8))","v":""},{"$f":"IF(OR(ISBLANK(C103),ISBLANK(F103)),\"\",_xlfn.MAXIFS('Mainenance log'!$H$3:$H$1048576,'Mainenance log'!$B$3:$B$1048576,'Service Interval'!$C103,'Mainenance log'!$E$3:$E$1048576,'Type of Service List'!$B$10))","v":""},{"$f":"IF(OR(ISBLANK(C103),ISBLANK(G103)),\"\",_xlfn.MAXIFS('Mainenance log'!$H$3:$H$1048576,'Mainenance log'!$B$3:$B$1048576,'Service Interval'!$C103,'Mainenance log'!$E$3:$E$1048576,'Type of Service List'!$B$11))","v":""},{"$f":"IF(OR(ISBLANK(C103),ISBLANK(H103)),\"\",_xlfn.MAXIFS('Mainenance log'!$H$3:$H$1048576,'Mainenance log'!$B$3:$B$1048576,'Service Interval'!$C103,'Mainenance log'!$E$3:$E$1048576,'Type of Service List'!$B$13))","v":""},{"$f":"IF(OR(ISBLANK(C103),ISBLANK(I103)),\"\",_xlfn.MAXIFS('Mainenance log'!$H$3:$H$1048576,'Mainenance log'!$B$3:$B$1048576,'Service Interval'!$C103,'Mainenance log'!$E$3:$E$1048576,'Type of Service List'!$B$12))","v":""},{"$f":"IF(OR(ISBLANK(C103),ISBLANK(J103)),\"\",_xlfn.MAXIFS('Mainenance log'!$H$3:$H$1048576,'Mainenance log'!$B$3:$B$1048576,'Service Interval'!$C103,'Mainenance log'!$E$3:$E$1048576,'Type of Service List'!$B$14))","v":""},{"$f":"IF(OR(ISBLANK(C103),ISBLANK(K103)),\"\",_xlfn.MAXIFS('Mainenance log'!$H$3:$H$1048576,'Mainenance log'!$B$3:$B$1048576,'Service Interval'!$C103,'Mainenance log'!$E$3:$E$1048576,'Type of Service List'!$B$16))","v":""}]
[null,99,null,null,null,null,null,null,null,null,null,"",null,{"$f":"IF(OR(ISBLANK(C104),ISBLANK(D104)),\"\",_xlfn.MAXIFS('Mainenance log'!$H$3:$H$1048576,'Mainenance log'!$B$3:$B$1048576,'Service Interval'!$C104,'Mainenance log'!$E$3:$E$1048576,'Type of Service List'!$B$5))","v":""},{"$f":"IF(OR(ISBLANK(C104),ISBLANK(E104)),\"\",_xlfn.MAXIFS('Mainenance log'!$H$3:$H$1048576,'Mainenance log'!$B$3:$B$1048576,'Service Interval'!$C104,'Mainenance log'!$E$3:$E$1048576,'Type of Service List'!$B$8))","v":""},{"$f":"IF(OR(ISBLANK(C104),ISBLANK(F104)),\"\",_xlfn.MAXIFS('Mainenance log'!$H$3:$H$1048576,'Mainenance log'!$B$3:$B$1048576,'Service Interval'!$C104,'Mainenance log'!$E$3:$E$1048576,'Type of Service List'!$B$10))","v":""},{"$f":"IF(OR(ISBLANK(C104),ISBLANK(G104)),\"\",_xlfn.MAXIFS('Mainenance log'!$H$3:$H$1048576,'Mainenance log'!$B$3:$B$1048576,'Service Interval'!$C104,'Mainenance log'!$E$3:$E$1048576,'Type of Service List'!$B$11))","v":""},{"$f":"IF(OR(ISBLANK(C104),ISBLANK(H104)),\"\",_xlfn.MAXIFS('Mainenance log'!$H$3:$H$1048576,'Mainenance log'!$B$3:$B$1048576,'Service Interval'!$C104,'Mainenance log'!$E$3:$E$1048576,'Type of Service List'!$B$13))","v":""},{"$f":"IF(OR(ISBLANK(C104),ISBLANK(I104)),\"\",_xlfn.MAXIFS('Mainenance log'!$H$3:$H$1048576,'Mainenance log'!$B$3:$B$1048576,'Service Interval'!$C104,'Mainenance log'!$E$3:$E$1048576,'Type of Service List'!$B$12))","v":""},{"$f":"IF(OR(ISBLANK(C104),ISBLANK(J104)),\"\",_xlfn.MAXIFS('Mainenance log'!$H$3:$H$1048576,'Mainenance log'!$B$3:$B$1048576,'Service Interval'!$C104,'Mainenance log'!$E$3:$E$1048576,'Type of Service List'!$B$14))","v":""},{"$f":"IF(OR(ISBLANK(C104),ISBLANK(K104)),\"\",_xlfn.MAXIFS('Mainenance log'!$H$3:$H$1048576,'Mainenance log'!$B$3:$B$1048576,'Service Interval'!$C104,'Mainenance log'!$E$3:$E$1048576,'Type of Service List'!$B$16))","v":""}]
[null,100,null,null,null,null,null,null,null,null,null,"",null,{"$f":"IF(OR(ISBLANK(C105),ISBLANK(D105)),\"\",_xlfn.MAXIFS('Mainenance log'!$H$3:$H$1048576,'Mainenance log'!$B$3:$B$1048576,'Service Interval'!$C105,'Mainenance log'!$E$3:$E$1048576,'Type of Service List'!$B$5))","v":""},{"$f":"IF(OR(ISBLANK(C105),ISBLANK(E105)),\"\",_xlfn.MAXIFS('Mainenance log'!$H$3:$H$1048576,'Mainenance log'!$B$3:$B$1048576,'Service Interval'!$C105,'Mainenance log'!$E$3:$E$1048576,'Type of Service List'!$B$8))","v":""},{"$f":"IF(OR(ISBLANK(C105),ISBLANK(F105)),\"\",_xlfn.MAXIFS('Mainenance log'!$H$3:$H$1048576,'Mainenance log'!$B$3:$B$1048576,'Service Interval'!$C105,'Mainenance log'!$E$3:$E$1048576,'Type of Service List'!$B$10))","v":""},{"$f":"IF(OR(ISBLANK(C105),ISBLANK(G105)),\"\",_xlfn.MAXIFS('Mainenance log'!$H$3:$H$1048576,'Mainenance log'!$B$3:$B$1048576,'Service Interval'!$C105,'Mainenance log'!$E$3:$E$1048576,'Type of Service List'!$B$11))","v":""},{"$f":"IF(OR(ISBLANK(C105),ISBLANK(H105)),\"\",_xlfn.MAXIFS('Mainenance log'!$H$3:$H$1048576,'Mainenance log'!$B$3:$B$1048576,'Service Interval'!$C105,'Mainenance log'!$E$3:$E$1048576,'Type of Service List'!$B$13))","v":""},{"$f":"IF(OR(ISBLANK(C105),ISBLANK(I105)),\"\",_xlfn.MAXIFS('Mainenance log'!$H$3:$H$1048576,'Mainenance log'!$B$3:$B$1048576,'Service Interval'!$C105,'Mainenance log'!$E$3:$E$1048576,'Type of Service List'!$B$12))","v":""},{"$f":"IF(OR(ISBLANK(C105),ISBLANK(J105)),\"\",_xlfn.MAXIFS('Mainenance log'!$H$3:$H$1048576,'Mainenance log'!$B$3:$B$1048576,'Service Interval'!$C105,'Mainenance log'!$E$3:$E$1048576,'Type of Service List'!$B$14))","v":""},{"$f":"IF(OR(ISBLANK(C105),ISBLANK(K105)),\"\",_xlfn.MAXIFS('Mainenance log'!$H$3:$H$1048576,'Mainenance log'!$B$3:$B$1048576,'Service Interval'!$C105,'Mainenance log'!$E$3:$E$1048576,'Type of Service List'!$B$16))","v":""}]

{"sheet":"Equipment Category","index":7,"n_rows":14,"n_cols":16,"rows_kept":14,"cut":false,"hidden":false,"merged":[]}
[]
[]
[]
[null,"HARVESTING, CROP","HARVESTING, CROP SP","HARVESTING, FORAGE","HARVESTING, FORAGE SP","Manure Management","MISCELLANEOUS","PLANTERS","TILLAGE","TRACTORS 20-80 hp","TRACTORS 80-149 hp","TRACTORS 150+ hp","Trailer/wagon","Truck","Add Category","Add Category2"]
[null,"Corn picker sheller","SP Combine","Forage harvester","SP Forage harvester","Ground Drive","Bean puller/windrower","Grain drill","Field Cultivator","2WD <80hp","2WD <150hp","2WD 150+ hp","Flatbed","Old"]
[null,"Potato harvester","SP Cotton picker","Large rectangular baler","SP Windrower","Horizontal Beaters","Beet topper/chopper","Roller-packer","Heavy-duty disk","4WD & crawler <80 hp","4WD & crawler <150 hp","4WD & crawler 150+ hp","Cattle","good"]
[null,"PT Combine",null,"Large round baler",null,"Side Discharge","Boom-type sprayer","Row crop planter","Moldboard plow",null,null,null,"Dump","semi"]
[null,"Sugar beet harvester",null,"Mower",null,null,"Fertilizer spreader",null,"Mulcher-packer",null,null,null,"Tilt"]
[null,"harvester",null,"Mower (rotary)",null,null,null,null,"Rotary hoe",null,null,null,"Equipment"]
[null,null,null,"Mower-conditioner",null,null,null,null,"Rotary tiller",null,null,null,"Car/Auto"]
[null,null,null,"Mower-conditioner (rotary)",null,null,null,null,"Row crop cultivator",null,null,null,"Cargo/Enclosed"]
[null,null,null,"Rectangular baler",null,null,null,null,"Spring tooth harrow",null,null,null,"Hay wagon"]
[null,null,null,"Side delivery rake",null,null,null,null,"Tandem disk harrow",null,null,null,"Round bale"]
[null,null,null,"V-rake-10 wheel",null,null,null,null,null,null,null,null,"Gravity"]

{"sheet":"Type of Service List","index":8,"n_rows":42,"n_cols":3,"rows_kept":42,"cut":false,"hidden":false,"merged":[]}
[]
[]
[]
[null,"Basic Service","Repairs"]
[null,"Air Filter","A/C System"]
[null,"Brake Fluid","Battery"]
[null,"Coolant Addition","Belts"]
[null,"Coolant Change","Body"]
[null,"Engine Oil Addition","Brake Fluid"]
[null,"Engine Oil/Filter Change","Brake left"]
[null,"Fuel Filters","Brake Right"]
[null,"Gear Oil Addition","Cab Air Filter"]
[null,"Greasing","Clutch"]
[null,"Hydraulic Filter","Cooling System"]
[null,"Hydraulic Fluid Addition","Diesel Exhaust Fluid"]
[null,"Transmission Fluid Addition","Differential Fluid"]
[null,"Other","Door"]
[null,null,"Exhaust System"]
[null,null,"Fuel Addition"]
[null,null,"Fuel Lift Pump"]
[null,null,"Fuel Lines and Pump"]
[null,null,"Fuel System"]
[null,null,"Glass/Mirrors"]
[null,null,"Heating System"]
[null,null,"Hydraulics"]
[null,null,"Inspection "]
[null,null,"Insurance"]
[null,null,"Lights"]
[null,null,"New Tires"]
[null,null,"Power Steering Fluid"]
[null,null,"Radiator Flush"]
[null,null,"Rust"]
[null,null,"Safety/Rops"]
[null,null,"Starter"]
[null,null,"Steering System"]
[null,null,"Timing Belt"]
[null,null,"Tire pressure"]
[null,null,"Water Pump"]
[null,null,"Windshield Washer Fluid"]
[null,null,"Windshield Wipers"]
[null,null,"Other"]
[null,null,"ford stuff"]